Workbook

Sheet Home
B2: Valid 01/01/2025
B3: 2025 Digital Price Book
B6: Article Number
B8: Article No. | D8: Article description | G8: Product range | J8: List Price | M8: Price group | P8: Full Price List
B9: =IFERROR(VLOOKUP(D6,'Wilo Price List'!B:G,1,FALSE),"") ->  | D9: =IFERROR(VLOOKUP(D6,'Wilo Price List'!B:G,2,FALSE),"") ->  | G9: =IFERROR(VLOOKUP(D6,'Wilo Price List'!B:G,4,FALSE),"") ->  | J9: =IFERROR(VLOOKUP(D6,'Wilo Price List'!B:G,5,FALSE),"") ->  | M9: =IFERROR(VLOOKUP(D6,'Wilo Price List'!B:G,6,FALSE),"") -> 
B13: Glandless Pumps | L13: Boosting
B16: Pico | H16: Pico Z | L16: ISAR Sce | P16: Booster + Tank
B20: Yonos Maxo | E20: Yonos Maxo D | H20: Yonos Maxo Z | L20: SIBOOST SMART | P20: ISAR Boost 5
B24: Stratos Maxo | E24: Stratos Maxo D | H24: Stratos Maxo Z
B28: Glanded Fixed Speed Pumps | L28: Pressurisation System
B31: IL | E31: IPL | H31: Atmos Giga I | L31: Comfort Pressurisation
B35: DL | E35: DPL | H35: Atmos Giga D | L35: Vessel
B39: Glanded VSD Pumps
B42: Yonos Giga2.0 I | E42: Stratos Giga2.0 D
B46: Yonos Giga2.0 I | E46: Stratos Giga2.0 D
B50: THIS PRICE LIST IS CORRECT AT TIME OF PRINT AND SUBJECT TO CHANGE

Sheet Home RES (hidden)
A1: Valid 01/01/2023
B2: 2023 Digital Price Book
B5: Article Number
B7: Article No. | D7: Article description | G7: Product range | J7: List Price | M7: Price group | P7: Full Price List
B8: =IFERROR(VLOOKUP(D5,'Wilo Price List'!B:G,1,FALSE),"") ->  | D8: =IFERROR(VLOOKUP(D5,'Wilo Price List'!B:G,2,FALSE),"") ->  | G8: =IFERROR(VLOOKUP(D5,'Wilo Price List'!B:G,4,FALSE),"") ->  | J8: =IFERROR(VLOOKUP(D5,'Wilo Price List'!B:G,5,FALSE),"") ->  | M8: =IFERROR(VLOOKUP(D5,'Wilo Price List'!B:G,6,FALSE),"") -> 
B12: Glandless Pumps | L12: Boosting
B15: Pico | E15: Top Z | H15: SB | L15: ISAR Sce
B19: Yonos Maxo | E19: Yonos Maxo D | H19: Yonos Maxo Z | L19: SIBOOST SMART
B23: Stratos Maxo / R7 | E23: Stratos Maxo D / R7 | H23: Stratos Maxo Z | L23: Booster + Tank
B27: Glanded Fixed Speed Pumps | L27: Pressurisation System
B30: IL | E30: IPL | L30: Comfort Pressurisation
B34: DL | E34: DPL | L34: Vessel
B38: Glanded VSD Pumps
B41: IL-E | E41: IP-E | H41: Yonos Giga2.0
B45: DL-E | E45: DP-E | H45: Yonos Giga D 2.0

Sheet Picos
B2: Pico | I2: Home
B5: Article No. (or variant) | C5: Article description | D5: Type (Pump / Accessory / Spare Part / Addon / Service) | E5: Product range | F5: List Price | G5: Price group
B6: Yonos Pico
B7: 4215511 | C7: YONOS PICO 15/1-4-(ROW) | D7: 1 Pump | E7: Yonos PICO | F7: =VLOOKUP(B7,'Wilo Price List'!B:G,5,FALSE) -> 160 | G7: PG01
B8: 4215512 | C8: YONOS PICO 15/1-6-(ROW) | D8: 1 Pump | E8: Yonos PICO | F8: =VLOOKUP(B8,'Wilo Price List'!B:G,5,FALSE) -> 162 | G8: PG01
B10: 4215513 | C10: YONOS PICO 25/1-4-(ROW) | D10: 1 Pump | E10: Yonos PICO | F10: =VLOOKUP(B10,'Wilo Price List'!B:G,5,FALSE) -> 383 | G10: PG01
B11: 4215514 | C11: YONOS PICO 25/1-4-130-(ROW) | D11: 1 Pump | E11: Yonos PICO | F11: =VLOOKUP(B11,'Wilo Price List'!B:G,5,FALSE) -> 533 | G11: PG01
B12: 4215522 | C12: YONOS PICO 25/1-5-130-(ROW) | D12: 1 Pump | E12: Yonos PICO | F12: =VLOOKUP(B12,'Wilo Price List'!B:G,5,FALSE) -> 186 | G12: PG01
B13: 4215515 | C13: YONOS PICO 25/1-6-(ROW) | D13: 1 Pump | E13: Yonos PICO | F13: =VLOOKUP(B13,'Wilo Price List'!B:G,5,FALSE) -> 281 | G13: PG01
B14: 4215516 | C14: YONOS PICO 25/1-6-130-(ROW) | D14: 1 Pump | E14: Yonos PICO | F14: =VLOOKUP(B14,'Wilo Price List'!B:G,5,FALSE) -> 201 | G14: PG01
B15: 4215517 | C15: YONOS PICO 25/1-8-(ROW) | D15: 1 Pump | E15: Yonos PICO | F15: =VLOOKUP(B15,'Wilo Price List'!B:G,5,FALSE) -> 250 | G15: PG01
B16: 4215518 | C16: YONOS PICO 25/1-8-130-(ROW) | D16: 1 Pump | E16: Yonos PICO | F16: =VLOOKUP(B16,'Wilo Price List'!B:G,5,FALSE) -> 231 | G16: PG01
B18: 4215519 | C18: YONOS PICO 30/1-4-(ROW) | D18: 1 Pump | E18: Yonos PICO | F18: =VLOOKUP(B18,'Wilo Price List'!B:G,5,FALSE) -> 458 | G18: PG01
B19: 4215520 | C19: YONOS PICO 30/1-6-(ROW) | D19: 1 Pump | E19: Yonos PICO | F19: =VLOOKUP(B19,'Wilo Price List'!B:G,5,FALSE) -> 527 | G19: PG01
B20: 4215521 | C20: YONOS PICO 30/1-8-(ROW) | D20: 1 Pump | E20: Yonos PICO | F20: =VLOOKUP(B20,'Wilo Price List'!B:G,5,FALSE) -> 597 | G20: PG01
B21: 4224817 | C21: YONOS PICO 40/1-8 (ROW) | D21: 1 Pump | E21: Yonos PICO | F21: =VLOOKUP(B21,'Wilo Price List'!B:G,5,FALSE) -> 788 | G21: PG01
B23: 4230948 | C23: Yonos PICO-D 30/1-6 | D23: 1 Pump | E23: Yonos PICO | F23: =VLOOKUP(B23,'Wilo Price List'!B:G,5,FALSE) -> 1210 | G23: PG01
B24: 4230949 | C24: Yonos PICO-D 30/1-8 | D24: 1 Pump | E24: Yonos PICO | F24: =VLOOKUP(B24,'Wilo Price List'!B:G,5,FALSE) -> 1418 | G24: PG01
B25: Stratos Pico
B26: 4244390 | C26: Stratos PICO 15/0,5-4 | D26: 1 Pump | E26: Stratos PICO | F26: =VLOOKUP(B26,'Wilo Price List'!B:G,5,FALSE) -> 416 | G26: PG01
B27: 4244391 | C27: Stratos PICO 15/0,5-6 | D27: 1 Pump | E27: Stratos PICO | F27: =VLOOKUP(B27,'Wilo Price List'!B:G,5,FALSE) -> 423 | G27: PG01
B28: 4244392 | C28: Stratos PICO 15/0,5-8 | D28: 1 Pump | E28: Stratos PICO | F28: =VLOOKUP(B28,'Wilo Price List'!B:G,5,FALSE) -> 443 | G28: PG01
B30: 4244393 | C30: Stratos PICO 25/0,5-4 | D30: 1 Pump | E30: Stratos PICO | F30: =VLOOKUP(B30,'Wilo Price List'!B:G,5,FALSE) -> 435 | G30: PG01
B31: 4244394 | C31: Stratos PICO 25/0,5-4-130 | D31: 1 Pump | E31: Stratos PICO | F31: =VLOOKUP(B31,'Wilo Price List'!B:G,5,FALSE) -> 289 | G31: PG01
B32: 4244395 | C32: Stratos PICO 25/0,5-6-180 | D32: 1 Pump | E32: Stratos PICO | F32: =VLOOKUP(B32,'Wilo Price List'!B:G,5,FALSE) -> 438 | G32: PG01
B33: 4244396 | C33: Stratos PICO 25/0,5-6-130 | D33: 1 Pump | E33: Stratos PICO | F33: =VLOOKUP(B33,'Wilo Price List'!B:G,5,FALSE) -> 304 | G33: PG01
B34: 4244397 | C34: Stratos PICO 25/0,5-8-180 | D34: 1 Pump | E34: Stratos PICO | F34: =VLOOKUP(B34,'Wilo Price List'!B:G,5,FALSE) -> 469 | G34: PG01
B35: 4244398 | C35: Stratos PICO 25/0,5-8-130 | D35: 1 Pump | E35: Stratos PICO | F35: =VLOOKUP(B35,'Wilo Price List'!B:G,5,FALSE) -> 335 | G35: PG01
B37: 4244399 | C37: Stratos PICO 30/0,5-4-180 | D37: 1 Pump | E37: Stratos PICO | F37: =VLOOKUP(B37,'Wilo Price List'!B:G,5,FALSE) -> 449 | G37: PG01
B38: 4244400 | C38: Stratos PICO 30/0,5-6-180 | D38: 1 Pump | E38: Stratos PICO | F38: =VLOOKUP(B38,'Wilo Price List'!B:G,5,FALSE) -> 454 | G38: PG01
B39: 4244401 | C39: Stratos PICO 30/0,5-8-180 | D39: 1 Pump | E39: Stratos PICO | F39: =VLOOKUP(B39,'Wilo Price List'!B:G,5,FALSE) -> 495 | G39: PG01
B41: 4244402 | C41: Stratos PICO 25/0,5-6-180-N | D41: 1 Pump | E41: Stratos PICO | F41: =VLOOKUP(B41,'Wilo Price List'!B:G,5,FALSE) -> 573 | G41: PG01
B42: 4244403 | C42: Stratos PICO 25/0,5-4-BT | D42: 1 Pump | E42: Stratos PICO | F42: =VLOOKUP(B42,'Wilo Price List'!B:G,5,FALSE) -> 646 | G42: PG01
B43: 4244404 | C43: Stratos PICO 25/0,5-6-BT | D43: 1 Pump | E43: Stratos PICO | F43: =VLOOKUP(B43,'Wilo Price List'!B:G,5,FALSE) -> 667 | G43: PG01
B45: 4239241 | C45: Smart Connect BT Module | D45: Accessory | E45: Stratos PICO | F45: =VLOOKUP(B45,'Wilo Price List'!B:G,5,FALSE) -> 170 | G45: PG14
B46: 4257834 | C46: Connect Module BMS | D46: Accessory | E46: Stratos PICO | F46: 245 | G46: PG14

Sheet Pico Z
B2: Pico Z | I2: Home
B5: Article No. (or variant) | C5: Article description | D5: Type | E5: Product range | F5: List Price | G5: Price group
B6: Yonos Pico
B7: 4255410 | C7: Yonos PICO-Z 15/0.5-4 130 | D7: 1 Pump | E7: Yonos PICO | F7: =VLOOKUP(B7,'Wilo Price List'!B:G,5,FALSE) -> 282 | G7: PG01
B8: 4255411 | C8: Yonos PICO-Z 15/0.5-4 140 | D8: 1 Pump | E8: Yonos PICO | F8: =VLOOKUP(B8,'Wilo Price List'!B:G,5,FALSE) -> 285 | G8: PG01
B10: 4255412 | C10: Yonos PICO-Z 20/0.5-4 150 | D10: 1 Pump | E10: Yonos PICO | F10: =VLOOKUP(B10,'Wilo Price List'!B:G,5,FALSE) -> 285 | G10: PG01
B11: 4255413 | C11: Yonos PICO-Z 20/0.5-6 150 | D11: 1 Pump | E11: Yonos PICO | F11: =VLOOKUP(B11,'Wilo Price List'!B:G,5,FALSE) -> 286 | G11: PG01
B12: 4255414 | C12: Yonos PICO-Z 20/0.5-8 150 | D12: 1 Pump | E12: Yonos PICO | F12: =VLOOKUP(B12,'Wilo Price List'!B:G,5,FALSE) -> 272 | G12: PG01
B14: 4255416 | C14: Yonos PICO-Z 25/0.5-6 130 | D14: 1 Pump | E14: Yonos PICO | F14: =VLOOKUP(B14,'Wilo Price List'!B:G,5,FALSE) -> 272 | G14: PG01
B15: 4255417 | C15: Yonos PICO-Z 25/0.5-4 180 | D15: 1 Pump | E15: Yonos PICO | F15: =VLOOKUP(B15,'Wilo Price List'!B:G,5,FALSE) -> 282 | G15: PG01
B16: 4255418 | C16: Yonos PICO-Z 25/0.5-6 180 | D16: 1 Pump | E16: Yonos PICO | F16: =VLOOKUP(B16,'Wilo Price List'!B:G,5,FALSE) -> 283 | G16: PG01
B17: 4265692 | C17: Yonos PICO-Z 25/0.5-8 180 | D17: 1 Pump | E17: Yonos PICO | F17: =VLOOKUP(B17,'Wilo Price List'!B:G,5,FALSE) -> 291 | G17: PG01
B19: Stratos
B20: 4255430 | C20: Stratos PICO-Z 20/0.5-4 | D20: 1 Pump | E20: Stratos PICO | F20: =VLOOKUP(B20,'Wilo Price List'!B:G,5,FALSE) -> 513 | G20: PG01
B21: 4255431 | C21: Stratos PICO-Z 20/0.5-6 | D21: 1 Pump | E21: Stratos PICO | F21: =VLOOKUP(B21,'Wilo Price List'!B:G,5,FALSE) -> 514 | G21: PG01
B22: 4255432 | C22: Stratos PICO-Z 20/0.5-8 | D22: 1 Pump | E22: Stratos PICO | F22: =VLOOKUP(B22,'Wilo Price List'!B:G,5,FALSE) -> 562 | G22: PG01
B24: 4255433 | C24: Stratos PICO-Z 25/0.5-4 | D24: 1 Pump | E24: Stratos PICO | F24: =VLOOKUP(B24,'Wilo Price List'!B:G,5,FALSE) -> 519 | G24: PG01
B25: 4255434 | C25: Stratos PICO-Z 25/0.5-6 | D25: 1 Pump | E25: Stratos PICO | F25: =VLOOKUP(B25,'Wilo Price List'!B:G,5,FALSE) -> 520 | G25: PG01
B26: 4255435 | C26: Stratos PICO-Z 25/0.5-8 | D26: 1 Pump | E26: Stratos PICO | F26: =VLOOKUP(B26,'Wilo Price List'!B:G,5,FALSE) -> 567 | G26: PG01

Sheet Yonos Maxo
B2: Yonos Maxo | J2: Home
B5: Article No. (or variant) | C5: Article description | D5: Type (Pump / Accessory / Spare Part / Addon / Service) | E5: Product range | F5: List Price | G5: Price group | H5: Port to Port (MM)
B6: Yonos Maxo
B7: 2120640 | C7: Yonos MAXO 25/0,5-10 PN10 | D7: 1 Pump | E7: Yonos MAXO | F7: =VLOOKUP(B7,'Wilo Price List'!B:G,5,FALSE) -> 920 | G7: PG02 | H7: 180
B8: 2120641 | C8: Yonos MAXO 25/0,5-12 PN10 | D8: 1 Pump | E8: Yonos MAXO | F8: =VLOOKUP(B8,'Wilo Price List'!B:G,5,FALSE) -> 1038 | G8: PG02 | H8: 180
B9: 2120639 | C9: Yonos MAXO 25/0,5-7 PN10 | D9: 1 Pump | E9: Yonos MAXO | F9: =VLOOKUP(B9,'Wilo Price List'!B:G,5,FALSE) -> 683 | G9: PG02 | H9: 180
B11: 2120643 | C11: Yonos MAXO 30/0,5-10 PN10 | D11: 1 Pump | E11: Yonos MAXO | F11: =VLOOKUP(B11,'Wilo Price List'!B:G,5,FALSE) -> 1048 | G11: PG02 | H11: 180
B12: 2120644 | C12: Yonos MAXO 30/0,5-12 PN10 | D12: 1 Pump | E12: Yonos MAXO | F12: =VLOOKUP(B12,'Wilo Price List'!B:G,5,FALSE) -> 1359 | G12: PG02 | H12: 180
B13: 2120642 | C13: Yonos MAXO 30/0,5-7 PN10 | D13: 1 Pump | E13: Yonos MAXO | F13: =VLOOKUP(B13,'Wilo Price List'!B:G,5,FALSE) -> 756 | G13: PG02 | H13: 180
B15: 2210113 | C15: Yonos MAXO 32/0,5-10 PN6/10 | D15: 1 Pump | E15: Yonos MAXO | F15: =VLOOKUP(B15,'Wilo Price List'!B:G,5,FALSE) -> 1257 | G15: PG02 | H15: 220
B16: 2210114 | C16: Yonos MAXO 32/0,5-11 PN6/10 | D16: 1 Pump | E16: Yonos MAXO | F16: =VLOOKUP(B16,'Wilo Price List'!B:G,5,FALSE) -> 1553 | G16: PG02 | H16: 220
B18: 2120645 | C18: Yonos MAXO 40/0,5-4 PN6/10 | D18: 1 Pump | E18: Yonos MAXO | F18: =VLOOKUP(B18,'Wilo Price List'!B:G,5,FALSE) -> 1068 | G18: PG02 | H18: 220
B19: 2120646 | C19: Yonos MAXO 40/0,5-8 PN6/10 | D19: 1 Pump | E19: Yonos MAXO | F19: =VLOOKUP(B19,'Wilo Price List'!B:G,5,FALSE) -> 1266 | G19: PG02 | H19: 220
B20: 2120647 | C20: Yonos MAXO 40/0,5-12 PN6/10 | D20: 1 Pump | E20: Yonos MAXO | F20: =VLOOKUP(B20,'Wilo Price List'!B:G,5,FALSE) -> 1614 | G20: PG02 | H20: 250
B21: 2120648 | C21: Yonos MAXO 40/0,5-16 PN6/10 | D21: 1 Pump | E21: Yonos MAXO | F21: =VLOOKUP(B21,'Wilo Price List'!B:G,5,FALSE) -> 2895 | G21: PG02 | H21: 250
B23: 2120649 | C23: Yonos MAXO 50/0,5-8 PN6/10 | D23: 1 Pump | E23: Yonos MAXO | F23: =VLOOKUP(B23,'Wilo Price List'!B:G,5,FALSE) -> 1945 | G23: PG02 | H23: 240
B24: 2120650 | C24: Yonos MAXO 50/0,5-9 PN6/10 | D24: 1 Pump | E24: Yonos MAXO | F24: =VLOOKUP(B24,'Wilo Price List'!B:G,5,FALSE) -> 2060 | G24: PG02 | H24: 280
B25: 2120651 | C25: Yonos MAXO 50/0,5-12 PN6/10 | D25: 1 Pump | E25: Yonos MAXO | F25: =VLOOKUP(B25,'Wilo Price List'!B:G,5,FALSE) -> 2174 | G25: PG02 | H25: 280
B26: 2120652 | C26: Yonos MAXO 50/0,5-16 PN6/10 | D26: 1 Pump | E26: Yonos MAXO | F26: =VLOOKUP(B26,'Wilo Price List'!B:G,5,FALSE) -> 3022 | G26: PG02 | H26: 340
B28: 2120654 | C28: Yonos MAXO 65/0,5-12 PN6/10 | D28: 1 Pump | E28: Yonos MAXO | F28: =VLOOKUP(B28,'Wilo Price List'!B:G,5,FALSE) -> 2919 | G28: PG02 | H28: 340
B29: 2120655 | C29: Yonos MAXO 65/0,5-16 PN6/10 | D29: 1 Pump | E29: Yonos MAXO | F29: =VLOOKUP(B29,'Wilo Price List'!B:G,5,FALSE) -> 3141 | G29: PG02 | H29: 340
B30: 2120653 | C30: Yonos MAXO 65/0,5-9 PN6/10 | D30: 1 Pump | E30: Yonos MAXO | F30: =VLOOKUP(B30,'Wilo Price List'!B:G,5,FALSE) -> 2343 | G30: PG02 | H30: 280
B32: 2120657 | C32: Yonos MAXO 80/0,5-6 PN10 | D32: 1 Pump | E32: Yonos MAXO | F32: =VLOOKUP(B32,'Wilo Price List'!B:G,5,FALSE) -> 3669 | G32: PG02 | H32: 360
B33: 2120656 | C33: Yonos MAXO 80/0,5-6 PN6 | D33: 1 Pump | E33: Yonos MAXO | F33: =VLOOKUP(B33,'Wilo Price List'!B:G,5,FALSE) -> 3312 | G33: PG02 | H33: 360
B34: 2120659 | C34: Yonos MAXO 80/0,5-12 PN10 | D34: 1 Pump | E34: Yonos MAXO | F34: =VLOOKUP(B34,'Wilo Price List'!B:G,5,FALSE) -> 3813 | G34: PG02 | H34: 360
B35: 2120658 | C35: Yonos MAXO 80/0,5-12 PN6 | D35: 1 Pump | E35: Yonos MAXO | F35: =VLOOKUP(B35,'Wilo Price List'!B:G,5,FALSE) -> 3434 | G35: PG02 | H35: 360
B37: 2120661 | C37: Yonos MAXO 100/0,5-12 PN10 | D37: 1 Pump | E37: Yonos MAXO | F37: =VLOOKUP(B37,'Wilo Price List'!B:G,5,FALSE) -> 3504 | G37: PG02 | H37: 360
B38: 2120660 | C38: Yonos MAXO 100/0,5-12 PN6 | D38: 1 Pump | E38: Yonos MAXO | F38: =VLOOKUP(B38,'Wilo Price List'!B:G,5,FALSE) -> 3156 | G38: PG02 | H38: 360
B40: 2210108 | C40: Connect Modul Yonos MAXO | D40: Accessory | E40: Connect Modul Yonos Maxo | F40: =VLOOKUP(B40,'Wilo Price List'!B:G,5,FALSE) -> 287 | G40: PG14

Sheet Yonos Maxo D
B2: Yonos Maxo D | J2: Home
B5: Article No. (or variant) | C5: Article description | D5: Type (Pump / Accessory / Spare Part / Addon / Service) | E5: Product range | F5: List Price | G5: Price group | H5: Port to Port (MM)
B6: Yonos Maxo D
B7: 2225914 | C7: Yonos MAXO-D 30/0,5-7 PN6/10 | D7: 1 Pump | E7: Yonos MAXO-D | F7: =VLOOKUP(B7,'Wilo Price List'!B:G,5,FALSE) -> 1978 | G7: PG02 | H7: 180
B8: 2225915 | C8: Yonos MAXO-D 30/0,5-10 PN6/10 | D8: 1 Pump | E8: Yonos MAXO-D | F8: =VLOOKUP(B8,'Wilo Price List'!B:G,5,FALSE) -> 2135 | G8: PG02 | H8: 180
B10: 2160585 | C10: Yonos MAXO-D 32/0,5-7 PN6/10 | D10: 1 Pump | E10: Yonos MAXO-D | F10: =VLOOKUP(B10,'Wilo Price List'!B:G,5,FALSE) -> 1982 | G10: PG02 | H10: 220
B11: 2120663 | C11: Yonos MAXO-D 32/0,5-11 PN6/10 | D11: 1 Pump | E11: Yonos MAXO-D | F11: =VLOOKUP(B11,'Wilo Price List'!B:G,5,FALSE) -> 2379 | G11: PG02 | H11: 220
B13: 2120664 | C13: Yonos MAXO-D 40/0,5-8 PN6/10 | D13: 1 Pump | E13: Yonos MAXO-D | F13: =VLOOKUP(B13,'Wilo Price List'!B:G,5,FALSE) -> 2483 | G13: PG02 | H13: 220
B14: 2120665 | C14: Yonos MAXO-D 40/0,5-12 PN6/10 | D14: 1 Pump | E14: Yonos MAXO-D | F14: =VLOOKUP(B14,'Wilo Price List'!B:G,5,FALSE) -> 3359 | G14: PG02 | H14: 250
B15: 2120666 | C15: Yonos MAXO-D 40/0,5-16 PN6/10 | D15: 1 Pump | E15: Yonos MAXO-D | F15: =VLOOKUP(B15,'Wilo Price List'!B:G,5,FALSE) -> 5729 | G15: PG02 | H15: 250
B17: 2120667 | C17: Yonos MAXO-D 50/0,5-9 PN6/10 | D17: 1 Pump | E17: Yonos MAXO-D | F17: =VLOOKUP(B17,'Wilo Price List'!B:G,5,FALSE) -> 3807 | G17: PG02 | H17: 280
B18: 2120668 | C18: Yonos MAXO-D 50/0,5-12 PN6/10 | D18: 1 Pump | E18: Yonos MAXO-D | F18: =VLOOKUP(B18,'Wilo Price List'!B:G,5,FALSE) -> 4539 | G18: PG02 | H18: 280
B19: 2120669 | C19: Yonos MAXO-D 50/0,5-16 PN6/10 | D19: 1 Pump | E19: Yonos MAXO-D | F19: =VLOOKUP(B19,'Wilo Price List'!B:G,5,FALSE) -> 6042 | G19: PG02 | H19: 340
B21: 2120670 | C21: Yonos MAXO-D 65/0,5-12 PN6/10 | D21: 1 Pump | E21: Yonos MAXO-D | F21: =VLOOKUP(B21,'Wilo Price List'!B:G,5,FALSE) -> 5806 | G21: PG02 | H21: 340
B22: 2120671 | C22: Yonos MAXO-D 65/0,5-16 PN6/10 | D22: 1 Pump | E22: Yonos MAXO-D | F22: =VLOOKUP(B22,'Wilo Price List'!B:G,5,FALSE) -> 6282 | G22: PG02 | H22: 340
B24: 2163261 | C24: Yonos MAXO-D 80/0,5-6 PN10 | D24: 1 Pump | E24: Yonos MAXO-D | F24: =VLOOKUP(B24,'Wilo Price List'!B:G,5,FALSE) -> 6965 | G24: PG02 | H24: 360
B25: 2163260 | C25: Yonos MAXO-D 80/0,5-6 PN6 | D25: 1 Pump | E25: Yonos MAXO-D | F25: =VLOOKUP(B25,'Wilo Price List'!B:G,5,FALSE) -> 6271 | G25: PG02 | H25: 360
B26: 2120673 | C26: Yonos MAXO-D 80/0,5-12 PN10 | D26: 1 Pump | E26: Yonos MAXO-D | F26: =VLOOKUP(B26,'Wilo Price List'!B:G,5,FALSE) -> 7206 | G26: PG02 | H26: 360
B27: 2120672 | C27: Yonos MAXO-D 80/0,5-12 PN6 | D27: 1 Pump | E27: Yonos MAXO-D | F27: =VLOOKUP(B27,'Wilo Price List'!B:G,5,FALSE) -> 6485 | G27: PG02 | H27: 360
B29: 2210108 | C29: Connect Module Yonos MAXO | D29: Accessory | E29: Connect Modul Yonos Maxo | F29: =VLOOKUP(B29,'Wilo Price List'!B:G,5,FALSE) -> 287 | G29: PG14

Sheet Yonos Maxo Z
B2: Yonos Maxo Z | J2: Home
B5: Article No. (or variant) | C5: Article description | D5: Type (Pump / Accessory / Spare Part / Addon / Service) | E5: Product range | F5: List Price | G5: Price group | H5: Port to Port (MM)
B6: Yonos Maxo Z
B7: 2175539 | C7: Yonos MAXO-Z 25/0,5-10 PN10 | D7: 1 Pump | E7: Yonos MAXO-Z | F7: =VLOOKUP(B7,'Wilo Price List'!B:G,5,FALSE) -> 1691 | G7: PG02 | H7: 180
B8: 2175538 | C8: Yonos MAXO-Z 25/0,5-7 PN10 | D8: 1 Pump | E8: Yonos MAXO-Z | F8: =VLOOKUP(B8,'Wilo Price List'!B:G,5,FALSE) -> 1270 | G8: PG02 | H8: 180
B10: 2175541 | C10: Yonos MAXO-Z 30/0,5-12 PN10 | D10: 1 Pump | E10: Yonos MAXO-Z | F10: =VLOOKUP(B10,'Wilo Price List'!B:G,5,FALSE) -> 2037 | G10: PG02 | H10: 180
B11: 2175540 | C11: Yonos MAXO-Z 30/0,5-7 PN10 | D11: 1 Pump | E11: Yonos MAXO-Z | F11: =VLOOKUP(B11,'Wilo Price List'!B:G,5,FALSE) -> 1431 | G11: PG02 | H11: 180
B13: 2175543 | C13: Yonos MAXO-Z 40/0,5-12 PN6/10 | D13: 1 Pump | E13: Yonos MAXO-Z | F13: =VLOOKUP(B13,'Wilo Price List'!B:G,5,FALSE) -> 2904 | G13: PG02 | H13: 250
B14: 2175542 | C14: Yonos MAXO-Z 40/0,5-8 PN6/10 | D14: 1 Pump | E14: Yonos MAXO-Z | F14: =VLOOKUP(B14,'Wilo Price List'!B:G,5,FALSE) -> 2730 | G14: PG02 | H14: 220
B16: 2175544 | C16: Yonos MAXO-Z 50/0,5-9 PN6/10 | D16: 1 Pump | E16: Yonos MAXO-Z | F16: =VLOOKUP(B16,'Wilo Price List'!B:G,5,FALSE) -> 3553 | G16: PG02 | H16: 280
B18: 2175545 | C18: Yonos MAXO-Z 65/0,5-12 PN6/10 | D18: 1 Pump | E18: Yonos MAXO-Z | F18: =VLOOKUP(B18,'Wilo Price List'!B:G,5,FALSE) -> 7326 | G18: PG02 | H18: 340
B20: 2210108 | C20: Connect Modul Yonos MAXO | D20: Accessory | E20: Connect Modul Yonos Maxo | F20: =VLOOKUP(B20,'Wilo Price List'!B:G,5,FALSE) -> 287 | G20: PG14

Sheet Stratos Maxo
B2: Stratos Maxo | G2: Home
B5: R7 Alternative | C5: Article description | D5: List Price | E5: Price group
E6: P17
B9: 2164570 | C9: Stratos MAXO 25/0,5-10 PN10 | D9: =VLOOKUP(B9,'Wilo Price List'!B:G,5,FALSE) -> 1106
B10: 2164571 | C10: Stratos MAXO 25/0,5-12 PN10 | D10: =VLOOKUP(B10,'Wilo Price List'!B:G,5,FALSE) -> 1243
B11: 2164567 | C11: Stratos MAXO 25/0,5-4 PN10 | D11: =VLOOKUP(B11,'Wilo Price List'!B:G,5,FALSE) -> 737
B12: 2164568 | C12: Stratos MAXO 25/0,5-6 PN10 | D12: =VLOOKUP(B12,'Wilo Price List'!B:G,5,FALSE) -> 875
B13: 2164569 | C13: Stratos MAXO 25/0,5-8 PN10 | D13: =VLOOKUP(B13,'Wilo Price List'!B:G,5,FALSE) -> 996
B15: 2164575 | C15: Stratos MAXO 30/0,5-10 PN10 | D15: =VLOOKUP(B15,'Wilo Price List'!B:G,5,FALSE) -> 1413
B16: 2164576 | C16: Stratos MAXO 30/0,5-12 PN10 | D16: =VLOOKUP(B16,'Wilo Price List'!B:G,5,FALSE) -> 2208
B17: 2164577 | C17: Stratos MAXO 30/0,5-14 PN10 | D17: =VLOOKUP(B17,'Wilo Price List'!B:G,5,FALSE) -> 2664
B18: 2164572 | C18: Stratos MAXO 30/0,5-4 PN10 | D18: =VLOOKUP(B18,'Wilo Price List'!B:G,5,FALSE) -> 905
B19: 2164573 | C19: Stratos MAXO 30/0,5-6 PN10 | D19: =VLOOKUP(B19,'Wilo Price List'!B:G,5,FALSE) -> 1060
B20: 2164574 | C20: Stratos MAXO 30/0,5-8 PN10 | D20: =VLOOKUP(B20,'Wilo Price List'!B:G,5,FALSE) -> 1227
B22: 2164579 | C22: Stratos MAXO 32/0,5-10 PN6/10 | D22: =VLOOKUP(B22,'Wilo Price List'!B:G,5,FALSE) -> 1413
B23: 2164580 | C23: Stratos MAXO 32/0,5-12 PN6/10 | D23: =VLOOKUP(B23,'Wilo Price List'!B:G,5,FALSE) -> 2208
B24: 2164581 | C24: Stratos MAXO 32/0,5-16 PN6/10 | D24: =VLOOKUP(B24,'Wilo Price List'!B:G,5,FALSE) -> 3116
B25: 2164578 | C25: Stratos MAXO 32/0,5-8 PN6/10 | D25: =VLOOKUP(B25,'Wilo Price List'!B:G,5,FALSE) -> 1227
B27: 2222237 | C27: Stratos MAXO 40/0,5-10 PN6/10 | D27: =VLOOKUP(B27,'Wilo Price List'!B:G,5,FALSE) -> 1873
B28: 2164584 | C28: Stratos MAXO 40/0,5-12 PN6/10 | D28: =VLOOKUP(B28,'Wilo Price List'!B:G,5,FALSE) -> 2302
B29: 2164585 | C29: Stratos MAXO 40/0,5-16 PN6/10 | D29: =VLOOKUP(B29,'Wilo Price List'!B:G,5,FALSE) -> 2729
B30: 2164582 | C30: Stratos MAXO 40/0,5-4 PN6/10 | D30: =VLOOKUP(B30,'Wilo Price List'!B:G,5,FALSE) -> 1243
B31: 2164583 | C31: Stratos MAXO 40/0,5-8 PN6/10 | D31: =VLOOKUP(B31,'Wilo Price List'!B:G,5,FALSE) -> 1826
B33: 2222242 | C33: Stratos MAXO 50/0,5-10 PN6/10 | D33: =VLOOKUP(B33,'Wilo Price List'!B:G,5,FALSE) -> 2459
B34: 2164589 | C34: Stratos MAXO 50/0,5-12 PN6/10 | D34: =VLOOKUP(B34,'Wilo Price List'!B:G,5,FALSE) -> 3528
B35: 2164590 | C35: Stratos MAXO 50/0,5-14 PN6/10 | D35: =VLOOKUP(B35,'Wilo Price List'!B:G,5,FALSE) -> 4064
B36: 2164591 | C36: Stratos MAXO 50/0,5-16 PN6/10 | D36: =VLOOKUP(B36,'Wilo Price List'!B:G,5,FALSE) -> 4767
B37: 2164586 | C37: Stratos MAXO 50/0,5-6 PN6/10 | D37: =VLOOKUP(B37,'Wilo Price List'!B:G,5,FALSE) -> 2868
B38: 2164587 | C38: Stratos MAXO 50/0,5-8 PN6/10 | D38: =VLOOKUP(B38,'Wilo Price List'!B:G,5,FALSE) -> 3229
B39: 2164588 | C39: Stratos MAXO 50/0,5-9 PN6/10 | D39: =VLOOKUP(B39,'Wilo Price List'!B:G,5,FALSE) -> 3343
B41: 2164594 | C41: Stratos MAXO 65/0,5-12 PN6/10 | D41: =VLOOKUP(B41,'Wilo Price List'!B:G,5,FALSE) -> 4293
B42: 2164595 | C42: Stratos MAXO 65/0,5-16 PN6/10 | D42: =VLOOKUP(B42,'Wilo Price List'!B:G,5,FALSE) -> 4511
B43: 2164592 | C43: Stratos MAXO 65/0,5-6 PN6/10 | D43: =VLOOKUP(B43,'Wilo Price List'!B:G,5,FALSE) -> 3796
B44: 2164593 | C44: Stratos MAXO 65/0,5-9 PN6/10 | D44: =VLOOKUP(B44,'Wilo Price List'!B:G,5,FALSE) -> 4003
B46: 2164599 | C46: Stratos MAXO 80/0,5-12 PN10 | D46: =VLOOKUP(B46,'Wilo Price List'!B:G,5,FALSE) -> 5511
B47: 2164598 | C47: Stratos MAXO 80/0,5-12 PN6 | D47: =VLOOKUP(B47,'Wilo Price List'!B:G,5,FALSE) -> 4853
B48: 2164601 | C48: Stratos MAXO 80/0,5-16 PN10 | D48: =VLOOKUP(B48,'Wilo Price List'!B:G,5,FALSE) -> 8031
B49: 2164600 | C49: Stratos MAXO 80/0,5-16 PN6 | D49: =VLOOKUP(B49,'Wilo Price List'!B:G,5,FALSE) -> 7703
B50: 2164597 | C50: Stratos MAXO 80/0,5-6 PN10 | D50: =VLOOKUP(B50,'Wilo Price List'!B:G,5,FALSE) -> 4570
B51: 2164596 | C51: Stratos MAXO 80/0,5-6 PN6 | D51: =VLOOKUP(B51,'Wilo Price List'!B:G,5,FALSE) -> 4022
B53: 2164605 | C53: Stratos MAXO 100/0,5-12 PN10 | D53: =VLOOKUP(B53,'Wilo Price List'!B:G,5,FALSE) -> 6517
B54: 2164604 | C54: Stratos MAXO 100/0,5-12 PN6 | D54: =VLOOKUP(B54,'Wilo Price List'!B:G,5,FALSE) -> 5738
B55: 2164603 | C55: Stratos MAXO 100/0,5-6 PN10 | D55: =VLOOKUP(B55,'Wilo Price List'!B:G,5,FALSE) -> 4875
B56: 2164602 | C56: Stratos MAXO 100/0,5-6 PN6 | D56: =VLOOKUP(B56,'Wilo Price List'!B:G,5,FALSE) -> 4293
B57: Stratos Maxo PN16
B58: 2186258 | C58: Stratos MAXO 25/0,5-10 PN16 | D58: =VLOOKUP(B58,'Wilo Price List'!B:G,5,FALSE) -> 1623
B59: 2186259 | C59: Stratos MAXO 25/0,5-12 PN16 | D59: =VLOOKUP(B59,'Wilo Price List'!B:G,5,FALSE) -> 1826
B60: 2186255 | C60: Stratos MAXO 25/0,5-4 PN16 | D60: =VLOOKUP(B60,'Wilo Price List'!B:G,5,FALSE) -> 1083
B61: 2186256 | C61: Stratos MAXO 25/0,5-6 PN16 | D61: =VLOOKUP(B61,'Wilo Price List'!B:G,5,FALSE) -> 1286
B62: 2186257 | C62: Stratos MAXO 25/0,5-8 PN16 | D62: =VLOOKUP(B62,'Wilo Price List'!B:G,5,FALSE) -> 1464
B64: 2186263 | C64: Stratos MAXO 30/0,5-10 PN16 | D64: =VLOOKUP(B64,'Wilo Price List'!B:G,5,FALSE) -> 2073
B65: 2186264 | C65: Stratos MAXO 30/0,5-12 PN16 | D65: =VLOOKUP(B65,'Wilo Price List'!B:G,5,FALSE) -> 3246
B66: 2186265 | C66: Stratos MAXO 30/0,5-14 PN16 | D66: =VLOOKUP(B66,'Wilo Price List'!B:G,5,FALSE) -> 3918
B67: 2186260 | C67: Stratos MAXO 30/0,5-4 PN16 | D67: =VLOOKUP(B67,'Wilo Price List'!B:G,5,FALSE) -> 1026
B68: 2186261 | C68: Stratos MAXO 30/0,5-6 PN16 | D68: =VLOOKUP(B68,'Wilo Price List'!B:G,5,FALSE) -> 1554
B69: 2186262 | C69: Stratos MAXO 30/0,5-8 PN16 | D69: =VLOOKUP(B69,'Wilo Price List'!B:G,5,FALSE) -> 1803
B71: 2186267 | C71: Stratos MAXO 32/0,5-10 PN16 | D71: =VLOOKUP(B71,'Wilo Price List'!B:G,5,FALSE) -> 2073
B72: 2186268 | C72: Stratos MAXO 32/0,5-12 PN16 | D72: =VLOOKUP(B72,'Wilo Price List'!B:G,5,FALSE) -> 3246
B73: 2186269 | C73: Stratos MAXO 32/0,5-16 PN16 | D73: =VLOOKUP(B73,'Wilo Price List'!B:G,5,FALSE) -> 3840
B74: 2186266 | C74: Stratos MAXO 32/0,5-8 PN16 | D74: =VLOOKUP(B74,'Wilo Price List'!B:G,5,FALSE) -> 1803
B76: 2186272 | C76: Stratos MAXO 40/0,5-12 PN16 | D76: =VLOOKUP(B76,'Wilo Price List'!B:G,5,FALSE) -> 2614
B77: 2186273 | C77: Stratos MAXO 40/0,5-16 PN16 | D77: =VLOOKUP(B77,'Wilo Price List'!B:G,5,FALSE) -> 4014
B78: 2186270 | C78: Stratos MAXO 40/0,5-4 PN16 | D78: =VLOOKUP(B78,'Wilo Price List'!B:G,5,FALSE) -> 1826
B79: 2186271 | C79: Stratos MAXO 40/0,5-8 PN16 | D79: =VLOOKUP(B79,'Wilo Price List'!B:G,5,FALSE) -> 2686
B81: 2186277 | C81: Stratos MAXO 50/0,5-12 PN16 | D81: =VLOOKUP(B81,'Wilo Price List'!B:G,5,FALSE) -> 5026
B82: 2186278 | C82: Stratos MAXO 50/0,5-14 PN16 | D82: =VLOOKUP(B82,'Wilo Price List'!B:G,5,FALSE) -> 5964
B83: 2186279 | C83: Stratos MAXO 50/0,5-16 PN16 | D83: =VLOOKUP(B83,'Wilo Price List'!B:G,5,FALSE) -> 6541
B84: 2186274 | C84: Stratos MAXO 50/0,5-6 PN16 | D84: =VLOOKUP(B84,'Wilo Price List'!B:G,5,FALSE) -> 3848
B85: 2186275 | C85: Stratos MAXO 50/0,5-8 PN16 | D85: =VLOOKUP(B85,'Wilo Price List'!B:G,5,FALSE) -> 4304
B86: 2186276 | C86: Stratos MAXO 50/0,5-9 PN16 | D86: =VLOOKUP(B86,'Wilo Price List'!B:G,5,FALSE) -> 4760
B88: 2186282 | C88: Stratos MAXO 65/0,5-12 PN16 | D88: =VLOOKUP(B88,'Wilo Price List'!B:G,5,FALSE) -> 5703
B89: 2186283 | C89: Stratos MAXO 65/0,5-16 PN16 | D89: =VLOOKUP(B89,'Wilo Price List'!B:G,5,FALSE) -> 6744
B90: 2186280 | C90: Stratos MAXO 65/0,5-6 PN16 | D90: =VLOOKUP(B90,'Wilo Price List'!B:G,5,FALSE) -> 4595
B91: 2186281 | C91: Stratos MAXO 65/0,5-9 PN16 | D91: =VLOOKUP(B91,'Wilo Price List'!B:G,5,FALSE) -> 5165
B93: 2186285 | C93: Stratos MAXO 80/0,5-12 PN16 | D93: =VLOOKUP(B93,'Wilo Price List'!B:G,5,FALSE) -> 7610
B94: 2186286 | C94: Stratos MAXO 80/0,5-16 PN16 | D94: =VLOOKUP(B94,'Wilo Price List'!B:G,5,FALSE) -> 8895
B95: 2186284 | C95: Stratos MAXO 80/0,5-6 PN16 | D95: =VLOOKUP(B95,'Wilo Price List'!B:G,5,FALSE) -> 5915
B97: 2186288 | C97: Stratos MAXO 100/0,5-12 PN16 | D97: =VLOOKUP(B97,'Wilo Price List'!B:G,5,FALSE) -> 9019
B98: 2186287 | C98: Stratos MAXO 100/0,5-6 PN16 | D98: =VLOOKUP(B98,'Wilo Price List'!B:G,5,FALSE) -> 7084

Sheet Stratos Maxo D
B2: Stratos Maxo D | G2: Home
B5: Article No. (or variant) | C5: Article description | D5: List Price | E5: Price group
E6: PG17
B8: Stratos Maxo D
B9: 2164646 | C9: Stratos MAXO-D 30/0,5-10 PN10 | D9: =VLOOKUP(B9,'Wilo Price List'!B:G,5,FALSE) -> 2707
B10: 2164645 | C10: Stratos MAXO-D 30/0,5-6 PN10 | D10: =VLOOKUP(B10,'Wilo Price List'!B:G,5,FALSE) -> 2461
B12: 2164648 | C12: Stratos MAXO-D 32/0,5-12 PN6/10 | D12: =VLOOKUP(B12,'Wilo Price List'!B:G,5,FALSE) -> 4392
B13: 2164647 | C13: Stratos MAXO-D 32/0,5-8 PN6/10 | D13: =VLOOKUP(B13,'Wilo Price List'!B:G,5,FALSE) -> 2707
B15: 2164650 | C15: Stratos MAXO-D 40/0,5-12 PN6/10 | D15: =VLOOKUP(B15,'Wilo Price List'!B:G,5,FALSE) -> 5155
B16: 2164651 | C16: Stratos MAXO-D 40/0,5-16 PN6/10 | D16: =VLOOKUP(B16,'Wilo Price List'!B:G,5,FALSE) -> 5815
B17: 2164649 | C17: Stratos MAXO-D 40/0,5-8 PN6/10 | D17: =VLOOKUP(B17,'Wilo Price List'!B:G,5,FALSE) -> 3875
B19: 2164655 | C19: Stratos MAXO-D 50/0,5-12 PN6/10 | D19: =VLOOKUP(B19,'Wilo Price List'!B:G,5,FALSE) -> 6951
B20: 2164656 | C20: Stratos MAXO-D 50/0,5-16 PN6/10 | D20: =VLOOKUP(B20,'Wilo Price List'!B:G,5,FALSE) -> 8820
B21: 2164652 | C21: Stratos MAXO-D 50/0,5-6 PN6/10 | D21: =VLOOKUP(B21,'Wilo Price List'!B:G,5,FALSE) -> 5649
B22: 2164653 | C22: Stratos MAXO-D 50/0,5-8 PN6/10 | D22: =VLOOKUP(B22,'Wilo Price List'!B:G,5,FALSE) -> 6220
B23: 2164654 | C23: Stratos MAXO-D 50/0,5-9 PN6/10 | D23: =VLOOKUP(B23,'Wilo Price List'!B:G,5,FALSE) -> 6584
B25: 2164658 | C25: Stratos MAXO-D 65/0,5-12 PN6/10 | D25: =VLOOKUP(B25,'Wilo Price List'!B:G,5,FALSE) -> 7943
B26: 2164659 | C26: Stratos MAXO-D 65/0,5-16 PN6/10 | D26: =VLOOKUP(B26,'Wilo Price List'!B:G,5,FALSE) -> 8510
B27: 2164657 | C27: Stratos MAXO-D 65/0,5-6 PN6/10 | D27: =VLOOKUP(B27,'Wilo Price List'!B:G,5,FALSE) -> 6869
B29: 2164663 | C29: Stratos MAXO-D 80/0,5-12 PN10 | D29: =VLOOKUP(B29,'Wilo Price List'!B:G,5,FALSE) -> 10352
B30: 2164662 | C30: Stratos MAXO-D 80/0,5-12 PN6 | D30: =VLOOKUP(B30,'Wilo Price List'!B:G,5,FALSE) -> 9111
B31: 2164665 | C31: Stratos MAXO-D 80/0,5-16 PN10 | D31: =VLOOKUP(B31,'Wilo Price List'!B:G,5,FALSE) -> 14253
B32: 2164664 | C32: Stratos MAXO-D 80/0,5-16 PN6 | D32: =VLOOKUP(B32,'Wilo Price List'!B:G,5,FALSE) -> 16196
B33: 2164661 | C33: Stratos MAXO-D 80/0,5-6 PN10 | D33: =VLOOKUP(B33,'Wilo Price List'!B:G,5,FALSE) -> 7438
B34: 2164660 | C34: Stratos MAXO-D 80/0,5-6 PN6 | D34: =VLOOKUP(B34,'Wilo Price List'!B:G,5,FALSE) -> 6546
B35: Stratos Maxo PN16
B36: 2186289 | C36: Stratos MAXO-D 30/0,5-6 PN16 | D36: =VLOOKUP(B36,'Wilo Price List'!B:G,5,FALSE) -> 3385
B37: 2186290 | C37: Stratos MAXO-D 30/0,5-10 PN16 | D37: =VLOOKUP(B37,'Wilo Price List'!B:G,5,FALSE) -> 3969
B39: 2186291 | C39: Stratos MAXO D 32/0,5-8 PN16 | D39: =VLOOKUP(B39,'Wilo Price List'!B:G,5,FALSE) -> 3834
B40: 2186292 | C40: Stratos MAXO-D 32/0,5-12 PN16 | D40: =VLOOKUP(B40,'Wilo Price List'!B:G,5,FALSE) -> 5529
B42: 2186293 | C42: Stratos MAXO-D 40/0,5-8 PN16 | D42: =VLOOKUP(B42,'Wilo Price List'!B:G,5,FALSE) -> 5815
B43: 2186294 | C43: Stratos MAXO-D 40/0,5-12 PN16 | D43: =VLOOKUP(B43,'Wilo Price List'!B:G,5,FALSE) -> 6737
B44: 2186295 | C44: Stratos MAXO-D 40/0,5-16 PN16 | D44: =VLOOKUP(B44,'Wilo Price List'!B:G,5,FALSE) -> 8959
B46: 2186296 | C46: Stratos MAXO-D 50/0,5-6 PN16 | D46: =VLOOKUP(B46,'Wilo Price List'!B:G,5,FALSE) -> 6446
B47: 2186297 | C47: Stratos MAXO-D 50/0,5-8 PN16 | D47: =VLOOKUP(B47,'Wilo Price List'!B:G,5,FALSE) -> 7295
B48: 2186298 | C48: Stratos MAXO-D 50/0,5-9 PN16 | D48: =VLOOKUP(B48,'Wilo Price List'!B:G,5,FALSE) -> 8137
B49: 2186299 | C49: Stratos MAXO-D 50/0,5-12 PN16 | D49: =VLOOKUP(B49,'Wilo Price List'!B:G,5,FALSE) -> 8629
B50: 2186300 | C50: Stratos MAXO-D 50/0,5-16 PN16 | D50: =VLOOKUP(B50,'Wilo Price List'!B:G,5,FALSE) -> 11429
B52: 2186301 | C52: Stratos MAXO-D 65/0,5-6 PN16 | D52: =VLOOKUP(B52,'Wilo Price List'!B:G,5,FALSE) -> 7762
B53: 2186302 | C53: Stratos MAXO-D 65/0,5-12 PN16 | D53: =VLOOKUP(B53,'Wilo Price List'!B:G,5,FALSE) -> 9814
B54: 2186303 | C54: Stratos MAXO-D 65/0,5-16 PN16 | D54: =VLOOKUP(B54,'Wilo Price List'!B:G,5,FALSE) -> 11742
B56: 2186304 | C56: Stratos MAXO-D 80/0,5-6 PN16 | D56: =VLOOKUP(B56,'Wilo Price List'!B:G,5,FALSE) -> 10780
B57: 2186305 | C57: Stratos MAXO-D 80/0,5-12 PN16 | D57: =VLOOKUP(B57,'Wilo Price List'!B:G,5,FALSE) -> 13345
B58: 2186306 | C58: Stratos MAXO D 80/0,5-16 PN16 | D58: =VLOOKUP(B58,'Wilo Price List'!B:G,5,FALSE) -> 15719

Sheet Stratos Maxo Z
B2: Stratos Maxo Z | I2: Home
B5: Article No. (or variant) | C5: Article description | D5: Type (Pump / Accessory / Spare Part / Addon / Service) | E5: Product range | F5: List Price | G5: Price group
B6: Stratos Maxo Z
B7: 2164668 | C7: Stratos MAXO-Z 25/0,5-12 PN10 | D7: 1 Pump | E7: Stratos MAXO-Z | F7: =VLOOKUP(B7,'Wilo Price List'!B:G,5,FALSE) -> 1925 | G7: PG17
B8: 2164666 | C8: Stratos MAXO-Z 25/0,5-6 PN10 | D8: 1 Pump | E8: Stratos MAXO-Z | F8: =VLOOKUP(B8,'Wilo Price List'!B:G,5,FALSE) -> 1355 | G8: PG17
B9: 2164667 | C9: Stratos MAXO-Z 25/0,5-8 PN10 | D9: 1 Pump | E9: Stratos MAXO-Z | F9: =VLOOKUP(B9,'Wilo Price List'!B:G,5,FALSE) -> 1544 | G9: PG17
B11: 2164671 | C11: Stratos MAXO-Z 30/0,5-12 PN10 | D11: 1 Pump | E11: Stratos MAXO-Z | F11: =VLOOKUP(B11,'Wilo Price List'!B:G,5,FALSE) -> 3454 | G11: PG17
B12: 2164669 | C12: Stratos MAXO-Z 30/0,5-6 PN10 | D12: 1 Pump | E12: Stratos MAXO-Z | F12: =VLOOKUP(B12,'Wilo Price List'!B:G,5,FALSE) -> 1641 | G12: PG17
B13: 2164670 | C13: Stratos MAXO-Z 30/0,5-8 PN10 | D13: 1 Pump | E13: Stratos MAXO-Z | F13: =VLOOKUP(B13,'Wilo Price List'!B:G,5,FALSE) -> 1710 | G13: PG17
B15: 2164673 | C15: Stratos MAXO-Z 32/0,5-12 PN6/10 | D15: 1 Pump | E15: Stratos MAXO-Z | F15: =VLOOKUP(B15,'Wilo Price List'!B:G,5,FALSE) -> 3454 | G15: PG17
B16: 2164672 | C16: Stratos MAXO-Z 32/0,5-8 PN6/10 | D16: 1 Pump | E16: Stratos MAXO-Z | F16: =VLOOKUP(B16,'Wilo Price List'!B:G,5,FALSE) -> 1903 | G16: PG17
B18: 2164675 | C18: Stratos MAXO-Z 40/0,5-12 PN6/10 | D18: 1 Pump | E18: Stratos MAXO-Z | F18: =VLOOKUP(B18,'Wilo Price List'!B:G,5,FALSE) -> 4158 | G18: PG17
B19: 2164674 | C19: Stratos MAXO-Z 40/0,5-8 PN6/10 | D19: 1 Pump | E19: Stratos MAXO-Z | F19: =VLOOKUP(B19,'Wilo Price List'!B:G,5,FALSE) -> 2829 | G19: PG17
B21: 2164676 | C21: Stratos MAXO-Z 50/0,5-9 PN6/10 | D21: 1 Pump | E21: Stratos MAXO-Z | F21: =VLOOKUP(B21,'Wilo Price List'!B:G,5,FALSE) -> 5181 | G21: PG17
B23: 2164677 | C23: Stratos MAXO-Z 65/0,5-12 PN6/10 | D23: 1 Pump | E23: Stratos MAXO-Z | F23: =VLOOKUP(B23,'Wilo Price List'!B:G,5,FALSE) -> 5739 | G23: PG17
B24: Stratos Maxo Z PN16
B25: 2186309 | C25: Stratos MAXO-Z 25/0,5-12 PN16 | D25: 1 Pump | E25: Stratos MAXO-Z PN16 | F25: =VLOOKUP(B25,'Wilo Price List'!B:G,5,FALSE) -> 3774 | G25: PG17
B26: 2186307 | C26: Stratos MAXO-Z 25/0,5-6 PN16 | D26: 1 Pump | E26: Stratos MAXO-Z PN16 | F26: =VLOOKUP(B26,'Wilo Price List'!B:G,5,FALSE) -> 2694 | G26: PG17
B27: 2186308 | C27: Stratos MAXO-Z 25/0,5-8 PN16 | D27: 1 Pump | E27: Stratos MAXO-Z PN16 | F27: =VLOOKUP(B27,'Wilo Price List'!B:G,5,FALSE) -> 2947 | G27: PG17
B29: 2186312 | C29: Stratos MAXO-Z 30/0,5-12 PN16 | D29: 1 Pump | E29: Stratos MAXO-Z PN16 | F29: =VLOOKUP(B29,'Wilo Price List'!B:G,5,FALSE) -> 4368 | G29: PG17
B30: 2186310 | C30: Stratos MAXO-Z 30/0,5-6 PN16 | D30: 1 Pump | E30: Stratos MAXO-Z PN16 | F30: =VLOOKUP(B30,'Wilo Price List'!B:G,5,FALSE) -> 3015 | G30: PG17
B31: 2186311 | C31: Stratos MAXO-Z 30/0,5-8 PN16 | D31: 1 Pump | E31: Stratos MAXO-Z PN16 | F31: =VLOOKUP(B31,'Wilo Price List'!B:G,5,FALSE) -> 3284 | G31: PG17
B33: 2186314 | C33: Stratos MAXO-Z 32/0,5-12 PN16 | D33: 1 Pump | E33: Stratos MAXO-Z PN16 | F33: =VLOOKUP(B33,'Wilo Price List'!B:G,5,FALSE) -> 4881 | G33: PG17
B34: 2186313 | C34: Stratos MAXO-Z 32/0,5-8 PN16 | D34: 1 Pump | E34: Stratos MAXO-Z PN16 | F34: =VLOOKUP(B34,'Wilo Price List'!B:G,5,FALSE) -> 3413 | G34: PG17
B36: 2186316 | C36: Stratos MAXO-Z 40/0,5-12 PN16 | D36: 1 Pump | E36: Stratos MAXO-Z PN16 | F36: =VLOOKUP(B36,'Wilo Price List'!B:G,5,FALSE) -> 5935 | G36: PG17
B37: 2186315 | C37: Stratos MAXO-Z 40/0,5-8 PN16 | D37: 1 Pump | E37: Stratos MAXO-Z PN16 | F37: =VLOOKUP(B37,'Wilo Price List'!B:G,5,FALSE) -> 5136 | G37: PG17
B39: 2186317 | C39: Stratos MAXO-Z 50/0,5-9 PN16 | D39: 1 Pump | E39: Stratos MAXO-Z PN16 | F39: =VLOOKUP(B39,'Wilo Price List'!B:G,5,FALSE) -> 7144 | G39: PG17
B41: 2186318 | C41: Stratos MAXO-Z 65/0,5-12 PN16 | D41: 1 Pump | E41: Stratos MAXO-Z PN16 | F41: =VLOOKUP(B41,'Wilo Price List'!B:G,5,FALSE) -> 8606 | G41: PG17

Sheet IL
B2: IL | J2: Home
B5: Article No. (or variant) | C5: Article description | D5: Type (Pump / Accessory / Spare Part / Addon / Service) | E5: Product range | F5: List Price | G5: Price group | H5: Port to Port (MM)
B6: 2063574 | C6: IL32/140-0,25/4 | D6: 1 Pump | E6: CronoLine-IL | F6: =VLOOKUP(B6,'Wilo Price List'!B:G,5,FALSE) -> 2238 | G6: PG03 | H6: 320
B7: 2120862 | C7: IL32/140-1,5/2-IE3 | D7: 1 Pump | E7: CronoLine-IL | F7: =VLOOKUP(B7,'Wilo Price List'!B:G,5,FALSE) -> 2426 | G7: PG03 | H7: 320
B8: 2088307 | C8: IL32/150-0,37/4 | D8: 1 Pump | E8: CronoLine-IL | F8: =VLOOKUP(B8,'Wilo Price List'!B:G,5,FALSE) -> 2256 | G8: PG03 | H8: 320
B9: 2120863 | C9: IL32/150-2,2/2-IE3 | D9: 1 Pump | E9: CronoLine-IL | F9: =VLOOKUP(B9,'Wilo Price List'!B:G,5,FALSE) -> 2487 | G9: PG03 | H9: 320
B10: 2120864 | C10: IL32/160-2,2/2-IE3 | D10: 1 Pump | E10: CronoLine-IL | F10: =VLOOKUP(B10,'Wilo Price List'!B:G,5,FALSE) -> 2485 | G10: PG03 | H10: 320
B11: 2120865 | C11: IL32/160-3/2-IE3 | D11: 1 Pump | E11: CronoLine-IL | F11: =VLOOKUP(B11,'Wilo Price List'!B:G,5,FALSE) -> 2658 | G11: PG03 | H11: 320
B12: 2088306 | C12: IL32/170-0,55/4 | D12: 1 Pump | E12: CronoLine-IL | F12: =VLOOKUP(B12,'Wilo Price List'!B:G,5,FALSE) -> 2516 | G12: PG03 | H12: 320
B13: 2120866 | C13: IL32/170-3/2-IE3 | D13: 1 Pump | E13: CronoLine-IL | F13: =VLOOKUP(B13,'Wilo Price List'!B:G,5,FALSE) -> 2655 | G13: PG03 | H13: 320
B14: 2120867 | C14: IL32/170-4/2-IE3 | D14: 1 Pump | E14: CronoLine-IL | F14: =VLOOKUP(B14,'Wilo Price List'!B:G,5,FALSE) -> 2830 | G14: PG03 | H14: 320
B16: 2088320 | C16: IL40/140-0,25/4 | D16: 1 Pump | E16: CronoLine-IL | F16: =VLOOKUP(B16,'Wilo Price List'!B:G,5,FALSE) -> 2231 | G16: PG03 | H16: 340
B17: 2120868 | C17: IL40/140-2,2/2-IE3 | D17: 1 Pump | E17: CronoLine-IL | F17: =VLOOKUP(B17,'Wilo Price List'!B:G,5,FALSE) -> 2477 | G17: PG03 | H17: 340
B18: 2088318 | C18: IL40/150-0,37/4 | D18: 1 Pump | E18: CronoLine-IL | F18: =VLOOKUP(B18,'Wilo Price List'!B:G,5,FALSE) -> 2258 | G18: PG03 | H18: 340
B19: 2120869 | C19: IL40/150-3/2-IE3 | D19: 1 Pump | E19: CronoLine-IL | F19: =VLOOKUP(B19,'Wilo Price List'!B:G,5,FALSE) -> 2659 | G19: PG03 | H19: 340
B20: 2088316 | C20: IL40/160-0,55/4 | D20: 1 Pump | E20: CronoLine-IL | F20: =VLOOKUP(B20,'Wilo Price List'!B:G,5,FALSE) -> 2526 | G20: PG03 | H20: 340
B21: 2120870 | C21: IL40/160-4/2-IE3 | D21: 1 Pump | E21: CronoLine-IL | F21: =VLOOKUP(B21,'Wilo Price List'!B:G,5,FALSE) -> 2841 | G21: PG03 | H21: 340
B22: 2120750 | C22: IL40/170-0,75/4-IE3 | D22: 1 Pump | E22: CronoLine-IL | F22: =VLOOKUP(B22,'Wilo Price List'!B:G,5,FALSE) -> 2832 | G22: PG03 | H22: 340
B23: 2120871 | C23: IL40/170-5,5/2-IE3 | D23: 1 Pump | E23: CronoLine-IL | F23: =VLOOKUP(B23,'Wilo Price List'!B:G,5,FALSE) -> 3591 | G23: PG03 | H23: 340
B24: 2120872 | C24: IL40/200-7,5/2-IE3 | D24: 1 Pump | E24: CronoLine-IL | F24: =VLOOKUP(B24,'Wilo Price List'!B:G,5,FALSE) -> 3843 | G24: PG03 | H24: 440
B25: 2120751 | C25: IL40/210-1,1/4-IE3 | D25: 1 Pump | E25: CronoLine-IL | F25: =VLOOKUP(B25,'Wilo Price List'!B:G,5,FALSE) -> 2744 | G25: PG03 | H25: 440
B26: 2120752 | C26: IL40/220-1,5/4-IE3 | D26: 1 Pump | E26: CronoLine-IL | F26: =VLOOKUP(B26,'Wilo Price List'!B:G,5,FALSE) -> 2790 | G26: PG03 | H26: 440
B27: 2120873 | C27: IL40/220-11/2-IE3 | D27: 1 Pump | E27: CronoLine-IL | F27: =VLOOKUP(B27,'Wilo Price List'!B:G,5,FALSE) -> 4868 | G27: PG03 | H27: 440
B29: 2120874 | C29: IL50/110-1,5/2-IE3 | D29: 1 Pump | E29: CronoLine-IL | F29: =VLOOKUP(B29,'Wilo Price List'!B:G,5,FALSE) -> 2414 | G29: PG03 | H29: 340
B30: 2120875 | C30: IL50/120-2,2/2-IE3 | D30: 1 Pump | E30: CronoLine-IL | F30: =VLOOKUP(B30,'Wilo Price List'!B:G,5,FALSE) -> 2498 | G30: PG03 | H30: 340
B31: 2120876 | C31: IL50/130-3/2-IE3 | D31: 1 Pump | E31: CronoLine-IL | F31: =VLOOKUP(B31,'Wilo Price List'!B:G,5,FALSE) -> 2749 | G31: PG03 | H31: 340
B32: 2120877 | C32: IL50/140-3/2-IE3 | D32: 1 Pump | E32: CronoLine-IL | F32: =VLOOKUP(B32,'Wilo Price List'!B:G,5,FALSE) -> 2717 | G32: PG03 | H32: 340
B33: 2120878 | C33: IL50/140-4/2-IE3 | D33: 1 Pump | E33: CronoLine-IL | F33: =VLOOKUP(B33,'Wilo Price List'!B:G,5,FALSE) -> 2898 | G33: PG03 | H33: 340
B34: 2120753 | C34: IL50/160-0,75/4-IE3 | D34: 1 Pump | E34: CronoLine-IL | F34: =VLOOKUP(B34,'Wilo Price List'!B:G,5,FALSE) -> 2809 | G34: PG03 | H34: 340
B35: 2120879 | C35: IL50/160-5,5/2-IE3 | D35: 1 Pump | E35: CronoLine-IL | F35: =VLOOKUP(B35,'Wilo Price List'!B:G,5,FALSE) -> 3671 | G35: PG03 | H35: 340
B36: 2120754 | C36: IL50/170-1,1/4-IE3 | D36: 1 Pump | E36: CronoLine-IL | F36: =VLOOKUP(B36,'Wilo Price List'!B:G,5,FALSE) -> 2406 | G36: PG03 | H36: 340
B37: 2120880 | C37: IL50/170-5,5/2-IE3 | D37: 1 Pump | E37: CronoLine-IL | F37: =VLOOKUP(B37,'Wilo Price List'!B:G,5,FALSE) -> 3596 | G37: PG03 | H37: 340
B38: 2120881 | C38: IL50/170-7,5/2-IE3 | D38: 1 Pump | E38: CronoLine-IL | F38: =VLOOKUP(B38,'Wilo Price List'!B:G,5,FALSE) -> 3755 | G38: PG03 | H38: 340
B39: 2120882 | C39: IL50/180-7,5/2-IE3 | D39: 1 Pump | E39: CronoLine-IL | F39: =VLOOKUP(B39,'Wilo Price List'!B:G,5,FALSE) -> 3992 | G39: PG03 | H39: 440
B40: 2120755 | C40: IL50/200-1,5/4-IE3 | D40: 1 Pump | E40: CronoLine-IL | F40: =VLOOKUP(B40,'Wilo Price List'!B:G,5,FALSE) -> 2916 | G40: PG03 | H40: 440
B41: 2120883 | C41: IL50/210-11/2-IE3 | D41: 1 Pump | E41: CronoLine-IL | F41: =VLOOKUP(B41,'Wilo Price List'!B:G,5,FALSE) -> 4979 | G41: PG03 | H41: 440
B42: 2120884 | C42: IL50/220-11/2-IE3 | D42: 1 Pump | E42: CronoLine-IL | F42: =VLOOKUP(B42,'Wilo Price List'!B:G,5,FALSE) -> 4988 | G42: PG03 | H42: 440
B43: 2120885 | C43: IL50/220-15/2-IE3 | D43: 1 Pump | E43: CronoLine-IL | F43: =VLOOKUP(B43,'Wilo Price List'!B:G,5,FALSE) -> 5179 | G43: PG03 | H43: 440
B44: 2120756 | C44: IL50/220-2,2/4-IE3 | D44: 1 Pump | E44: CronoLine-IL | F44: =VLOOKUP(B44,'Wilo Price List'!B:G,5,FALSE) -> 3232 | G44: PG03 | H44: 440
B45: 2120886 | C45: IL50/250-18,5/2-IE3 | D45: 1 Pump | E45: CronoLine-IL | F45: =VLOOKUP(B45,'Wilo Price List'!B:G,5,FALSE) -> 6223 | G45: PG03 | H45: 440
B46: 2120887 | C46: IL50/250-22/2-IE3 | D46: 1 Pump | E46: CronoLine-IL | F46: =VLOOKUP(B46,'Wilo Price List'!B:G,5,FALSE) -> 7180 | G46: PG03 | H46: 440
B47: 2120757 | C47: IL50/260-3/4-IE3 | D47: 1 Pump | E47: CronoLine-IL | F47: =VLOOKUP(B47,'Wilo Price List'!B:G,5,FALSE) -> 3560 | G47: PG03 | H47: 440
B48: 2120888 | C48: IL50/270-22/2-IE3 | D48: 1 Pump | E48: CronoLine-IL | F48: =VLOOKUP(B48,'Wilo Price List'!B:G,5,FALSE) -> 7180 | G48: PG03 | H48: 440
B49: 2120758 | C49: IL50/270-3/4-IE3 | D49: 1 Pump | E49: CronoLine-IL | F49: =VLOOKUP(B49,'Wilo Price List'!B:G,5,FALSE) -> 3558 | G49: PG03 | H49: 440
B50: 2120889 | C50: IL50/270-30/2-IE3 | D50: 1 Pump | E50: CronoLine-IL | F50: =VLOOKUP(B50,'Wilo Price List'!B:G,5,FALSE) -> 7665 | G50: PG03 | H50: 440
B51: 2120759 | C51: IL50/270-4/4-IE3 | D51: 1 Pump | E51: CronoLine-IL | F51: =VLOOKUP(B51,'Wilo Price List'!B:G,5,FALSE) -> 3669 | G51: PG03 | H51: 440
B53: 2120890 | C53: IL65/110-3/2-IE3 | D53: 1 Pump | E53: CronoLine-IL | F53: =VLOOKUP(B53,'Wilo Price List'!B:G,5,FALSE) -> 2843 | G53: PG03 | H53: 340
B54: 2139459 | C54: IL65/120-0,55/4 | D54: 1 Pump | E54: CronoLine-IL | F54: =VLOOKUP(B54,'Wilo Price List'!B:G,5,FALSE) -> 2545 | G54: PG03 | H54: 340
B55: 2120891 | C55: IL65/120-3/2-IE3 | D55: 1 Pump | E55: CronoLine-IL | F55: =VLOOKUP(B55,'Wilo Price List'!B:G,5,FALSE) -> 2830 | G55: PG03 | H55: 340
B56: 2120892 | C56: IL65/120-4/2-IE3 | D56: 1 Pump | E56: CronoLine-IL | F56: =VLOOKUP(B56,'Wilo Price List'!B:G,5,FALSE) -> 3003 | G56: PG03 | H56: 340
B57: 2142041 | C57: IL65/130-0,75/4-IE3 | D57: 1 Pump | E57: CronoLine-IL | F57: =VLOOKUP(B57,'Wilo Price List'!B:G,5,FALSE) -> 2852 | G57: PG03 | H57: 340
B58: 2120893 | C58: IL65/130-4/2-IE3 | D58: 1 Pump | E58: CronoLine-IL | F58: =VLOOKUP(B58,'Wilo Price List'!B:G,5,FALSE) -> 2987 | G58: PG03 | H58: 340
B59: 2120894 | C59: IL65/130-5,5/2-IE3 | D59: 1 Pump | E59: CronoLine-IL | F59: =VLOOKUP(B59,'Wilo Price List'!B:G,5,FALSE) -> 3477 | G59: PG03 | H59: 340
B60: 2142042 | C60: IL65/140-1,1/4-IE3 | D60: 1 Pump | E60: CronoLine-IL | F60: =VLOOKUP(B60,'Wilo Price List'!B:G,5,FALSE) -> 2478 | G60: PG03 | H60: 340
B61: 2120895 | C61: IL65/140-5,5/2-IE3 | D61: 1 Pump | E61: CronoLine-IL | F61: =VLOOKUP(B61,'Wilo Price List'!B:G,5,FALSE) -> 3451 | G61: PG03 | H61: 340
B62: 2120896 | C62: IL65/140-7,5/2-IE3 | D62: 1 Pump | E62: CronoLine-IL | F62: =VLOOKUP(B62,'Wilo Price List'!B:G,5,FALSE) -> 3611 | G62: PG03 | H62: 340
B63: 2120760 | C63: IL65/150-0,75/4-IE3 | D63: 1 Pump | E63: CronoLine-IL | F63: =VLOOKUP(B63,'Wilo Price List'!B:G,5,FALSE) -> 3269 | G63: PG03 | H63: 430
B64: 2120897 | C64: IL65/150-5,5/2-IE3 | D64: 1 Pump | E64: CronoLine-IL | F64: =VLOOKUP(B64,'Wilo Price List'!B:G,5,FALSE) -> 4059 | G64: PG03 | H64: 430
B65: 2120761 | C65: IL65/160-1,1/4-IE3 | D65: 1 Pump | E65: CronoLine-IL | F65: =VLOOKUP(B65,'Wilo Price List'!B:G,5,FALSE) -> 2910 | G65: PG03 | H65: 430
B66: 2120898 | C66: IL65/160-5,5/2-IE3 | D66: 1 Pump | E66: CronoLine-IL | F66: =VLOOKUP(B66,'Wilo Price List'!B:G,5,FALSE) -> 4060 | G66: PG03 | H66: 430
B67: 2120899 | C67: IL65/160-7,5/2-IE3 | D67: 1 Pump | E67: CronoLine-IL | F67: =VLOOKUP(B67,'Wilo Price List'!B:G,5,FALSE) -> 4221 | G67: PG03 | H67: 430
B68: 2120762 | C68: IL65/170-1,1/4-IE3 | D68: 1 Pump | E68: CronoLine-IL | F68: =VLOOKUP(B68,'Wilo Price List'!B:G,5,FALSE) -> 2930 | G68: PG03 | H68: 430
B69: 2120763 | C69: IL65/170-1,5/4-IE3 | D69: 1 Pump | E69: CronoLine-IL | F69: =VLOOKUP(B69,'Wilo Price List'!B:G,5,FALSE) -> 2953 | G69: PG03 | H69: 430
B70: 2120900 | C70: IL65/170-11/2-IE3 | D70: 1 Pump | E70: CronoLine-IL | F70: =VLOOKUP(B70,'Wilo Price List'!B:G,5,FALSE) -> 5168 | G70: PG03 | H70: 430
B71: 2120901 | C71: IL65/200-11/2-IE3 | D71: 1 Pump | E71: CronoLine-IL | F71: =VLOOKUP(B71,'Wilo Price List'!B:G,5,FALSE) -> 5084 | G71: PG03 | H71: 475
B72: 2120902 | C72: IL65/200-15/2-IE3 | D72: 1 Pump | E72: CronoLine-IL | F72: =VLOOKUP(B72,'Wilo Price List'!B:G,5,FALSE) -> 5432 | G72: PG03 | H72: 475
B73: 2120903 | C73: IL65/210-15/2-IE3 | D73: 1 Pump | E73: CronoLine-IL | F73: =VLOOKUP(B73,'Wilo Price List'!B:G,5,FALSE) -> 5432 | G73: PG03 | H73: 475
B74: 2120904 | C74: IL65/210-18,5/2-IE3 | D74: 1 Pump | E74: CronoLine-IL | F74: =VLOOKUP(B74,'Wilo Price List'!B:G,5,FALSE) -> 6467 | G74: PG03 | H74: 475
B75: 2120764 | C75: IL65/210-2,2/4-IE3 | D75: 1 Pump | E75: CronoLine-IL | F75: =VLOOKUP(B75,'Wilo Price List'!B:G,5,FALSE) -> 3213 | G75: PG03 | H75: 475
B76: 2120905 | C76: IL65/220-18,5/2-IE3 | D76: 1 Pump | E76: CronoLine-IL | F76: =VLOOKUP(B76,'Wilo Price List'!B:G,5,FALSE) -> 6467 | G76: PG03 | H76: 475
B77: 2120765 | C77: IL65/220-2,2/4-IE3 | D77: 1 Pump | E77: CronoLine-IL | F77: =VLOOKUP(B77,'Wilo Price List'!B:G,5,FALSE) -> 3200 | G77: PG03 | H77: 475
B78: 2120906 | C78: IL65/220-22/2-IE3 | D78: 1 Pump | E78: CronoLine-IL | F78: =VLOOKUP(B78,'Wilo Price List'!B:G,5,FALSE) -> 7285 | G78: PG03 | H78: 475
B79: 2120766 | C79: IL65/220-3/4-IE3 | D79: 1 Pump | E79: CronoLine-IL | F79: =VLOOKUP(B79,'Wilo Price List'!B:G,5,FALSE) -> 3303 | G79: PG03 | H79: 475
B80: 2120907 | C80: IL65/240-30/2-IE3 | D80: 1 Pump | E80: CronoLine-IL | F80: =VLOOKUP(B80,'Wilo Price List'!B:G,5,FALSE) -> 8554 | G80: PG03 | H80: 475
B81: 2120767 | C81: IL65/250-3/4-IE3 | D81: 1 Pump | E81: CronoLine-IL | F81: =VLOOKUP(B81,'Wilo Price List'!B:G,5,FALSE) -> 3580 | G81: PG03 | H81: 475
B82: 2120768 | C82: IL65/250-4/4-IE3 | D82: 1 Pump | E82: CronoLine-IL | F82: =VLOOKUP(B82,'Wilo Price List'!B:G,5,FALSE) -> 3722 | G82: PG03 | H82: 475
B83: 2120908 | C83: IL65/260-30/2-IE3 | D83: 1 Pump | E83: CronoLine-IL | F83: =VLOOKUP(B83,'Wilo Price List'!B:G,5,FALSE) -> 8554 | G83: PG03 | H83: 475
B84: 2120909 | C84: IL65/260-37/2-IE3 | D84: 1 Pump | E84: CronoLine-IL | F84: =VLOOKUP(B84,'Wilo Price List'!B:G,5,FALSE) -> 10140 | G84: PG03 | H84: 475
B85: 2120769 | C85: IL65/270-4/4-IE3 | D85: 1 Pump | E85: CronoLine-IL | F85: =VLOOKUP(B85,'Wilo Price List'!B:G,5,FALSE) -> 3716 | G85: PG03 | H85: 475
B86: 2120770 | C86: IL65/270-5,5/4-IE3 | D86: 1 Pump | E86: CronoLine-IL | F86: =VLOOKUP(B86,'Wilo Price List'!B:G,5,FALSE) -> 4307 | G86: PG03 | H86: 475
B88: 2120910 | C88: IL80/110-3/2-IE3 | D88: 1 Pump | E88: CronoLine-IL | F88: =VLOOKUP(B88,'Wilo Price List'!B:G,5,FALSE) -> 2847 | G88: PG03 | H88: 400
B89: 2120911 | C89: IL80/120-4/2-IE3 | D89: 1 Pump | E89: CronoLine-IL | F89: =VLOOKUP(B89,'Wilo Price List'!B:G,5,FALSE) -> 3014 | G89: PG03 | H89: 400
B90: 2120912 | C90: IL80/130-5,5/2-IE3 | D90: 1 Pump | E90: CronoLine-IL | F90: =VLOOKUP(B90,'Wilo Price List'!B:G,5,FALSE) -> 3513 | G90: PG03 | H90: 400
B91: 2120913 | C91: IL80/140-7,5/2-IE3 | D91: 1 Pump | E91: CronoLine-IL | F91: =VLOOKUP(B91,'Wilo Price List'!B:G,5,FALSE) -> 3677 | G91: PG03 | H91: 400
B92: 2120771 | C92: IL80/145-1,1/4-IE3 | D92: 1 Pump | E92: CronoLine-IL | F92: =VLOOKUP(B92,'Wilo Price List'!B:G,5,FALSE) -> 3026 | G92: PG03 | H92: 440
B93: 2120772 | C93: IL80/150-1,1/4-IE3 | D93: 1 Pump | E93: CronoLine-IL | F93: =VLOOKUP(B93,'Wilo Price List'!B:G,5,FALSE) -> 3027 | G93: PG03 | H93: 440
B94: 2120914 | C94: IL80/150-7,5/2-IE3 | D94: 1 Pump | E94: CronoLine-IL | F94: =VLOOKUP(B94,'Wilo Price List'!B:G,5,FALSE) -> 4362 | G94: PG03 | H94: 440
B95: 2120773 | C95: IL80/160-1,5/4-IE3 | D95: 1 Pump | E95: CronoLine-IL | F95: =VLOOKUP(B95,'Wilo Price List'!B:G,5,FALSE) -> 3058 | G95: PG03 | H95: 440
B96: 2120915 | C96: IL80/160-11/2-IE3 | D96: 1 Pump | E96: CronoLine-IL | F96: =VLOOKUP(B96,'Wilo Price List'!B:G,5,FALSE) -> 5307 | G96: PG03 | H96: 440
B97: 2120916 | C97: IL80/170-11/2-IE3 | D97: 1 Pump | E97: CronoLine-IL | F97: =VLOOKUP(B97,'Wilo Price List'!B:G,5,FALSE) -> 5308 | G97: PG03 | H97: 440
B98: 2120917 | C98: IL80/170-15/2-IE3 | D98: 1 Pump | E98: CronoLine-IL | F98: =VLOOKUP(B98,'Wilo Price List'!B:G,5,FALSE) -> 5500 | G98: PG03 | H98: 440
B99: 2120774 | C99: IL80/170-2,2/4-IE3 | D99: 1 Pump | E99: CronoLine-IL | F99: =VLOOKUP(B99,'Wilo Price List'!B:G,5,FALSE) -> 3252 | G99: PG03 | H99: 440
B100: 2120918 | C100: IL80/190-15/2-IE3 | D100: 1 Pump | E100: CronoLine-IL | F100: =VLOOKUP(B100,'Wilo Price List'!B:G,5,FALSE) -> 5463 | G100: PG03 | H100: 500
B101: 2120919 | C101: IL80/190-18,5/2-IE3 | D101: 1 Pump | E101: CronoLine-IL | F101: =VLOOKUP(B101,'Wilo Price List'!B:G,5,FALSE) -> 6630 | G101: PG03 | H101: 500
B102: 2120920 | C102: IL80/200-18,5/2-IE3 | D102: 1 Pump | E102: CronoLine-IL | F102: =VLOOKUP(B102,'Wilo Price List'!B:G,5,FALSE) -> 6630 | G102: PG03 | H102: 500
B103: 2120921 | C103: IL80/200-22/2-IE3 | D103: 1 Pump | E103: CronoLine-IL | F103: =VLOOKUP(B103,'Wilo Price List'!B:G,5,FALSE) -> 7405 | G103: PG03 | H103: 500
B104: 2120775 | C104: IL80/210-3/4-IE3 | D104: 1 Pump | E104: CronoLine-IL | F104: =VLOOKUP(B104,'Wilo Price List'!B:G,5,FALSE) -> 3330 | G104: PG03 | H104: 500
B105: 2120922 | C105: IL80/210-30/2-IE3 | D105: 1 Pump | E105: CronoLine-IL | F105: =VLOOKUP(B105,'Wilo Price List'!B:G,5,FALSE) -> 8734 | G105: PG03 | H105: 500
B106: 2120923 | C106: IL80/220-22/2-IE3 | D106: 1 Pump | E106: CronoLine-IL | F106: =VLOOKUP(B106,'Wilo Price List'!B:G,5,FALSE) -> 7405 | G106: PG03 | H106: 500
B107: 2120924 | C107: IL80/220-30/2-IE3 | D107: 1 Pump | E107: CronoLine-IL | F107: =VLOOKUP(B107,'Wilo Price List'!B:G,5,FALSE) -> 8734 | G107: PG03 | H107: 500
B108: 2120776 | C108: IL80/220-4/4-IE3 | D108: 1 Pump | E108: CronoLine-IL | F108: =VLOOKUP(B108,'Wilo Price List'!B:G,5,FALSE) -> 3728 | G108: PG03 | H108: 500
B109: 2120777 | C109: IL80/270-5,5/4-IE3 | D109: 1 Pump | E109: CronoLine-IL | F109: =VLOOKUP(B109,'Wilo Price List'!B:G,5,FALSE) -> 4318 | G109: PG03 | H109: 500
B110: 2157053 | C110: IL80/285-5,5/4 | D110: 1 Pump | E110: CronoLine-IL | F110: =VLOOKUP(B110,'Wilo Price List'!B:G,5,FALSE) -> 4085 | G110: PG03
B111: 2157052 | C111: IL80/295-5,5/4 | D111: 1 Pump | E111: CronoLine-IL | F111: =VLOOKUP(B111,'Wilo Price List'!B:G,5,FALSE) -> 4085 | G111: PG03
B112: 2169789 | C112: IL80/295-7,5/4 | D112: 1 Pump | E112: CronoLine-IL | F112: =VLOOKUP(B112,'Wilo Price List'!B:G,5,FALSE) -> 4709 | G112: PG03
B113: 2157049 | C113: IL80/305-11/4 | D113: 1 Pump | E113: CronoLine-IL | F113: =VLOOKUP(B113,'Wilo Price List'!B:G,5,FALSE) -> 5946 | G113: PG03
B114: 2157051 | C114: IL80/305-7,5/4 | D114: 1 Pump | E114: CronoLine-IL | F114: =VLOOKUP(B114,'Wilo Price List'!B:G,5,FALSE) -> 4709 | G114: PG03
B115: 2157050 | C115: IL80/315-11/4 | D115: 1 Pump | E115: CronoLine-IL | F115: =VLOOKUP(B115,'Wilo Price List'!B:G,5,FALSE) -> 5946 | G115: PG03
B116: 2157048 | C116: IL80/315-15/4 | D116: 1 Pump | E116: CronoLine-IL | F116: =VLOOKUP(B116,'Wilo Price List'!B:G,5,FALSE) -> 7389 | G116: PG03
B118: 2120778 | C118: IL100/145-1,1/4-IE3 | D118: 1 Pump | E118: CronoLine-IL | F118: =VLOOKUP(B118,'Wilo Price List'!B:G,5,FALSE) -> 2998 | G118: PG03 | H118: 500
B119: 2120925 | C119: IL100/145-11/2-IE3 | D119: 1 Pump | E119: CronoLine-IL | F119: =VLOOKUP(B119,'Wilo Price List'!B:G,5,FALSE) -> 5307 | G119: PG03 | H119: 500
B120: 2120779 | C120: IL100/150-1,5/4-IE3 | D120: 1 Pump | E120: CronoLine-IL | F120: =VLOOKUP(B120,'Wilo Price List'!B:G,5,FALSE) -> 3769 | G120: PG03 | H120: 500
B121: 2120926 | C121: IL100/150-15/2-IE3 | D121: 1 Pump | E121: CronoLine-IL | F121: =VLOOKUP(B121,'Wilo Price List'!B:G,5,FALSE) -> 5974 | G121: PG03 | H121: 500
B122: 2120927 | C122: IL100/160-15/2-IE3 | D122: 1 Pump | E122: CronoLine-IL | F122: =VLOOKUP(B122,'Wilo Price List'!B:G,5,FALSE) -> 5974 | G122: PG03 | H122: 500
B123: 2120928 | C123: IL100/160-18,5/2-IE3 | D123: 1 Pump | E123: CronoLine-IL | F123: =VLOOKUP(B123,'Wilo Price List'!B:G,5,FALSE) -> 6971 | G123: PG03 | H123: 500
B124: 2120780 | C124: IL100/160-2,2/4-IE3 | D124: 1 Pump | E124: CronoLine-IL | F124: =VLOOKUP(B124,'Wilo Price List'!B:G,5,FALSE) -> 4025 | G124: PG03 | H124: 500
B125: 2120929 | C125: IL100/165-22/2-IE3 | D125: 1 Pump | E125: CronoLine-IL | F125: =VLOOKUP(B125,'Wilo Price List'!B:G,5,FALSE) -> 7853 | G125: PG03 | H125: 500
B126: 2120781 | C126: IL100/170-2,2/4-IE3 | D126: 1 Pump | E126: CronoLine-IL | F126: =VLOOKUP(B126,'Wilo Price List'!B:G,5,FALSE) -> 4025 | G126: PG03 | H126: 500
B127: 2120930 | C127: IL100/170-22/2-IE3 | D127: 1 Pump | E127: CronoLine-IL | F127: =VLOOKUP(B127,'Wilo Price List'!B:G,5,FALSE) -> 7853 | G127: PG03 | H127: 500
B128: 2120782 | C128: IL100/170-3/4-IE3 | D128: 1 Pump | E128: CronoLine-IL | F128: =VLOOKUP(B128,'Wilo Price List'!B:G,5,FALSE) -> 4072 | G128: PG03 | H128: 500
B129: 2120931 | C129: IL100/170-30/2-IE3 | D129: 1 Pump | E129: CronoLine-IL | F129: =VLOOKUP(B129,'Wilo Price List'!B:G,5,FALSE) -> 9594 | G129: PG03 | H129: 500
B130: 2120932 | C130: IL100/190-30/2-IE3 | D130: 1 Pump | E130: CronoLine-IL | F130: =VLOOKUP(B130,'Wilo Price List'!B:G,5,FALSE) -> 9594 | G130: PG03 | H130: 550
B131: 2120783 | C131: IL100/200-3/4-IE3 | D131: 1 Pump | E131: CronoLine-IL | F131: =VLOOKUP(B131,'Wilo Price List'!B:G,5,FALSE) -> 4072 | G131: PG03 | H131: 550
B132: 2120784 | C132: IL100/200-4/4-IE3 | D132: 1 Pump | E132: CronoLine-IL | F132: =VLOOKUP(B132,'Wilo Price List'!B:G,5,FALSE) -> 4856 | G132: PG03 | H132: 550
B133: 2120933 | C133: IL100/210-30/2-IE3 | D133: 1 Pump | E133: CronoLine-IL | F133: =VLOOKUP(B133,'Wilo Price List'!B:G,5,FALSE) -> 9594 | G133: PG03 | H133: 550
B134: 2120934 | C134: IL100/210-37/2-IE3 | D134: 1 Pump | E134: CronoLine-IL | F134: =VLOOKUP(B134,'Wilo Price List'!B:G,5,FALSE) -> 12217 | G134: PG03 | H134: 550
B135: 2120785 | C135: IL100/220-4/4-IE3 | D135: 1 Pump | E135: CronoLine-IL | F135: =VLOOKUP(B135,'Wilo Price List'!B:G,5,FALSE) -> 4856 | G135: PG03 | H135: 550
B136: 2120786 | C136: IL100/220-5,5/4-IE3 | D136: 1 Pump | E136: CronoLine-IL | F136: =VLOOKUP(B136,'Wilo Price List'!B:G,5,FALSE) -> 5582 | G136: PG03 | H136: 550
B137: 2120787 | C137: IL100/250-5,5/4-IE3 | D137: 1 Pump | E137: CronoLine-IL | F137: =VLOOKUP(B137,'Wilo Price List'!B:G,5,FALSE) -> 5582 | G137: PG03 | H137: 550
B138: 2120788 | C138: IL100/250-7,5/4-IE3 | D138: 1 Pump | E138: CronoLine-IL | F138: =VLOOKUP(B138,'Wilo Price List'!B:G,5,FALSE) -> 6276 | G138: PG03 | H138: 550
B139: 2120790 | C139: IL100/260-11/4-IE3 | D139: 1 Pump | E139: CronoLine-IL | F139: =VLOOKUP(B139,'Wilo Price List'!B:G,5,FALSE) -> 7516 | G139: PG03 | H139: 550
B140: 2120789 | C140: IL100/260-7,5/4-IE3 | D140: 1 Pump | E140: CronoLine-IL | F140: =VLOOKUP(B140,'Wilo Price List'!B:G,5,FALSE) -> 6276 | G140: PG03 | H140: 550
B141: 2160652 | C141: IL100/265-5,5/4 | D141: 1 Pump | E141: CronoLine-IL | F141: =VLOOKUP(B141,'Wilo Price List'!B:G,5,FALSE) -> 5582 | G141: PG03
B142: 2120791 | C142: IL100/270-11/4-IE3 | D142: 1 Pump | E142: CronoLine-IL | F142: =VLOOKUP(B142,'Wilo Price List'!B:G,5,FALSE) -> 7516 | G142: PG03 | H142: 550
B143: 2160651 | C143: IL100/275-7,5/4 | D143: 1 Pump | E143: CronoLine-IL | F143: =VLOOKUP(B143,'Wilo Price List'!B:G,5,FALSE) -> 6276 | G143: PG03
B144: 2160650 | C144: IL100/285-11/4 | D144: 1 Pump | E144: CronoLine-IL | F144: =VLOOKUP(B144,'Wilo Price List'!B:G,5,FALSE) -> 7706 | G144: PG03
B145: 2169793 | C145: IL100/295-11/4 | D145: 1 Pump | E145: CronoLine-IL | F145: =VLOOKUP(B145,'Wilo Price List'!B:G,5,FALSE) -> 7706 | G145: PG03
B146: 2160649 | C146: IL100/295-15/4 | D146: 1 Pump | E146: CronoLine-IL | F146: =VLOOKUP(B146,'Wilo Price List'!B:G,5,FALSE) -> 8672 | G146: PG03
B147: 2169792 | C147: IL100/305-15/4 | D147: 1 Pump | E147: CronoLine-IL | F147: =VLOOKUP(B147,'Wilo Price List'!B:G,5,FALSE) -> 8672 | G147: PG03
B148: 2160648 | C148: IL100/305-18,5/4 | D148: 1 Pump | E148: CronoLine-IL | F148: =VLOOKUP(B148,'Wilo Price List'!B:G,5,FALSE) -> 9175 | G148: PG03
B149: 2169791 | C149: IL100/315-18,5/4 | D149: 1 Pump | E149: CronoLine-IL | F149: =VLOOKUP(B149,'Wilo Price List'!B:G,5,FALSE) -> 9175 | G149: PG03
B150: 2160647 | C150: IL100/315-22/4 | D150: 1 Pump | E150: CronoLine-IL | F150: =VLOOKUP(B150,'Wilo Price List'!B:G,5,FALSE) -> 9572 | G150: PG03
B151: 2160880 | C151: IL100/350-11/4 | D151: 1 Pump | E151: CronoLine-IL | F151: =VLOOKUP(B151,'Wilo Price List'!B:G,5,FALSE) -> 14319 | G151: PG03 | H151: 760
B152: 2151501 | C152: IL100/350-15/4 | D152: 1 Pump | E152: CronoLine-IL | F152: =VLOOKUP(B152,'Wilo Price List'!B:G,5,FALSE) -> 14493 | G152: PG03 | H152: 760
B153: 2160879 | C153: IL100/360-15/4 | D153: 1 Pump | E153: CronoLine-IL | F153: =VLOOKUP(B153,'Wilo Price List'!B:G,5,FALSE) -> 14257 | G153: PG03 | H153: 760
B154: 2151500 | C154: IL100/360-18,5/4 | D154: 1 Pump | E154: CronoLine-IL | F154: =VLOOKUP(B154,'Wilo Price List'!B:G,5,FALSE) -> 14894 | G154: PG03 | H154: 760
B155: 2160878 | C155: IL100/370-18,5/4 | D155: 1 Pump | E155: CronoLine-IL | F155: =VLOOKUP(B155,'Wilo Price List'!B:G,5,FALSE) -> 14894 | G155: PG03 | H155: 760
B156: 2151499 | C156: IL100/370-22/4 | D156: 1 Pump | E156: CronoLine-IL | F156: =VLOOKUP(B156,'Wilo Price List'!B:G,5,FALSE) -> 15034 | G156: PG03 | H156: 760
B157: 2160877 | C157: IL100/380-22/4 | D157: 1 Pump | E157: CronoLine-IL | F157: =VLOOKUP(B157,'Wilo Price List'!B:G,5,FALSE) -> 12611 | G157: PG03 | H157: 760
B158: 2151498 | C158: IL100/380-30/4 | D158: 1 Pump | E158: CronoLine-IL | F158: =VLOOKUP(B158,'Wilo Price List'!B:G,5,FALSE) -> 15095 | G158: PG03 | H158: 760
B159: 2160876 | C159: IL100/390-30/4 | D159: 1 Pump | E159: CronoLine-IL | F159: =VLOOKUP(B159,'Wilo Price List'!B:G,5,FALSE) -> 12990 | G159: PG03 | H159: 760
B160: 2151497 | C160: IL100/390-37/4 | D160: 1 Pump | E160: CronoLine-IL | F160: =VLOOKUP(B160,'Wilo Price List'!B:G,5,FALSE) -> 20858 | G160: PG03 | H160: 760
B161: 2160875 | C161: IL100/400-37/4 | D161: 1 Pump | E161: CronoLine-IL | F161: =VLOOKUP(B161,'Wilo Price List'!B:G,5,FALSE) -> 21284 | G161: PG03 | H161: 760
B162: 2151496 | C162: IL100/400-45/4 | D162: 1 Pump | E162: CronoLine-IL | F162: =VLOOKUP(B162,'Wilo Price List'!B:G,5,FALSE) -> 21835 | G162: PG03 | H162: 760
B164: 2120792 | C164: IL125/145-1,5/4-IE3 | D164: 1 Pump | E164: CronoLine-IL | F164: =VLOOKUP(B164,'Wilo Price List'!B:G,5,FALSE) -> 4385 | G164: PG03 | H164: 620
B165: 2120935 | C165: IL125/145-15/2-IE3 | D165: 1 Pump | E165: CronoLine-IL | F165: =VLOOKUP(B165,'Wilo Price List'!B:G,5,FALSE) -> 8196 | G165: PG03 | H165: 620
B166: 2120936 | C166: IL125/150-18,5/2-IE3 | D166: 1 Pump | E166: CronoLine-IL | F166: =VLOOKUP(B166,'Wilo Price List'!B:G,5,FALSE) -> 8954 | G166: PG03 | H166: 620
B167: 2120793 | C167: IL125/150-2,2/4-IE3 | D167: 1 Pump | E167: CronoLine-IL | F167: =VLOOKUP(B167,'Wilo Price List'!B:G,5,FALSE) -> 4598 | G167: PG03 | H167: 620
B168: 2120937 | C168: IL125/160-22/2-IE3 | D168: 1 Pump | E168: CronoLine-IL | F168: =VLOOKUP(B168,'Wilo Price List'!B:G,5,FALSE) -> 9936 | G168: PG03 | H168: 620
B169: 2120794 | C169: IL125/160-3/4-IE3 | D169: 1 Pump | E169: CronoLine-IL | F169: =VLOOKUP(B169,'Wilo Price List'!B:G,5,FALSE) -> 4685 | G169: PG03 | H169: 620
B170: 2120938 | C170: IL125/165-30/2-IE3 | D170: 1 Pump | E170: CronoLine-IL | F170: =VLOOKUP(B170,'Wilo Price List'!B:G,5,FALSE) -> 11980 | G170: PG03 | H170: 620
B171: 2120939 | C171: IL125/170-37/2-IE3 | D171: 1 Pump | E171: CronoLine-IL | F171: =VLOOKUP(B171,'Wilo Price List'!B:G,5,FALSE) -> 12752 | G171: PG03 | H171: 620
B172: 2120795 | C172: IL125/170-4/4-IE3 | D172: 1 Pump | E172: CronoLine-IL | F172: =VLOOKUP(B172,'Wilo Price List'!B:G,5,FALSE) -> 4970 | G172: PG03 | H172: 620
B173: 2120796 | C173: IL125/190-4/4-IE3 | D173: 1 Pump | E173: CronoLine-IL | F173: =VLOOKUP(B173,'Wilo Price List'!B:G,5,FALSE) -> 4970 | G173: PG03 | H173: 620
B174: 2120797 | C174: IL125/210-5,5/4-IE3 | D174: 1 Pump | E174: CronoLine-IL | F174: =VLOOKUP(B174,'Wilo Price List'!B:G,5,FALSE) -> 5701 | G174: PG03 | H174: 620
B175: 2120798 | C175: IL125/220-5,5/4-IE3 | D175: 1 Pump | E175: CronoLine-IL | F175: =VLOOKUP(B175,'Wilo Price List'!B:G,5,FALSE) -> 5701 | G175: PG03 | H175: 620
B176: 2120799 | C176: IL125/220-7,5/4-IE3 | D176: 1 Pump | E176: CronoLine-IL | F176: =VLOOKUP(B176,'Wilo Price List'!B:G,5,FALSE) -> 6726 | G176: PG03 | H176: 620
B177: 2120800 | C177: IL125/250-11/4-IE3 | D177: 1 Pump | E177: CronoLine-IL | F177: =VLOOKUP(B177,'Wilo Price List'!B:G,5,FALSE) -> 7690 | G177: PG03 | H177: 620
B178: 2120801 | C178: IL125/270-11/4-IE3 | D178: 1 Pump | E178: CronoLine-IL | F178: =VLOOKUP(B178,'Wilo Price List'!B:G,5,FALSE) -> 7690 | G178: PG03 | H178: 620
B179: 2120802 | C179: IL125/270-15/4-IE3 | D179: 1 Pump | E179: CronoLine-IL | F179: =VLOOKUP(B179,'Wilo Price List'!B:G,5,FALSE) -> 8973 | G179: PG03 | H179: 620
B180: 2120803 | C180: IL125/300-15/4-IE3 | D180: 1 Pump | E180: CronoLine-IL | F180: =VLOOKUP(B180,'Wilo Price List'!B:G,5,FALSE) -> 8973 | G180: PG03 | H180: 700
B181: 2120804 | C181: IL125/300-18,5/4-IE3 | D181: 1 Pump | E181: CronoLine-IL | F181: =VLOOKUP(B181,'Wilo Price List'!B:G,5,FALSE) -> 9564 | G181: PG03 | H181: 700
B182: 2120805 | C182: IL125/320-18,5/4-IE3 | D182: 1 Pump | E182: CronoLine-IL | F182: =VLOOKUP(B182,'Wilo Price List'!B:G,5,FALSE) -> 9564 | G182: PG03 | H182: 700
B183: 2120806 | C183: IL125/320-22/4-IE3 | D183: 1 Pump | E183: CronoLine-IL | F183: =VLOOKUP(B183,'Wilo Price List'!B:G,5,FALSE) -> 10315 | G183: PG03 | H183: 700
B184: 2120807 | C184: IL125/340-22/4-IE3 | D184: 1 Pump | E184: CronoLine-IL | F184: =VLOOKUP(B184,'Wilo Price List'!B:G,5,FALSE) -> 10315 | G184: PG03 | H184: 700
B185: 2120808 | C185: IL125/340-30/4-IE3 | D185: 1 Pump | E185: CronoLine-IL | F185: =VLOOKUP(B185,'Wilo Price List'!B:G,5,FALSE) -> 10985 | G185: PG03 | H185: 700
B186: 2169767 | C186: IL125/380-30/4 | D186: 1 Pump | E186: CronoLine-IL | F186: =VLOOKUP(B186,'Wilo Price List'!B:G,5,FALSE) -> 13796 | G186: PG03 | H186: 860
B187: 2160655 | C187: IL125/380-37/4 | D187: 1 Pump | E187: CronoLine-IL | F187: =VLOOKUP(B187,'Wilo Price List'!B:G,5,FALSE) -> 20213 | G187: PG03 | H187: 860
B188: 2169766 | C188: IL125/390-37/4 | D188: 1 Pump | E188: CronoLine-IL | F188: =VLOOKUP(B188,'Wilo Price List'!B:G,5,FALSE) -> 20213 | G188: PG03 | H188: 860
B189: 2160654 | C189: IL125/390-45/4 | D189: 1 Pump | E189: CronoLine-IL | F189: =VLOOKUP(B189,'Wilo Price List'!B:G,5,FALSE) -> 20761 | G189: PG03 | H189: 860
B190: 2169765 | C190: IL125/400-45/4 | D190: 1 Pump | E190: CronoLine-IL | F190: =VLOOKUP(B190,'Wilo Price List'!B:G,5,FALSE) -> 20761 | G190: PG03 | H190: 860
B191: 2160653 | C191: IL125/400-55/4 | D191: 1 Pump | E191: CronoLine-IL | F191: =VLOOKUP(B191,'Wilo Price List'!B:G,5,FALSE) -> 22097 | G191: PG03 | H191: 860
B193: 2120809 | C193: IL150/190-5,5/4-IE3 | D193: 1 Pump | E193: CronoLine-IL | F193: =VLOOKUP(B193,'Wilo Price List'!B:G,5,FALSE) -> 5769 | G193: PG03 | H193: 700
B194: 2120810 | C194: IL150/200-7,5/4-IE3 | D194: 1 Pump | E194: CronoLine-IL | F194: =VLOOKUP(B194,'Wilo Price List'!B:G,5,FALSE) -> 7552 | G194: PG03 | H194: 700
B195: 2120811 | C195: IL150/220-11/4-IE3 | D195: 1 Pump | E195: CronoLine-IL | F195: =VLOOKUP(B195,'Wilo Price List'!B:G,5,FALSE) -> 7930 | G195: PG03 | H195: 700
B196: 2120812 | C196: IL150/250-15/4-IE3 | D196: 1 Pump | E196: CronoLine-IL | F196: =VLOOKUP(B196,'Wilo Price List'!B:G,5,FALSE) -> 9029 | G196: PG03 | H196: 700
B197: 2120813 | C197: IL150/260-15/4-IE3 | D197: 1 Pump | E197: CronoLine-IL | F197: =VLOOKUP(B197,'Wilo Price List'!B:G,5,FALSE) -> 9029 | G197: PG03 | H197: 700
B198: 2120814 | C198: IL150/260-18,5/4-IE3 | D198: 1 Pump | E198: CronoLine-IL | F198: =VLOOKUP(B198,'Wilo Price List'!B:G,5,FALSE) -> 10427 | G198: PG03 | H198: 700
B199: 2120815 | C199: IL150/270-18,5/4-IE3 | D199: 1 Pump | E199: CronoLine-IL | F199: =VLOOKUP(B199,'Wilo Price List'!B:G,5,FALSE) -> 10427 | G199: PG03 | H199: 700
B200: 2120816 | C200: IL150/270-22/4-IE3 | D200: 1 Pump | E200: CronoLine-IL | F200: =VLOOKUP(B200,'Wilo Price List'!B:G,5,FALSE) -> 11318 | G200: PG03 | H200: 700
B201: 2142043 | C201: IL150/305-30/4-IE3 | D201: 1 Pump | E201: CronoLine-IL | F201: =VLOOKUP(B201,'Wilo Price List'!B:G,5,FALSE) -> 14595 | G201: PG03 | H201: 770
B202: 2142044 | C202: IL150/325-30/4-IE3 | D202: 1 Pump | E202: CronoLine-IL | F202: =VLOOKUP(B202,'Wilo Price List'!B:G,5,FALSE) -> 14595 | G202: PG03 | H202: 770
B203: 2142045 | C203: IL150/325-37/4-IE3 | D203: 1 Pump | E203: CronoLine-IL | F203: =VLOOKUP(B203,'Wilo Price List'!B:G,5,FALSE) -> 15416 | G203: PG03 | H203: 770
B204: 2142046 | C204: IL150/335-37/4-IE3 | D204: 1 Pump | E204: CronoLine-IL | F204: =VLOOKUP(B204,'Wilo Price List'!B:G,5,FALSE) -> 15416 | G204: PG03 | H204: 770
B205: 2142047 | C205: IL150/335-45/4-IE3 | D205: 1 Pump | E205: CronoLine-IL | F205: =VLOOKUP(B205,'Wilo Price List'!B:G,5,FALSE) -> 18106 | G205: PG03 | H205: 770
B206: 2169772 | C206: IL150/360-30/4 | D206: 1 Pump | E206: CronoLine-IL | F206: =VLOOKUP(B206,'Wilo Price List'!B:G,5,FALSE) -> 14595 | G206: PG03 | H206: 940
B207: 2160663 | C207: IL150/360-37/4 | D207: 1 Pump | E207: CronoLine-IL | F207: =VLOOKUP(B207,'Wilo Price List'!B:G,5,FALSE) -> 19588 | G207: PG03 | H207: 940
B208: 2169771 | C208: IL150/370-37/4 | D208: 1 Pump | E208: CronoLine-IL | F208: =VLOOKUP(B208,'Wilo Price List'!B:G,5,FALSE) -> 19588 | G208: PG03 | H208: 940
B209: 2160662 | C209: IL150/370-45/4 | D209: 1 Pump | E209: CronoLine-IL | F209: =VLOOKUP(B209,'Wilo Price List'!B:G,5,FALSE) -> 20136 | G209: PG03 | H209: 940
B210: 2169770 | C210: IL150/380-45/4 | D210: 1 Pump | E210: CronoLine-IL | F210: =VLOOKUP(B210,'Wilo Price List'!B:G,5,FALSE) -> 20136 | G210: PG03 | H210: 940
... 56 more rows

Sheet IPL
B2: IPL | J2: Home
B5: Article No. (or variant) | C5: Article description | D5: Type (Pump / Accessory / Spare Part / Addon / Service) | E5: Product range | F5: List Price | G5: Price group | H5: Port to Port (MM)
B6: 2089569 | C6: IPL25/70-0,12/2 | D6: 1 Pump | E6: VeroLine-IPL | F6: =VLOOKUP(B6,'Wilo Price List'!B:G,5,FALSE) -> 1047 | G6: PG03 | H6: 180
B7: 2089570 | C7: IPL25/80-0,12/2 | D7: 1 Pump | E7: VeroLine-IPL | F7: =VLOOKUP(B7,'Wilo Price List'!B:G,5,FALSE) -> 1043 | G7: PG03 | H7: 180
B8: 2089571 | C8: IPL25/85-0,18/2 | D8: 1 Pump | E8: VeroLine-IPL | F8: =VLOOKUP(B8,'Wilo Price List'!B:G,5,FALSE) -> 1091 | G8: PG03 | H8: 180
B9: 2089572 | C9: IPL25/90-0,25/2 | D9: 1 Pump | E9: VeroLine-IPL | F9: =VLOOKUP(B9,'Wilo Price List'!B:G,5,FALSE) -> 1102 | G9: PG03 | H9: 180
B11: 2089573 | C11: IPL30/70-0,12/2 | D11: 1 Pump | E11: VeroLine-IPL | F11: =VLOOKUP(B11,'Wilo Price List'!B:G,5,FALSE) -> 1049 | G11: PG03 | H11: 180
B12: 2089574 | C12: IPL30/80-0,12/2 | D12: 1 Pump | E12: VeroLine-IPL | F12: =VLOOKUP(B12,'Wilo Price List'!B:G,5,FALSE) -> 1046 | G12: PG03 | H12: 180
B13: 2089575 | C13: IPL30/85-0,18/2 | D13: 1 Pump | E13: VeroLine-IPL | F13: =VLOOKUP(B13,'Wilo Price List'!B:G,5,FALSE) -> 1090 | G13: PG03 | H13: 180
B14: 2089576 | C14: IPL30/90-0,25/2 | D14: 1 Pump | E14: VeroLine-IPL | F14: =VLOOKUP(B14,'Wilo Price List'!B:G,5,FALSE) -> 1101 | G14: PG03 | H14: 180
B16: 2150342 | C16: IPL32/105-0,12/4 | D16: 1 Pump | E16: VeroLine-IPL | F16: =VLOOKUP(B16,'Wilo Price List'!B:G,5,FALSE) -> 1301 | G16: PG03 | H16: 260
B17: 2152928 | C17: IPL32/105-0,75/2-IE3 | D17: 1 Pump | E17: VeroLine-IPL | F17: =VLOOKUP(B17,'Wilo Price List'!B:G,5,FALSE) -> 1231 | G17: PG03 | H17: 260
B18: 2152929 | C18: IPL32/125-1,1/2-IE3 | D18: 1 Pump | E18: VeroLine-IPL | F18: =VLOOKUP(B18,'Wilo Price List'!B:G,5,FALSE) -> 1385 | G18: PG03 | H18: 260
B19: 2150343 | C19: IPL32/135-0,25/4 | D19: 1 Pump | E19: VeroLine-IPL | F19: =VLOOKUP(B19,'Wilo Price List'!B:G,5,FALSE) -> 1138 | G19: PG03 | H19: 260
B20: 2152930 | C20: IPL32/135-1,1/2-IE3 | D20: 1 Pump | E20: VeroLine-IPL | F20: =VLOOKUP(B20,'Wilo Price List'!B:G,5,FALSE) -> 1409 | G20: PG03 | H20: 260
B21: 2152931 | C21: IPL32/135-1,5/2-IE3 | D21: 1 Pump | E21: VeroLine-IPL | F21: =VLOOKUP(B21,'Wilo Price List'!B:G,5,FALSE) -> 1491 | G21: PG03 | H21: 260
B22: 2121199 | C22: IPL32/165-3/2-IE3 | D22: 1 Pump | E22: VeroLine-IPL | F22: =VLOOKUP(B22,'Wilo Price List'!B:G,5,FALSE) -> 2077 | G22: PG03 | H22: 320
B23: 2121200 | C23: IPL32/175-4/2-IE3 | D23: 1 Pump | E23: VeroLine-IPL | F23: =VLOOKUP(B23,'Wilo Price List'!B:G,5,FALSE) -> 2370 | G23: PG03 | H23: 320
B24: 2150335 | C24: IPL32/85-0,37/2 | D24: 1 Pump | E24: VeroLine-IPL | F24: =VLOOKUP(B24,'Wilo Price List'!B:G,5,FALSE) -> 1040 | G24: PG03 | H24: 260
B26: 2089553 | C26: IPL40/110-0,12/4 | D26: 1 Pump | E26: VeroLine-IPL | F26: =VLOOKUP(B26,'Wilo Price List'!B:G,5,FALSE) -> 1233 | G26: PG03 | H26: 250
B27: 2089585 | C27: IPL40/115-0,55/2 | D27: 1 Pump | E27: VeroLine-IPL | F27: =VLOOKUP(B27,'Wilo Price List'!B:G,5,FALSE) -> 1329 | G27: PG03 | H27: 250
B28: 2121201 | C28: IPL40/120-1,5/2-IE3 | D28: 1 Pump | E28: VeroLine-IPL | F28: =VLOOKUP(B28,'Wilo Price List'!B:G,5,FALSE) -> 1430 | G28: PG03 | H28: 320
B29: 2089554 | C29: IPL40/130-0,25/4 | D29: 1 Pump | E29: VeroLine-IPL | F29: =VLOOKUP(B29,'Wilo Price List'!B:G,5,FALSE) -> 1132 | G29: PG03 | H29: 320
B30: 2121202 | C30: IPL40/130-2,2/2-IE3 | D30: 1 Pump | E30: VeroLine-IPL | F30: =VLOOKUP(B30,'Wilo Price List'!B:G,5,FALSE) -> 1598 | G30: PG03 | H30: 320
B31: 2121203 | C31: IPL40/150-3/2-IE3 | D31: 1 Pump | E31: VeroLine-IPL | F31: =VLOOKUP(B31,'Wilo Price List'!B:G,5,FALSE) -> 1911 | G31: PG03 | H31: 320
B32: 2089555 | C32: IPL40/160-0,37/4 | D32: 1 Pump | E32: VeroLine-IPL | F32: =VLOOKUP(B32,'Wilo Price List'!B:G,5,FALSE) -> 1354 | G32: PG03 | H32: 320
B33: 2121204 | C33: IPL40/160-4/2-IE3 | D33: 1 Pump | E33: VeroLine-IPL | F33: =VLOOKUP(B33,'Wilo Price List'!B:G,5,FALSE) -> 2039 | G33: PG03 | H33: 320
B34: 2121205 | C34: IPL40/165-4/2-IE3 | D34: 1 Pump | E34: VeroLine-IPL | F34: =VLOOKUP(B34,'Wilo Price List'!B:G,5,FALSE) -> 2324 | G34: PG03 | H34: 340
B35: 2121206 | C35: IPL40/175-5,5/2-IE3 | D35: 1 Pump | E35: VeroLine-IPL | F35: =VLOOKUP(B35,'Wilo Price List'!B:G,5,FALSE) -> 2955 | G35: PG03 | H35: 340
B36: 2121207 | C36: IPL40/195-7,5/2-IE3 | D36: 1 Pump | E36: VeroLine-IPL | F36: =VLOOKUP(B36,'Wilo Price List'!B:G,5,FALSE) -> 3119 | G36: PG03 | H36: 440
B37: 2155494 | C37: IPL40/75-0,12/2 | D37: 1 Pump | E37: VeroLine-IPL | F37: =VLOOKUP(B37,'Wilo Price List'!B:G,5,FALSE) -> 1290 | G37: PG03 | H37: 250
B38: 2089695 | C38: IPL40/80-0,09/4 | D38: 1 Pump | E38: VeroLine-IPL | F38: =VLOOKUP(B38,'Wilo Price List'!B:G,5,FALSE) -> 1587 | G38: PG03 | H38: 250
B39: 2089584 | C39: IPL40/90-0,37/2 | D39: 1 Pump | E39: VeroLine-IPL | F39: =VLOOKUP(B39,'Wilo Price List'!B:G,5,FALSE) -> 1199 | G39: PG03 | H39: 250
B41: 2150344 | C41: IPL50/105-0,12/4 | D41: 1 Pump | E41: VeroLine-IPL | F41: =VLOOKUP(B41,'Wilo Price List'!B:G,5,FALSE) -> 1116 | G41: PG03 | H41: 280
B42: 2152934 | C42: IPL50/105-0,75/2-IE3 | D42: 1 Pump | E42: VeroLine-IPL | F42: =VLOOKUP(B42,'Wilo Price List'!B:G,5,FALSE) -> 1583 | G42: PG03 | H42: 280
B43: 2112395 | C43: IPL50/120-0,25/4 | D43: 1 Pump | E43: VeroLine-IPL | F43: =VLOOKUP(B43,'Wilo Price List'!B:G,5,FALSE) -> 1265 | G43: PG03 | H43: 340
B44: 2121209 | C44: IPL50/120-1,5/2-IE3 | D44: 1 Pump | E44: VeroLine-IPL | F44: =VLOOKUP(B44,'Wilo Price List'!B:G,5,FALSE) -> 1628 | G44: PG03 | H44: 340
B45: 2089557 | C45: IPL50/130-0,37/4 | D45: 1 Pump | E45: VeroLine-IPL | F45: =VLOOKUP(B45,'Wilo Price List'!B:G,5,FALSE) -> 1389 | G45: PG03 | H45: 340
B46: 2121210 | C46: IPL50/130-2,2/2-IE3 | D46: 1 Pump | E46: VeroLine-IPL | F46: =VLOOKUP(B46,'Wilo Price List'!B:G,5,FALSE) -> 1729 | G46: PG03 | H46: 340
B47: 2121211 | C47: IPL50/140-3/2-IE3 | D47: 1 Pump | E47: VeroLine-IPL | F47: =VLOOKUP(B47,'Wilo Price List'!B:G,5,FALSE) -> 1938 | G47: PG03 | H47: 340
B48: 2121212 | C48: IPL50/150-4/2-IE3 | D48: 1 Pump | E48: VeroLine-IPL | F48: =VLOOKUP(B48,'Wilo Price List'!B:G,5,FALSE) -> 2061 | G48: PG03 | H48: 340
B49: 2121213 | C49: IPL50/155-4/2-IE3 | D49: 1 Pump | E49: VeroLine-IPL | F49: =VLOOKUP(B49,'Wilo Price List'!B:G,5,FALSE) -> 2364 | G49: PG03 | H49: 340
B50: 2089558 | C50: IPL50/160-0,55/4 | D50: 1 Pump | E50: VeroLine-IPL | F50: =VLOOKUP(B50,'Wilo Price List'!B:G,5,FALSE) -> 1557 | G50: PG03 | H50: 340
B51: 2121214 | C51: IPL50/165-5,5/2-IE3 | D51: 1 Pump | E51: VeroLine-IPL | F51: =VLOOKUP(B51,'Wilo Price List'!B:G,5,FALSE) -> 2898 | G51: PG03 | H51: 340
B52: 2121215 | C52: IPL50/175-5,5/2-IE3 | D52: 1 Pump | E52: VeroLine-IPL | F52: =VLOOKUP(B52,'Wilo Price List'!B:G,5,FALSE) -> 2898 | G52: PG03 | H52: 340
B53: 2121216 | C53: IPL50/175-7,5/2-IE3 | D53: 1 Pump | E53: VeroLine-IPL | F53: =VLOOKUP(B53,'Wilo Price List'!B:G,5,FALSE) -> 3033 | G53: PG03 | H53: 340
B54: 2121217 | C54: IPL50/185-7,5/2-IE3 | D54: 1 Pump | E54: VeroLine-IPL | F54: =VLOOKUP(B54,'Wilo Price List'!B:G,5,FALSE) -> 3229 | G54: PG03 | H54: 440
B55: 2152442 | C55: IPL50/95-0,55/2 | D55: 1 Pump | E55: VeroLine-IPL | F55: =VLOOKUP(B55,'Wilo Price List'!B:G,5,FALSE) -> 1490 | G55: PG03 | H55: 280
B57: 2129203 | C57: IPL65/110-0,25/4 | D57: 1 Pump | E57: VeroLine-IPL | F57: =VLOOKUP(B57,'Wilo Price List'!B:G,5,FALSE) -> 1484 | G57: PG03 | H57: 340
B58: 2121219 | C58: IPL65/110-2,2/2-IE3 | D58: 1 Pump | E58: VeroLine-IPL | F58: =VLOOKUP(B58,'Wilo Price List'!B:G,5,FALSE) -> 2011 | G58: PG03 | H58: 340
B59: 2121218 | C59: IPL65/115-1,5/2-IE3 | D59: 1 Pump | E59: VeroLine-IPL | F59: =VLOOKUP(B59,'Wilo Price List'!B:G,5,FALSE) -> 1934 | G59: PG03 | H59: 340
B60: 2129204 | C60: IPL65/120-0,37/4 | D60: 1 Pump | E60: VeroLine-IPL | F60: =VLOOKUP(B60,'Wilo Price List'!B:G,5,FALSE) -> 1557 | G60: PG03 | H60: 340
B61: 2121220 | C61: IPL65/120-3/2-IE3 | D61: 1 Pump | E61: VeroLine-IPL | F61: =VLOOKUP(B61,'Wilo Price List'!B:G,5,FALSE) -> 2186 | G61: PG03 | H61: 340
B62: 2129205 | C62: IPL65/130-0,55/4 | D62: 1 Pump | E62: VeroLine-IPL | F62: =VLOOKUP(B62,'Wilo Price List'!B:G,5,FALSE) -> 1592 | G62: PG03 | H62: 340
B63: 2121221 | C63: IPL65/130-4/2-IE3 | D63: 1 Pump | E63: VeroLine-IPL | F63: =VLOOKUP(B63,'Wilo Price List'!B:G,5,FALSE) -> 2302 | G63: PG03 | H63: 340
B64: 2121222 | C64: IPL65/145-5,5/2-IE3 | D64: 1 Pump | E64: VeroLine-IPL | F64: =VLOOKUP(B64,'Wilo Price List'!B:G,5,FALSE) -> 2776 | G64: PG03 | H64: 340
B65: 2121223 | C65: IPL65/155-5,5/2-IE3 | D65: 1 Pump | E65: VeroLine-IPL | F65: =VLOOKUP(B65,'Wilo Price List'!B:G,5,FALSE) -> 2747 | G65: PG03 | H65: 340
B66: 2121224 | C66: IPL65/155-7,5/2-IE3 | D66: 1 Pump | E66: VeroLine-IPL | F66: =VLOOKUP(B66,'Wilo Price List'!B:G,5,FALSE) -> 2938 | G66: PG03 | H66: 340
B67: 2121225 | C67: IPL65/165-5,5/2-IE3 | D67: 1 Pump | E67: VeroLine-IPL | F67: =VLOOKUP(B67,'Wilo Price List'!B:G,5,FALSE) -> 3126 | G67: PG03 | H67: 430
B68: 2121226 | C68: IPL65/175-5,5/2-IE3 | D68: 1 Pump | E68: VeroLine-IPL | F68: =VLOOKUP(B68,'Wilo Price List'!B:G,5,FALSE) -> 3127 | G68: PG03 | H68: 430
B69: 2121227 | C69: IPL65/175-7,5/2-IE3 | D69: 1 Pump | E69: VeroLine-IPL | F69: =VLOOKUP(B69,'Wilo Price List'!B:G,5,FALSE) -> 3356 | G69: PG03 | H69: 430
B71: 2121229 | C71: IPL80/105-3/2-IE3 | D71: 1 Pump | E71: VeroLine-IPL | F71: =VLOOKUP(B71,'Wilo Price List'!B:G,5,FALSE) -> 2295 | G71: PG03 | H71: 360
B72: 2121189 | C72: IPL80/110-4/2-IE3 | D72: 1 Pump | E72: VeroLine-IPL | F72: =VLOOKUP(B72,'Wilo Price List'!B:G,5,FALSE) -> 2408 | G72: PG03 | H72: 360
B73: 2121228 | C73: IPL80/115-2,2/2-IE3 | D73: 1 Pump | E73: VeroLine-IPL | F73: =VLOOKUP(B73,'Wilo Price List'!B:G,5,FALSE) -> 2239 | G73: PG03 | H73: 360
B74: 2129206 | C74: IPL80/120-0,55/4 | D74: 1 Pump | E74: VeroLine-IPL | F74: =VLOOKUP(B74,'Wilo Price List'!B:G,5,FALSE) -> 1747 | G74: PG03 | H74: 360
B75: 2121230 | C75: IPL80/120-4/2-IE3 | D75: 1 Pump | E75: VeroLine-IPL | F75: =VLOOKUP(B75,'Wilo Price List'!B:G,5,FALSE) -> 2408 | G75: PG03 | H75: 360
B76: 2121190 | C76: IPL80/125-0,75/4-IE3 | D76: 1 Pump | E76: VeroLine-IPL | F76: =VLOOKUP(B76,'Wilo Price List'!B:G,5,FALSE) -> 1952 | G76: PG03 | H76: 360
B77: 2121191 | C77: IPL80/140-1,1/4-IE3 | D77: 1 Pump | E77: VeroLine-IPL | F77: =VLOOKUP(B77,'Wilo Price List'!B:G,5,FALSE) -> 2178 | G77: PG03 | H77: 360
B78: 2121231 | C78: IPL80/145-5,5/2-IE3 | D78: 1 Pump | E78: VeroLine-IPL | F78: =VLOOKUP(B78,'Wilo Price List'!B:G,5,FALSE) -> 3066 | G78: PG03 | H78: 400
B79: 2121232 | C79: IPL80/155-7,5/2-IE3 | D79: 1 Pump | E79: VeroLine-IPL | F79: =VLOOKUP(B79,'Wilo Price List'!B:G,5,FALSE) -> 3136 | G79: PG03 | H79: 440
B81: 2121192 | C81: IPL100/135-1,1/4-IE3 | D81: 1 Pump | E81: VeroLine-IPL | F81: =VLOOKUP(B81,'Wilo Price List'!B:G,5,FALSE) -> 3289 | G81: PG03 | H81: 500
B82: 2121193 | C82: IPL100/145-1,5/4-IE3 | D82: 1 Pump | E82: VeroLine-IPL | F82: =VLOOKUP(B82,'Wilo Price List'!B:G,5,FALSE) -> 3413 | G82: PG03 | H82: 500
B83: 2121194 | C83: IPL100/165-2,2/4-IE3 | D83: 1 Pump | E83: VeroLine-IPL | F83: =VLOOKUP(B83,'Wilo Price List'!B:G,5,FALSE) -> 3649 | G83: PG03 | H83: 500
B84: 2121195 | C84: IPL100/175-3/4-IE3 | D84: 1 Pump | E84: VeroLine-IPL | F84: =VLOOKUP(B84,'Wilo Price List'!B:G,5,FALSE) -> 3941 | G84: PG03 | H84: 500

Sheet DL
B2: DL | J2: Home
B5: Article No. (or variant) | C5: Article description | D5: Type (Pump / Accessory / Spare Part / Addon / Service) | E5: Product range | F5: List Price | G5: Price group | H5: Port to Port (MM)
B6: 2089227 | C6: DL32/140-0,25/4 | D6: 1 Pump | E6: CronoTwin-DL | F6: =VLOOKUP(B6,'Wilo Price List'!B:G,5,FALSE) -> 4722 | G6: PG03 | H6: 320
B7: 2121010 | C7: DL32/140-1,5/2-IE3 | D7: 1 Pump | E7: CronoTwin-DL | F7: =VLOOKUP(B7,'Wilo Price List'!B:G,5,FALSE) -> 4955 | G7: PG03 | H7: 320
B8: 2089226 | C8: DL32/150-0,37/4 | D8: 1 Pump | E8: CronoTwin-DL | F8: =VLOOKUP(B8,'Wilo Price List'!B:G,5,FALSE) -> 4756 | G8: PG03 | H8: 320
B9: 2121011 | C9: DL32/150-2,2/2-IE3 | D9: 1 Pump | E9: CronoTwin-DL | F9: =VLOOKUP(B9,'Wilo Price List'!B:G,5,FALSE) -> 5067 | G9: PG03 | H9: 320
B10: 2121012 | C10: DL32/160-2,2/2-IE3 | D10: 1 Pump | E10: CronoTwin-DL | F10: =VLOOKUP(B10,'Wilo Price List'!B:G,5,FALSE) -> 5060 | G10: PG03 | H10: 320
B11: 2121013 | C11: DL32/160-3/2-IE3 | D11: 1 Pump | E11: CronoTwin-DL | F11: =VLOOKUP(B11,'Wilo Price List'!B:G,5,FALSE) -> 5400 | G11: PG03 | H11: 320
B12: 2063734 | C12: DL32/170-0,55/4 | D12: 1 Pump | E12: CronoTwin-DL | F12: =VLOOKUP(B12,'Wilo Price List'!B:G,5,FALSE) -> 5189 | G12: PG03 | H12: 320
B13: 2121014 | C13: DL32/170-3/2-IE3 | D13: 1 Pump | E13: CronoTwin-DL | F13: =VLOOKUP(B13,'Wilo Price List'!B:G,5,FALSE) -> 5391 | G13: PG03 | H13: 320
B14: 2121015 | C14: DL32/170-4/2-IE3 | D14: 1 Pump | E14: CronoTwin-DL | F14: =VLOOKUP(B14,'Wilo Price List'!B:G,5,FALSE) -> 5741 | G14: PG03 | H14: 320
B16: 2089239 | C16: DL40/140-0,25/4 | D16: 1 Pump | E16: CronoTwin-DL | F16: =VLOOKUP(B16,'Wilo Price List'!B:G,5,FALSE) -> 4715 | G16: PG03 | H16: 340
B17: 2121016 | C17: DL40/140-2,2/2-IE3 | D17: 1 Pump | E17: CronoTwin-DL | F17: =VLOOKUP(B17,'Wilo Price List'!B:G,5,FALSE) -> 5064 | G17: PG03 | H17: 340
B18: 2089238 | C18: DL40/150-0,37/4 | D18: 1 Pump | E18: CronoTwin-DL | F18: =VLOOKUP(B18,'Wilo Price List'!B:G,5,FALSE) -> 4769 | G18: PG03 | H18: 340
B19: 2121017 | C19: DL40/150-3/2-IE3 | D19: 1 Pump | E19: CronoTwin-DL | F19: =VLOOKUP(B19,'Wilo Price List'!B:G,5,FALSE) -> 5414 | G19: PG03 | H19: 340
B20: 2089237 | C20: DL40/160-0,55/4 | D20: 1 Pump | E20: CronoTwin-DL | F20: =VLOOKUP(B20,'Wilo Price List'!B:G,5,FALSE) -> 5169 | G20: PG03 | H20: 340
B21: 2121018 | C21: DL40/160-4/2-IE3 | D21: 1 Pump | E21: CronoTwin-DL | F21: =VLOOKUP(B21,'Wilo Price List'!B:G,5,FALSE) -> 5772 | G21: PG03 | H21: 340
B22: 2120943 | C22: DL40/170-0,75/4-IE3 | D22: 1 Pump | E22: CronoTwin-DL | F22: =VLOOKUP(B22,'Wilo Price List'!B:G,5,FALSE) -> 5786 | G22: PG03 | H22: 340
B23: 2121019 | C23: DL40/170-5,5/2-IE3 | D23: 1 Pump | E23: CronoTwin-DL | F23: =VLOOKUP(B23,'Wilo Price List'!B:G,5,FALSE) -> 7363 | G23: PG03 | H23: 340
B24: 2121020 | C24: DL40/200-7,5/2-IE3 | D24: 1 Pump | E24: CronoTwin-DL | F24: =VLOOKUP(B24,'Wilo Price List'!B:G,5,FALSE) -> 7193 | G24: PG03 | H24: 440
B25: 2120944 | C25: DL40/210-1,1/4-IE3 | D25: 1 Pump | E25: CronoTwin-DL | F25: =VLOOKUP(B25,'Wilo Price List'!B:G,5,FALSE) -> 4850 | G25: PG03 | H25: 440
B26: 2120945 | C26: DL40/220-1,5/4-IE3 | D26: 1 Pump | E26: CronoTwin-DL | F26: =VLOOKUP(B26,'Wilo Price List'!B:G,5,FALSE) -> 4944 | G26: PG03 | H26: 440
B27: 2121021 | C27: DL40/220-11/2-IE3 | D27: 1 Pump | E27: CronoTwin-DL | F27: =VLOOKUP(B27,'Wilo Price List'!B:G,5,FALSE) -> 9221 | G27: PG03 | H27: 440
B29: 2121022 | C29: DL50/110-1,5/2-IE3 | D29: 1 Pump | E29: CronoTwin-DL | F29: =VLOOKUP(B29,'Wilo Price List'!B:G,5,FALSE) -> 4837 | G29: PG03 | H29: 340
B30: 2121023 | C30: DL50/120-2,2/2-IE3 | D30: 1 Pump | E30: CronoTwin-DL | F30: =VLOOKUP(B30,'Wilo Price List'!B:G,5,FALSE) -> 4989 | G30: PG03 | H30: 340
B31: 2121024 | C31: DL50/130-3/2-IE3 | D31: 1 Pump | E31: CronoTwin-DL | F31: =VLOOKUP(B31,'Wilo Price List'!B:G,5,FALSE) -> 5480 | G31: PG03 | H31: 340
B32: 2121025 | C32: DL50/140-3/2-IE3 | D32: 1 Pump | E32: CronoTwin-DL | F32: =VLOOKUP(B32,'Wilo Price List'!B:G,5,FALSE) -> 5414 | G32: PG03 | H32: 340
B33: 2121026 | C33: DL50/140-4/2-IE3 | D33: 1 Pump | E33: CronoTwin-DL | F33: =VLOOKUP(B33,'Wilo Price List'!B:G,5,FALSE) -> 5772 | G33: PG03 | H33: 340
B34: 2089253 | C34: DL50/150-0,55/4 | D34: 1 Pump | E34: CronoTwin-DL | F34: =VLOOKUP(B34,'Wilo Price List'!B:G,5,FALSE) -> 4937 | G34: PG03 | H34: 340
B35: 2120946 | C35: DL50/160-0,75/4-IE3 | D35: 1 Pump | E35: CronoTwin-DL | F35: =VLOOKUP(B35,'Wilo Price List'!B:G,5,FALSE) -> 5542 | G35: PG03 | H35: 340
B36: 2121027 | C36: DL50/160-5,5/2-IE3 | D36: 1 Pump | E36: CronoTwin-DL | F36: =VLOOKUP(B36,'Wilo Price List'!B:G,5,FALSE) -> 7325 | G36: PG03 | H36: 340
B37: 2120947 | C37: DL50/170-1,1/4-IE3 | D37: 1 Pump | E37: CronoTwin-DL | F37: =VLOOKUP(B37,'Wilo Price List'!B:G,5,FALSE) -> 4738 | G37: PG03 | H37: 340
B38: 2121028 | C38: DL50/170-5,5/2-IE3 | D38: 1 Pump | E38: CronoTwin-DL | F38: =VLOOKUP(B38,'Wilo Price List'!B:G,5,FALSE) -> 7440 | G38: PG03 | H38: 340
B39: 2121029 | C39: DL50/170-7,5/2-IE3 | D39: 1 Pump | E39: CronoTwin-DL | F39: =VLOOKUP(B39,'Wilo Price List'!B:G,5,FALSE) -> 7491 | G39: PG03 | H39: 340
B40: 2121030 | C40: DL50/180-7,5/2-IE3 | D40: 1 Pump | E40: CronoTwin-DL | F40: =VLOOKUP(B40,'Wilo Price List'!B:G,5,FALSE) -> 7934 | G40: PG03 | H40: 440
B41: 2120948 | C41: DL50/200-1,5/4-IE3 | D41: 1 Pump | E41: CronoTwin-DL | F41: =VLOOKUP(B41,'Wilo Price List'!B:G,5,FALSE) -> 5523 | G41: PG03 | H41: 440
B42: 2121031 | C42: DL50/210-11/2-IE3 | D42: 1 Pump | E42: CronoTwin-DL | F42: =VLOOKUP(B42,'Wilo Price List'!B:G,5,FALSE) -> 9777 | G42: PG03 | H42: 440
B43: 2121032 | C43: DL50/220-11/2-IE3 | D43: 1 Pump | E43: CronoTwin-DL | F43: =VLOOKUP(B43,'Wilo Price List'!B:G,5,FALSE) -> 10058 | G43: PG03 | H43: 440
B44: 2121033 | C44: DL50/220-15/2-IE3 | D44: 1 Pump | E44: CronoTwin-DL | F44: =VLOOKUP(B44,'Wilo Price List'!B:G,5,FALSE) -> 10183 | G44: PG03 | H44: 440
B45: 2120949 | C45: DL50/220-2,2/4-IE3 | D45: 1 Pump | E45: CronoTwin-DL | F45: =VLOOKUP(B45,'Wilo Price List'!B:G,5,FALSE) -> 6085 | G45: PG03 | H45: 440
B46: 2120950 | C46: DL50/260-3/4-IE3 | D46: 1 Pump | E46: CronoTwin-DL | F46: =VLOOKUP(B46,'Wilo Price List'!B:G,5,FALSE) -> 6724 | G46: PG03 | H46: 440
B47: 2120951 | C47: DL50/270-3/4-IE3 | D47: 1 Pump | E47: CronoTwin-DL | F47: =VLOOKUP(B47,'Wilo Price List'!B:G,5,FALSE) -> 6722 | G47: PG03 | H47: 440
B48: 2120952 | C48: DL50/270-4/4-IE3 | D48: 1 Pump | E48: CronoTwin-DL | F48: =VLOOKUP(B48,'Wilo Price List'!B:G,5,FALSE) -> 7006 | G48: PG03 | H48: 440
B50: 2121034 | C50: DL65/110-3/2-IE3 | D50: 1 Pump | E50: CronoTwin-DL | F50: =VLOOKUP(B50,'Wilo Price List'!B:G,5,FALSE) -> 5775 | G50: PG03 | H50: 340
B51: 2139468 | C51: DL65/120-0,55/4 | D51: 1 Pump | E51: CronoTwin-DL | F51: =VLOOKUP(B51,'Wilo Price List'!B:G,5,FALSE) -> 5202 | G51: PG03 | H51: 340
B52: 2121035 | C52: DL65/120-3/2-IE3 | D52: 1 Pump | E52: CronoTwin-DL | F52: =VLOOKUP(B52,'Wilo Price List'!B:G,5,FALSE) -> 5749 | G52: PG03 | H52: 340
B53: 2121036 | C53: DL65/120-4/2-IE3 | D53: 1 Pump | E53: CronoTwin-DL | F53: =VLOOKUP(B53,'Wilo Price List'!B:G,5,FALSE) -> 6092 | G53: PG03 | H53: 340
B54: 2142054 | C54: DL65/130-0,75/4-IE3 | D54: 1 Pump | E54: CronoTwin-DL | F54: =VLOOKUP(B54,'Wilo Price List'!B:G,5,FALSE) -> 5815 | G54: PG03 | H54: 340
B55: 2121037 | C55: DL65/130-5,5/2-IE3 | D55: 1 Pump | E55: CronoTwin-DL | F55: =VLOOKUP(B55,'Wilo Price List'!B:G,5,FALSE) -> 7125 | G55: PG03 | H55: 340
B56: 2142055 | C56: DL65/140-1,1/4-IE3 | D56: 1 Pump | E56: CronoTwin-DL | F56: =VLOOKUP(B56,'Wilo Price List'!B:G,5,FALSE) -> 5069 | G56: PG03 | H56: 340
B57: 2121038 | C57: DL65/140-5,5/2-IE3 | D57: 1 Pump | E57: CronoTwin-DL | F57: =VLOOKUP(B57,'Wilo Price List'!B:G,5,FALSE) -> 7073 | G57: PG03 | H57: 340
B58: 2121039 | C58: DL65/140-7,5/2-IE3 | D58: 1 Pump | E58: CronoTwin-DL | F58: =VLOOKUP(B58,'Wilo Price List'!B:G,5,FALSE) -> 7598 | G58: PG03 | H58: 340
B59: 2120953 | C59: DL65/150-0,75/4-IE3 | D59: 1 Pump | E59: CronoTwin-DL | F59: =VLOOKUP(B59,'Wilo Price List'!B:G,5,FALSE) -> 5677 | G59: PG03 | H59: 430
B60: 2121040 | C60: DL65/150-5,5/2-IE3 | D60: 1 Pump | E60: CronoTwin-DL | F60: =VLOOKUP(B60,'Wilo Price List'!B:G,5,FALSE) -> 7331 | G60: PG03 | H60: 430
B61: 2120954 | C61: DL65/160-1,1/4-IE3 | D61: 1 Pump | E61: CronoTwin-DL | F61: =VLOOKUP(B61,'Wilo Price List'!B:G,5,FALSE) -> 4955 | G61: PG03 | H61: 430
B62: 2121041 | C62: DL65/160-5,5/2-IE3 | D62: 1 Pump | E62: CronoTwin-DL | F62: =VLOOKUP(B62,'Wilo Price List'!B:G,5,FALSE) -> 7334 | G62: PG03 | H62: 430
B63: 2121042 | C63: DL65/160-7,5/2-IE3 | D63: 1 Pump | E63: CronoTwin-DL | F63: =VLOOKUP(B63,'Wilo Price List'!B:G,5,FALSE) -> 7859 | G63: PG03 | H63: 430
B64: 2120955 | C64: DL65/170-1,1/4-IE3 | D64: 1 Pump | E64: CronoTwin-DL | F64: =VLOOKUP(B64,'Wilo Price List'!B:G,5,FALSE) -> 4941 | G64: PG03 | H64: 430
B65: 2120956 | C65: DL65/170-1,5/4-IE3 | D65: 1 Pump | E65: CronoTwin-DL | F65: =VLOOKUP(B65,'Wilo Price List'!B:G,5,FALSE) -> 5043 | G65: PG03 | H65: 430
B66: 2121043 | C66: DL65/170-11/2-IE3 | D66: 1 Pump | E66: CronoTwin-DL | F66: =VLOOKUP(B66,'Wilo Price List'!B:G,5,FALSE) -> 9609 | G66: PG03 | H66: 430
B67: 2121044 | C67: DL65/200-11/2-IE3 | D67: 1 Pump | E67: CronoTwin-DL | F67: =VLOOKUP(B67,'Wilo Price List'!B:G,5,FALSE) -> 10012 | G67: PG03 | H67: 475
B68: 2121045 | C68: DL65/200-15/2-IE3 | D68: 1 Pump | E68: CronoTwin-DL | F68: =VLOOKUP(B68,'Wilo Price List'!B:G,5,FALSE) -> 10815 | G68: PG03 | H68: 475
B69: 2121046 | C69: DL65/210-15/2-IE3 | D69: 1 Pump | E69: CronoTwin-DL | F69: =VLOOKUP(B69,'Wilo Price List'!B:G,5,FALSE) -> 10815 | G69: PG03 | H69: 475
B70: 2121047 | C70: DL65/210-18,5/2-IE3 | D70: 1 Pump | E70: CronoTwin-DL | F70: =VLOOKUP(B70,'Wilo Price List'!B:G,5,FALSE) -> 12903 | G70: PG03 | H70: 475
B71: 2120957 | C71: DL65/210-2,2/4-IE3 | D71: 1 Pump | E71: CronoTwin-DL | F71: =VLOOKUP(B71,'Wilo Price List'!B:G,5,FALSE) -> 6284 | G71: PG03 | H71: 475
B72: 2121048 | C72: DL65/220-18,5/2-IE3 | D72: 1 Pump | E72: CronoTwin-DL | F72: =VLOOKUP(B72,'Wilo Price List'!B:G,5,FALSE) -> 12903 | G72: PG03 | H72: 475
B73: 2120958 | C73: DL65/220-2,2/4-IE3 | D73: 1 Pump | E73: CronoTwin-DL | F73: =VLOOKUP(B73,'Wilo Price List'!B:G,5,FALSE) -> 6256 | G73: PG03 | H73: 475
B74: 2121049 | C74: DL65/220-22/2-IE3 | D74: 1 Pump | E74: CronoTwin-DL | F74: =VLOOKUP(B74,'Wilo Price List'!B:G,5,FALSE) -> 14471 | G74: PG03 | H74: 475
B75: 2120959 | C75: DL65/220-3/4-IE3 | D75: 1 Pump | E75: CronoTwin-DL | F75: =VLOOKUP(B75,'Wilo Price List'!B:G,5,FALSE) -> 6456 | G75: PG03 | H75: 475
B76: 2120960 | C76: DL65/250-3/4-IE3 | D76: 1 Pump | E76: CronoTwin-DL | F76: =VLOOKUP(B76,'Wilo Price List'!B:G,5,FALSE) -> 7193 | G76: PG03 | H76: 475
B77: 2120961 | C77: DL65/250-4/4-IE3 | D77: 1 Pump | E77: CronoTwin-DL | F77: =VLOOKUP(B77,'Wilo Price List'!B:G,5,FALSE) -> 7160 | G77: PG03 | H77: 475
B78: 2120962 | C78: DL65/270-5,5/4-IE3 | D78: 1 Pump | E78: CronoTwin-DL | F78: =VLOOKUP(B78,'Wilo Price List'!B:G,5,FALSE) -> 8328 | G78: PG03 | H78: 475
B80: 2121050 | C80: DL80/120-4/2-IE3 | D80: 1 Pump | E80: CronoTwin-DL | F80: =VLOOKUP(B80,'Wilo Price List'!B:G,5,FALSE) -> 5926 | G80: PG03 | H80: 400
B81: 2121051 | C81: DL80/130-5,5/2-IE3 | D81: 1 Pump | E81: CronoTwin-DL | F81: =VLOOKUP(B81,'Wilo Price List'!B:G,5,FALSE) -> 7012 | G81: PG03 | H81: 400
B82: 2121052 | C82: DL80/140-7,5/2-IE3 | D82: 1 Pump | E82: CronoTwin-DL | F82: =VLOOKUP(B82,'Wilo Price List'!B:G,5,FALSE) -> 7542 | G82: PG03 | H82: 400
B83: 2120963 | C83: DL80/150-1,1/4-IE3 | D83: 1 Pump | E83: CronoTwin-DL | F83: =VLOOKUP(B83,'Wilo Price List'!B:G,5,FALSE) -> 5276 | G83: PG03 | H83: 440
B84: 2121053 | C84: DL80/150-7,5/2-IE3 | D84: 1 Pump | E84: CronoTwin-DL | F84: =VLOOKUP(B84,'Wilo Price List'!B:G,5,FALSE) -> 8222 | G84: PG03 | H84: 440
B85: 2120964 | C85: DL80/160-1,5/4-IE3 | D85: 1 Pump | E85: CronoTwin-DL | F85: =VLOOKUP(B85,'Wilo Price List'!B:G,5,FALSE) -> 5337 | G85: PG03 | H85: 440
B86: 2121054 | C86: DL80/160-11/2-IE3 | D86: 1 Pump | E86: CronoTwin-DL | F86: =VLOOKUP(B86,'Wilo Price List'!B:G,5,FALSE) -> 9974 | G86: PG03 | H86: 440
B87: 2121055 | C87: DL80/170-11/2-IE3 | D87: 1 Pump | E87: CronoTwin-DL | F87: =VLOOKUP(B87,'Wilo Price List'!B:G,5,FALSE) -> 9979 | G87: PG03 | H87: 440
B88: 2121056 | C88: DL80/170-15/2-IE3 | D88: 1 Pump | E88: CronoTwin-DL | F88: =VLOOKUP(B88,'Wilo Price List'!B:G,5,FALSE) -> 10370 | G88: PG03 | H88: 440
B89: 2120965 | C89: DL80/170-2,2/4-IE3 | D89: 1 Pump | E89: CronoTwin-DL | F89: =VLOOKUP(B89,'Wilo Price List'!B:G,5,FALSE) -> 5804 | G89: PG03 | H89: 440
B90: 2121057 | C90: DL80/190-15/2-IE3 | D90: 1 Pump | E90: CronoTwin-DL | F90: =VLOOKUP(B90,'Wilo Price List'!B:G,5,FALSE) -> 10914 | G90: PG03 | H90: 500
B91: 2121058 | C91: DL80/190-18,5/2-IE3 | D91: 1 Pump | E91: CronoTwin-DL | F91: =VLOOKUP(B91,'Wilo Price List'!B:G,5,FALSE) -> 11962 | G91: PG03 | H91: 500
B92: 2121059 | C92: DL80/200-18,5/2-IE3 | D92: 1 Pump | E92: CronoTwin-DL | F92: =VLOOKUP(B92,'Wilo Price List'!B:G,5,FALSE) -> 11962 | G92: PG03 | H92: 500
B93: 2121060 | C93: DL80/200-22/2-IE3 | D93: 1 Pump | E93: CronoTwin-DL | F93: =VLOOKUP(B93,'Wilo Price List'!B:G,5,FALSE) -> 13829 | G93: PG03 | H93: 500
B94: 2120966 | C94: DL80/210-3/4-IE3 | D94: 1 Pump | E94: CronoTwin-DL | F94: =VLOOKUP(B94,'Wilo Price List'!B:G,5,FALSE) -> 7124 | G94: PG03 | H94: 500
B95: 2121061 | C95: DL80/220-30/2-IE3 | D95: 1 Pump | E95: CronoTwin-DL | F95: =VLOOKUP(B95,'Wilo Price List'!B:G,5,FALSE) -> 16464 | G95: PG03 | H95: 500
B96: 2120967 | C96: DL80/220-4/4-IE3 | D96: 1 Pump | E96: CronoTwin-DL | F96: =VLOOKUP(B96,'Wilo Price List'!B:G,5,FALSE) -> 7751 | G96: PG03 | H96: 500
B97: 2120968 | C97: DL80/270-5,5/4-IE3 | D97: 1 Pump | E97: CronoTwin-DL | F97: =VLOOKUP(B97,'Wilo Price List'!B:G,5,FALSE) -> 8732 | G97: PG03 | H97: 500
B99: 2120969 | C99: DL100/145-1,1/4-IE3 | D99: 1 Pump | E99: CronoTwin-DL | F99: =VLOOKUP(B99,'Wilo Price List'!B:G,5,FALSE) -> 6319 | G99: PG03 | H99: 500
B100: 2121062 | C100: DL100/145-11/2-IE3 | D100: 1 Pump | E100: CronoTwin-DL | F100: =VLOOKUP(B100,'Wilo Price List'!B:G,5,FALSE) -> 10779 | G100: PG03 | H100: 500
B101: 2120970 | C101: DL100/150-1,5/4-IE3 | D101: 1 Pump | E101: CronoTwin-DL | F101: =VLOOKUP(B101,'Wilo Price List'!B:G,5,FALSE) -> 7590 | G101: PG03 | H101: 500
B102: 2121063 | C102: DL100/150-15/2-IE3 | D102: 1 Pump | E102: CronoTwin-DL | F102: =VLOOKUP(B102,'Wilo Price List'!B:G,5,FALSE) -> 11107 | G102: PG03 | H102: 500
B103: 2121064 | C103: DL100/160-15/2-IE3 | D103: 1 Pump | E103: CronoTwin-DL | F103: =VLOOKUP(B103,'Wilo Price List'!B:G,5,FALSE) -> 11107 | G103: PG03 | H103: 500
B104: 2121065 | C104: DL100/160-18,5/2-IE3 | D104: 1 Pump | E104: CronoTwin-DL | F104: =VLOOKUP(B104,'Wilo Price List'!B:G,5,FALSE) -> 11644 | G104: PG03 | H104: 500
B105: 2120971 | C105: DL100/160-2,2/4-IE3 | D105: 1 Pump | E105: CronoTwin-DL | F105: =VLOOKUP(B105,'Wilo Price List'!B:G,5,FALSE) -> 8111 | G105: PG03 | H105: 500
B106: 2121066 | C106: DL100/165-22/2-IE3 | D106: 1 Pump | E106: CronoTwin-DL | F106: =VLOOKUP(B106,'Wilo Price List'!B:G,5,FALSE) -> 15623 | G106: PG03 | H106: 500
B107: 2120972 | C107: DL100/170-3/4-IE3 | D107: 1 Pump | E107: CronoTwin-DL | F107: =VLOOKUP(B107,'Wilo Price List'!B:G,5,FALSE) -> 8198 | G107: PG03 | H107: 500
B108: 2121067 | C108: DL100/170-30/2-IE3 | D108: 1 Pump | E108: CronoTwin-DL | F108: =VLOOKUP(B108,'Wilo Price List'!B:G,5,FALSE) -> 18411 | G108: PG03 | H108: 500
B109: 2121068 | C109: DL100/190-30/2-IE3 | D109: 1 Pump | E109: CronoTwin-DL | F109: =VLOOKUP(B109,'Wilo Price List'!B:G,5,FALSE) -> 19117 | G109: PG03 | H109: 550
B110: 2120973 | C110: DL100/200-3/4-IE3 | D110: 1 Pump | E110: CronoTwin-DL | F110: =VLOOKUP(B110,'Wilo Price List'!B:G,5,FALSE) -> 8738 | G110: PG03 | H110: 550
B111: 2120974 | C111: DL100/200-4/4-IE3 | D111: 1 Pump | E111: CronoTwin-DL | F111: =VLOOKUP(B111,'Wilo Price List'!B:G,5,FALSE) -> 8973 | G111: PG03 | H111: 550
B112: 2121069 | C112: DL100/210-30/2-IE3 | D112: 1 Pump | E112: CronoTwin-DL | F112: =VLOOKUP(B112,'Wilo Price List'!B:G,5,FALSE) -> 19117 | G112: PG03 | H112: 550
B113: 2121070 | C113: DL100/210-37/2-IE3 | D113: 1 Pump | E113: CronoTwin-DL | F113: =VLOOKUP(B113,'Wilo Price List'!B:G,5,FALSE) -> 24404 | G113: PG03 | H113: 550
B114: 2120975 | C114: DL100/220-5,5/4-IE3 | D114: 1 Pump | E114: CronoTwin-DL | F114: =VLOOKUP(B114,'Wilo Price List'!B:G,5,FALSE) -> 10110 | G114: PG03 | H114: 550
B115: 2120976 | C115: DL100/250-5,5/4-IE3 | D115: 1 Pump | E115: CronoTwin-DL | F115: =VLOOKUP(B115,'Wilo Price List'!B:G,5,FALSE) -> 11371 | G115: PG03 | H115: 550
B116: 2120977 | C116: DL100/250-7,5/4-IE3 | D116: 1 Pump | E116: CronoTwin-DL | F116: =VLOOKUP(B116,'Wilo Price List'!B:G,5,FALSE) -> 12590 | G116: PG03 | H116: 550
B117: 2120978 | C117: DL100/260-11/4-IE3 | D117: 1 Pump | E117: CronoTwin-DL | F117: =VLOOKUP(B117,'Wilo Price List'!B:G,5,FALSE) -> 12964 | G117: PG03 | H117: 550
B118: 2120979 | C118: DL100/270-11/4-IE3 | D118: 1 Pump | E118: CronoTwin-DL | F118: =VLOOKUP(B118,'Wilo Price List'!B:G,5,FALSE) -> 15023 | G118: PG03 | H118: 550
B120: 2120980 | C120: DL125/190-4/4-IE3 | D120: 1 Pump | E120: CronoTwin-DL | F120: =VLOOKUP(B120,'Wilo Price List'!B:G,5,FALSE) -> 9998 | G120: PG03 | H120: 620
B121: 2120981 | C121: DL125/210-5,5/4-IE3 | D121: 1 Pump | E121: CronoTwin-DL | F121: =VLOOKUP(B121,'Wilo Price List'!B:G,5,FALSE) -> 11638 | G121: PG03 | H121: 620
B122: 2120982 | C122: DL125/220-5,5/4-IE3 | D122: 1 Pump | E122: CronoTwin-DL | F122: =VLOOKUP(B122,'Wilo Price List'!B:G,5,FALSE) -> 12150 | G122: PG03 | H122: 620
B123: 2120983 | C123: DL125/220-7,5/4-IE3 | D123: 1 Pump | E123: CronoTwin-DL | F123: =VLOOKUP(B123,'Wilo Price List'!B:G,5,FALSE) -> 13486 | G123: PG03 | H123: 620
B124: 2120984 | C124: DL125/250-11/4-IE3 | D124: 1 Pump | E124: CronoTwin-DL | F124: =VLOOKUP(B124,'Wilo Price List'!B:G,5,FALSE) -> 15657 | G124: PG03 | H124: 620
B125: 2120985 | C125: DL125/270-11/4-IE3 | D125: 1 Pump | E125: CronoTwin-DL | F125: =VLOOKUP(B125,'Wilo Price List'!B:G,5,FALSE) -> 16099 | G125: PG03 | H125: 620
B126: 2120986 | C126: DL125/270-15/4-IE3 | D126: 1 Pump | E126: CronoTwin-DL | F126: =VLOOKUP(B126,'Wilo Price List'!B:G,5,FALSE) -> 18957 | G126: PG03 | H126: 620
B127: 2120987 | C127: DL125/300-18,5/4-IE3 | D127: 1 Pump | E127: CronoTwin-DL | F127: =VLOOKUP(B127,'Wilo Price List'!B:G,5,FALSE) -> 19143 | G127: PG03 | H127: 700
B128: 2120988 | C128: DL125/320-18,5/4-IE3 | D128: 1 Pump | E128: CronoTwin-DL | F128: =VLOOKUP(B128,'Wilo Price List'!B:G,5,FALSE) -> 19143 | G128: PG03 | H128: 700
B129: 2120989 | C129: DL125/320-22/4-IE3 | D129: 1 Pump | E129: CronoTwin-DL | F129: =VLOOKUP(B129,'Wilo Price List'!B:G,5,FALSE) -> 20567 | G129: PG03 | H129: 700
B130: 2120990 | C130: DL125/340-30/4-IE3 | D130: 1 Pump | E130: CronoTwin-DL | F130: =VLOOKUP(B130,'Wilo Price List'!B:G,5,FALSE) -> 21918 | G130: PG03 | H130: 700
B132: 2120991 | C132: DL150/190-5,5/4-IE3 | D132: 1 Pump | E132: CronoTwin-DL | F132: =VLOOKUP(B132,'Wilo Price List'!B:G,5,FALSE) -> 13467 | G132: PG03 | H132: 700
B133: 2120992 | C133: DL150/200-7,5/4-IE3 | D133: 1 Pump | E133: CronoTwin-DL | F133: =VLOOKUP(B133,'Wilo Price List'!B:G,5,FALSE) -> 15144 | G133: PG03 | H133: 700
B134: 2120993 | C134: DL150/220-11/4-IE3 | D134: 1 Pump | E134: CronoTwin-DL | F134: =VLOOKUP(B134,'Wilo Price List'!B:G,5,FALSE) -> 15864 | G134: PG03 | H134: 700
B135: 2120994 | C135: DL150/250-15/4-IE3 | D135: 1 Pump | E135: CronoTwin-DL | F135: =VLOOKUP(B135,'Wilo Price List'!B:G,5,FALSE) -> 18412 | G135: PG03 | H135: 700
B136: 2120995 | C136: DL150/260-15/4-IE3 | D136: 1 Pump | E136: CronoTwin-DL | F136: =VLOOKUP(B136,'Wilo Price List'!B:G,5,FALSE) -> 19511 | G136: PG03 | H136: 700
B137: 2120996 | C137: DL150/260-18,5/4-IE3 | D137: 1 Pump | E137: CronoTwin-DL | F137: =VLOOKUP(B137,'Wilo Price List'!B:G,5,FALSE) -> 21273 | G137: PG03 | H137: 700
B138: 2120997 | C138: DL150/270-18,5/4-IE3 | D138: 1 Pump | E138: CronoTwin-DL | F138: =VLOOKUP(B138,'Wilo Price List'!B:G,5,FALSE) -> 21273 | G138: PG03 | H138: 700
B139: 2120998 | C139: DL150/270-22/4-IE3 | D139: 1 Pump | E139: CronoTwin-DL | F139: =VLOOKUP(B139,'Wilo Price List'!B:G,5,FALSE) -> 22587 | G139: PG03 | H139: 700
B140: 2151765 | C140: DL150/305-30/4-IE3 | D140: 1 Pump | E140: CronoTwin-DL | F140: =VLOOKUP(B140,'Wilo Price List'!B:G,5,FALSE) -> 29190 | G140: PG03 | H140: 770
B141: 2151764 | C141: DL150/325-30/4-IE3 | D141: 1 Pump | E141: CronoTwin-DL | F141: =VLOOKUP(B141,'Wilo Price List'!B:G,5,FALSE) -> 29190 | G141: PG03 | H141: 770
B142: 2151763 | C142: DL150/325-37/4-IE3 | D142: 1 Pump | E142: CronoTwin-DL | F142: =VLOOKUP(B142,'Wilo Price List'!B:G,5,FALSE) -> 30840 | G142: PG03 | H142: 770
B143: 2151762 | C143: DL150/335-37/4-IE3 | D143: 1 Pump | E143: CronoTwin-DL | F143: =VLOOKUP(B143,'Wilo Price List'!B:G,5,FALSE) -> 30840 | G143: PG03 | H143: 770
B144: 2151761 | C144: DL150/335-45/4-IE3 | D144: 1 Pump | E144: CronoTwin-DL | F144: =VLOOKUP(B144,'Wilo Price List'!B:G,5,FALSE) -> 36236 | G144: PG03 | H144: 770
B146: 2121003 | C146: DL200/240-15/4-IE3 | D146: 1 Pump | E146: CronoTwin-DL | F146: =VLOOKUP(B146,'Wilo Price List'!B:G,5,FALSE) -> 25728 | G146: PG03 | H146: 800
B147: 2121004 | C147: DL200/250-18,5/4-IE3 | D147: 1 Pump | E147: CronoTwin-DL | F147: =VLOOKUP(B147,'Wilo Price List'!B:G,5,FALSE) -> 26982 | G147: PG03 | H147: 800
B148: 2121005 | C148: DL200/260-22/4-IE3 | D148: 1 Pump | E148: CronoTwin-DL | F148: =VLOOKUP(B148,'Wilo Price List'!B:G,5,FALSE) -> 29084 | G148: PG03 | H148: 800
B149: 2121006 | C149: DL200/270-30/4-IE3 | D149: 1 Pump | E149: CronoTwin-DL | F149: =VLOOKUP(B149,'Wilo Price List'!B:G,5,FALSE) -> 31192 | G149: PG03 | H149: 800
B150: 2142056 | C150: DL200/300-37/4-IE3 | D150: 1 Pump | E150: CronoTwin-DL | F150: =VLOOKUP(B150,'Wilo Price List'!B:G,5,FALSE) -> 33323 | G150: PG03 | H150: 820
B151: 2142057 | C151: DL200/315-37/4-IE3 | D151: 1 Pump | E151: CronoTwin-DL | F151: =VLOOKUP(B151,'Wilo Price List'!B:G,5,FALSE) -> 33323 | G151: PG03 | H151: 820
B152: 2142058 | C152: DL200/335-37/4-IE3 | D152: 1 Pump | E152: CronoTwin-DL | F152: =VLOOKUP(B152,'Wilo Price List'!B:G,5,FALSE) -> 33323 | G152: PG03 | H152: 820
B153: 2142059 | C153: DL200/335-45/4-IE3 | D153: 1 Pump | E153: CronoTwin-DL | F153: =VLOOKUP(B153,'Wilo Price List'!B:G,5,FALSE) -> 37103 | G153: PG03 | H153: 820
B154: 2142060 | C154: DL200/345-45/4-IE3 | D154: 1 Pump | E154: CronoTwin-DL | F154: =VLOOKUP(B154,'Wilo Price List'!B:G,5,FALSE) -> 37103 | G154: PG03 | H154: 820
B155: 2142061 | C155: DL200/345-55/4-IE3 | D155: 1 Pump | E155: CronoTwin-DL | F155: =VLOOKUP(B155,'Wilo Price List'!B:G,5,FALSE) -> 42860 | G155: PG03 | H155: 820

Sheet DPL
B2: DPL | J2: Home
B5: Article No. (or variant) | C5: Article description | D5: Type (Pump / Accessory / Spare Part / Addon / Service) | E5: Product range | F5: List Price | G5: Price group | H5: Port to Port (MM)
B6: 2150372 | C6: DPL32/105-0,12/4 | D6: 1 Pump | E6: VeroTwin-DPL | F6: =VLOOKUP(B6,'Wilo Price List'!B:G,5,FALSE) -> 2239 | G6: PG03 | H6: 260
B7: 2121239 | C7: DPL32/105-0,75/2-IE3 | D7: 1 Pump | E7: VeroTwin-DPL | F7: =VLOOKUP(B7,'Wilo Price List'!B:G,5,FALSE) -> 2327 | G7: PG03 | H7: 260
B8: 2121240 | C8: DPL32/125-1,1/2-IE3 | D8: 1 Pump | E8: VeroTwin-DPL | F8: =VLOOKUP(B8,'Wilo Price List'!B:G,5,FALSE) -> 2622 | G8: PG03 | H8: 260
B9: 2150373 | C9: DPL32/135-0,25/4 | D9: 1 Pump | E9: VeroTwin-DPL | F9: =VLOOKUP(B9,'Wilo Price List'!B:G,5,FALSE) -> 2208 | G9: PG03 | H9: 260
B10: 2121241 | C10: DPL32/135-1,1/2-IE3 | D10: 1 Pump | E10: VeroTwin-DPL | F10: =VLOOKUP(B10,'Wilo Price List'!B:G,5,FALSE) -> 2659 | G10: PG03 | H10: 260
B11: 2155462 | C11: DPL32/135-1,5/2-IE3 | D11: 1 Pump | E11: VeroTwin-DPL | F11: =VLOOKUP(B11,'Wilo Price List'!B:G,5,FALSE) -> 2820 | G11: PG03 | H11: 260
B12: 2121242 | C12: DPL32/165-3/2-IE3 | D12: 1 Pump | E12: VeroTwin-DPL | F12: =VLOOKUP(B12,'Wilo Price List'!B:G,5,FALSE) -> 4370 | G12: PG03 | H12: 320
B13: 2121243 | C13: DPL32/175-4/2-IE3 | D13: 1 Pump | E13: VeroTwin-DPL | F13: =VLOOKUP(B13,'Wilo Price List'!B:G,5,FALSE) -> 4802 | G13: PG03 | H13: 320
B14: 2150365 | C14: DPL32/85-0,37/2 | D14: 1 Pump | E14: VeroTwin-DPL | F14: =VLOOKUP(B14,'Wilo Price List'!B:G,5,FALSE) -> 1967 | G14: PG03 | H14: 260
B15: 2150366 | C15: DPL32/95-0,55/2 | D15: 1 Pump | E15: VeroTwin-DPL | F15: =VLOOKUP(B15,'Wilo Price List'!B:G,5,FALSE) -> 2107 | G15: PG03 | H15: 260
B17: 2089643 | C17: DPL40/115-0,55/2 | D17: 1 Pump | E17: VeroTwin-DPL | F17: =VLOOKUP(B17,'Wilo Price List'!B:G,5,FALSE) -> 2502 | G17: PG03 | H17: 250
B18: 2121244 | C18: DPL40/120-1,5/2-IE3 | D18: 1 Pump | E18: VeroTwin-DPL | F18: =VLOOKUP(B18,'Wilo Price List'!B:G,5,FALSE) -> 2701 | G18: PG03 | H18: 320
B19: 2089620 | C19: DPL40/130-0,25/4 | D19: 1 Pump | E19: VeroTwin-DPL | F19: =VLOOKUP(B19,'Wilo Price List'!B:G,5,FALSE) -> 2388 | G19: PG03 | H19: 320
B20: 2121245 | C20: DPL40/130-2,2/2-IE3 | D20: 1 Pump | E20: VeroTwin-DPL | F20: =VLOOKUP(B20,'Wilo Price List'!B:G,5,FALSE) -> 3023 | G20: PG03 | H20: 320
B21: 2121246 | C21: DPL40/150-3/2-IE3 | D21: 1 Pump | E21: VeroTwin-DPL | F21: =VLOOKUP(B21,'Wilo Price List'!B:G,5,FALSE) -> 3617 | G21: PG03 | H21: 320
B22: 2089621 | C22: DPL40/160-0,37/4 | D22: 1 Pump | E22: VeroTwin-DPL | F22: =VLOOKUP(B22,'Wilo Price List'!B:G,5,FALSE) -> 2713 | G22: PG03 | H22: 320
B23: 2121247 | C23: DPL40/160-4/2-IE3 | D23: 1 Pump | E23: VeroTwin-DPL | F23: =VLOOKUP(B23,'Wilo Price List'!B:G,5,FALSE) -> 3883 | G23: PG03 | H23: 320
B24: 2121248 | C24: DPL40/165-4/2-IE3 | D24: 1 Pump | E24: VeroTwin-DPL | F24: =VLOOKUP(B24,'Wilo Price List'!B:G,5,FALSE) -> 4788 | G24: PG03 | H24: 340
B25: 2121249 | C25: DPL40/175-5,5/2-IE3 | D25: 1 Pump | E25: VeroTwin-DPL | F25: =VLOOKUP(B25,'Wilo Price List'!B:G,5,FALSE) -> 5589 | G25: PG03 | H25: 340
B26: 2121250 | C26: DPL40/195-7,5/2-IE3 | D26: 1 Pump | E26: VeroTwin-DPL | F26: =VLOOKUP(B26,'Wilo Price List'!B:G,5,FALSE) -> 5703 | G26: PG03 | H26: 440
B27: 2157302 | C27: DPL40/75-0,12/2 | D27: 1 Pump | E27: VeroTwin-DPL | F27: =VLOOKUP(B27,'Wilo Price List'!B:G,5,FALSE) -> 2372 | G27: PG03 | H27: 250
B28: 2089642 | C28: DPL40/90-0,37/2 | D28: 1 Pump | E28: VeroTwin-DPL | F28: =VLOOKUP(B28,'Wilo Price List'!B:G,5,FALSE) -> 2267 | G28: PG03 | H28: 250
B30: 2150374 | C30: DPL50/105-0,12/4 | D30: 1 Pump | E30: VeroTwin-DPL | F30: =VLOOKUP(B30,'Wilo Price List'!B:G,5,FALSE) -> 2469 | G30: PG03 | H30: 280
B31: 2155465 | C31: DPL50/105-0,75/2-IE3 | D31: 1 Pump | E31: VeroTwin-DPL | F31: =VLOOKUP(B31,'Wilo Price List'!B:G,5,FALSE) -> 2996 | G31: PG03 | H31: 280
B32: 2121252 | C32: DPL50/120-1,5/2-IE3 | D32: 1 Pump | E32: VeroTwin-DPL | F32: =VLOOKUP(B32,'Wilo Price List'!B:G,5,FALSE) -> 3079 | G32: PG03 | H32: 340
B33: 2089623 | C33: DPL50/130-0,37/4 | D33: 1 Pump | E33: VeroTwin-DPL | F33: =VLOOKUP(B33,'Wilo Price List'!B:G,5,FALSE) -> 2779 | G33: PG03 | H33: 340
B34: 2121253 | C34: DPL50/130-2,2/2-IE3 | D34: 1 Pump | E34: VeroTwin-DPL | F34: =VLOOKUP(B34,'Wilo Price List'!B:G,5,FALSE) -> 3260 | G34: PG03 | H34: 340
B35: 2121254 | C35: DPL50/140-3/2-IE3 | D35: 1 Pump | E35: VeroTwin-DPL | F35: =VLOOKUP(B35,'Wilo Price List'!B:G,5,FALSE) -> 3674 | G35: PG03 | H35: 340
B36: 2121255 | C36: DPL50/150-4/2-IE3 | D36: 1 Pump | E36: VeroTwin-DPL | F36: =VLOOKUP(B36,'Wilo Price List'!B:G,5,FALSE) -> 3937 | G36: PG03 | H36: 340
B37: 2121256 | C37: DPL50/155-4/2-IE3 | D37: 1 Pump | E37: VeroTwin-DPL | F37: =VLOOKUP(B37,'Wilo Price List'!B:G,5,FALSE) -> 4798 | G37: PG03 | H37: 340
B38: 2089624 | C38: DPL50/160-0,55/4 | D38: 1 Pump | E38: VeroTwin-DPL | F38: =VLOOKUP(B38,'Wilo Price List'!B:G,5,FALSE) -> 3116 | G38: PG03 | H38: 340
B39: 2121257 | C39: DPL50/165-5,5/2-IE3 | D39: 1 Pump | E39: VeroTwin-DPL | F39: =VLOOKUP(B39,'Wilo Price List'!B:G,5,FALSE) -> 5929 | G39: PG03 | H39: 340
B40: 2121258 | C40: DPL50/175-5,5/2-IE3 | D40: 1 Pump | E40: VeroTwin-DPL | F40: =VLOOKUP(B40,'Wilo Price List'!B:G,5,FALSE) -> 5475 | G40: PG03 | H40: 340
B41: 2121259 | C41: DPL50/175-7,5/2-IE3 | D41: 1 Pump | E41: VeroTwin-DPL | F41: =VLOOKUP(B41,'Wilo Price List'!B:G,5,FALSE) -> 5784 | G41: PG03 | H41: 440
B42: 2121260 | C42: DPL50/185-7,5/2-IE3 | D42: 1 Pump | E42: VeroTwin-DPL | F42: =VLOOKUP(B42,'Wilo Price List'!B:G,5,FALSE) -> 6241 | G42: PG03 | H42: 440
B43: 2152445 | C43: DPL50/95-0,55/2 | D43: 1 Pump | E43: VeroTwin-DPL | F43: =VLOOKUP(B43,'Wilo Price List'!B:G,5,FALSE) -> 2816 | G43: PG03 | H43: 280
B45: 2133205 | C45: DPL65/110-0,25/4 | D45: 1 Pump | E45: VeroTwin-DPL | F45: =VLOOKUP(B45,'Wilo Price List'!B:G,5,FALSE) -> 2965 | G45: PG03 | H45: 340
B46: 2121262 | C46: DPL65/110-2,2/2-IE3 | D46: 1 Pump | E46: VeroTwin-DPL | F46: =VLOOKUP(B46,'Wilo Price List'!B:G,5,FALSE) -> 3798 | G46: PG03 | H46: 340
B47: 2121261 | C47: DPL65/115-1,5/2-IE3 | D47: 1 Pump | E47: VeroTwin-DPL | F47: =VLOOKUP(B47,'Wilo Price List'!B:G,5,FALSE) -> 3652 | G47: PG03 | H47: 340
B48: 2133206 | C48: DPL65/120-0,37/4 | D48: 1 Pump | E48: VeroTwin-DPL | F48: =VLOOKUP(B48,'Wilo Price List'!B:G,5,FALSE) -> 3111 | G48: PG03 | H48: 340
B49: 2121263 | C49: DPL65/120-3/2-IE3 | D49: 1 Pump | E49: VeroTwin-DPL | F49: =VLOOKUP(B49,'Wilo Price List'!B:G,5,FALSE) -> 4127 | G49: PG03 | H49: 340
B50: 2133207 | C50: DPL65/130-0,55/4 | D50: 1 Pump | E50: VeroTwin-DPL | F50: =VLOOKUP(B50,'Wilo Price List'!B:G,5,FALSE) -> 3173 | G50: PG03 | H50: 340
B51: 2121264 | C51: DPL65/130-4/2-IE3 | D51: 1 Pump | E51: VeroTwin-DPL | F51: =VLOOKUP(B51,'Wilo Price List'!B:G,5,FALSE) -> 4347 | G51: PG03 | H51: 340
B52: 2121265 | C52: DPL65/145-5,5/2-IE3 | D52: 1 Pump | E52: VeroTwin-DPL | F52: =VLOOKUP(B52,'Wilo Price List'!B:G,5,FALSE) -> 5670 | G52: PG03 | H52: 340
B53: 2121266 | C53: DPL65/155-5,5/2-IE3 | D53: 1 Pump | E53: VeroTwin-DPL | F53: =VLOOKUP(B53,'Wilo Price List'!B:G,5,FALSE) -> 5617 | G53: PG03 | H53: 340
B54: 2121267 | C54: DPL65/155-7,5/2-IE3 | D54: 1 Pump | E54: VeroTwin-DPL | F54: =VLOOKUP(B54,'Wilo Price List'!B:G,5,FALSE) -> 6069 | G54: PG03 | H54: 340
B55: 2121268 | C55: DPL65/165-5,5/2-IE3 | D55: 1 Pump | E55: VeroTwin-DPL | F55: =VLOOKUP(B55,'Wilo Price List'!B:G,5,FALSE) -> 5820 | G55: PG03 | H55: 430
B56: 2121269 | C56: DPL65/175-5,5/2-IE3 | D56: 1 Pump | E56: VeroTwin-DPL | F56: =VLOOKUP(B56,'Wilo Price List'!B:G,5,FALSE) -> 5820 | G56: PG03 | H56: 430
B57: 2121270 | C57: DPL65/175-7,5/2-IE3 | D57: 1 Pump | E57: VeroTwin-DPL | F57: =VLOOKUP(B57,'Wilo Price List'!B:G,5,FALSE) -> 6086 | G57: PG03 | H57: 430
B59: 2121272 | C59: DPL80/105-3/2-IE3 | D59: 1 Pump | E59: VeroTwin-DPL | F59: =VLOOKUP(B59,'Wilo Price List'!B:G,5,FALSE) -> 4343 | G59: PG03 | H59: 360
B60: 2121273 | C60: DPL80/110-4/2-IE3 | D60: 1 Pump | E60: VeroTwin-DPL | F60: =VLOOKUP(B60,'Wilo Price List'!B:G,5,FALSE) -> 4556 | G60: PG03 | H60: 360
B61: 2121271 | C61: DPL80/115-2,2/2-IE3 | D61: 1 Pump | E61: VeroTwin-DPL | F61: =VLOOKUP(B61,'Wilo Price List'!B:G,5,FALSE) -> 4232 | G61: PG03 | H61: 360
B62: 2133208 | C62: DPL80/120-0,55/4 | D62: 1 Pump | E62: VeroTwin-DPL | F62: =VLOOKUP(B62,'Wilo Price List'!B:G,5,FALSE) -> 3486 | G62: PG03 | H62: 360
B63: 2155463 | C63: DPL80/120-4/2-IE3 | D63: 1 Pump | E63: VeroTwin-DPL | F63: =VLOOKUP(B63,'Wilo Price List'!B:G,5,FALSE) -> 4556 | G63: PG03 | H63: 360
B64: 2155464 | C64: DPL80/120-5,5/2-IE3 | D64: 1 Pump | E64: VeroTwin-DPL | F64: =VLOOKUP(B64,'Wilo Price List'!B:G,5,FALSE) -> 5324 | G64: PG03 | H64: 360
B65: 2121233 | C65: DPL80/125-0,75/4-IE3 | D65: 1 Pump | E65: VeroTwin-DPL | F65: =VLOOKUP(B65,'Wilo Price List'!B:G,5,FALSE) -> 4193 | G65: PG03 | H65: 360
B66: 2121234 | C66: DPL80/140-1,1/4-IE3 | D66: 1 Pump | E66: VeroTwin-DPL | F66: =VLOOKUP(B66,'Wilo Price List'!B:G,5,FALSE) -> 4561 | G66: PG03 | H66: 360
B67: 2121274 | C67: DPL80/145-5,5/2-IE3 | D67: 1 Pump | E67: VeroTwin-DPL | F67: =VLOOKUP(B67,'Wilo Price List'!B:G,5,FALSE) -> 5790 | G67: PG03 | H67: 400
B68: 2121275 | C68: DPL80/155-7,5/2-IE3 | D68: 1 Pump | E68: VeroTwin-DPL | F68: =VLOOKUP(B68,'Wilo Price List'!B:G,5,FALSE) -> 6046 | G68: PG03 | H68: 400
B70: 2121235 | C70: DPL100/135-1,1/4-IE3 | D70: 1 Pump | E70: VeroTwin-DPL | F70: =VLOOKUP(B70,'Wilo Price List'!B:G,5,FALSE) -> 6642 | G70: PG03 | H70: 500
B71: 2121236 | C71: DPL100/145-1,5/4-IE3 | D71: 1 Pump | E71: VeroTwin-DPL | F71: =VLOOKUP(B71,'Wilo Price List'!B:G,5,FALSE) -> 6829 | G71: PG03 | H71: 500
B72: 2121237 | C72: DPL100/165-2,2/4-IE3 | D72: 1 Pump | E72: VeroTwin-DPL | F72: =VLOOKUP(B72,'Wilo Price List'!B:G,5,FALSE) -> 7299 | G72: PG03 | H72: 500
B73: 2121238 | C73: DPL100/175-3/4-IE3 | D73: 1 Pump | E73: VeroTwin-DPL | F73: =VLOOKUP(B73,'Wilo Price List'!B:G,5,FALSE) -> 8019 | G73: PG03 | H73: 500

Sheet Atmos Giga I
B2: Atmos Giga I | H2: Home
B5: Article No. (or variant) | C5: Article description | D5: List Price | E5: Price group
E7: PG3
B8: 2219022 | C8: Atmos GIGA-I 32/130-1,5/2 | D8: =VLOOKUP(B8,'Wilo Price List'!B:F,5,FALSE) -> 3226
B9: 2219014 | C9: Atmos GIGA-I 32/140-0,25/4 | D9: =VLOOKUP(B9,'Wilo Price List'!B:F,5,FALSE) -> 3123
B10: 2219020 | C10: Atmos GIGA-I 32/140-2,2/2 | D10: =VLOOKUP(B10,'Wilo Price List'!B:F,5,FALSE) -> 3238
B11: 2219012 | C11: Atmos GIGA-I 32/150-0,37/4 | D11: =VLOOKUP(B11,'Wilo Price List'!B:F,5,FALSE) -> 3110
B12: 2219018 | C12: Atmos GIGA-I 32/150-3/2 | D12: =VLOOKUP(B12,'Wilo Price List'!B:F,5,FALSE) -> 3386
B13: 2219010 | C13: Atmos GIGA-I 32/160-0,55/4 | D13: =VLOOKUP(B13,'Wilo Price List'!B:F,5,FALSE) -> 3028
B14: 2219016 | C14: Atmos GIGA-I 32/160-4/2 | D14: =VLOOKUP(B14,'Wilo Price List'!B:F,5,FALSE) -> 3514
B16: 2219766 | C16: Atmos GIGA-I 40/130-0,25/4 | D16: =VLOOKUP(B16,'Wilo Price List'!B:F,5,FALSE) -> 3227
B17: 2222626 | C17: Atmos GIGA-I 40/130-2,2/2 | D17: =VLOOKUP(B17,'Wilo Price List'!B:F,5,FALSE) -> 3284
B18: 2220082 | C18: Atmos GIGA-I 40/140-0,37/4 | D18: =VLOOKUP(B18,'Wilo Price List'!B:F,5,FALSE) -> 3302
B19: 2219768 | C19: Atmos GIGA-I 40/140-3/2 | D19: =VLOOKUP(B19,'Wilo Price List'!B:F,5,FALSE) -> 3415
B20: 2220080 | C20: Atmos GIGA-I 40/150-0,55/4 | D20: =VLOOKUP(B20,'Wilo Price List'!B:F,5,FALSE) -> 3156
B21: 2220086 | C21: Atmos GIGA-I 40/150-4/2 | D21: =VLOOKUP(B21,'Wilo Price List'!B:F,5,FALSE) -> 3557
B22: 2219764 | C22: Atmos GIGA-I 40/160-0,75/4 | D22: =VLOOKUP(B22,'Wilo Price List'!B:F,5,FALSE) -> 3619
B23: 2220084 | C23: Atmos GIGA-I 40/160-5,5/2 | D23: =VLOOKUP(B23,'Wilo Price List'!B:F,5,FALSE) -> 4832
B24: 2220090 | C24: Atmos GIGA-I 40/190-0,75/4 | D24: =VLOOKUP(B24,'Wilo Price List'!B:F,5,FALSE) -> 3942
B25: 2220088 | C25: Atmos GIGA-I 40/200-1,1/4 | D25: =VLOOKUP(B25,'Wilo Price List'!B:F,5,FALSE) -> 3383
B26: 2220092 | C26: Atmos GIGA-I 40/200-7,5/2 | D26: =VLOOKUP(B26,'Wilo Price List'!B:F,5,FALSE) -> 4826
B27: 2222632 | C27: Atmos GIGA-I 40/210-1,5/4 | D27: =VLOOKUP(B27,'Wilo Price List'!B:F,5,FALSE) -> 3662
B28: 2222630 | C28: Atmos GIGA-I 40/210-11/2 | D28: =VLOOKUP(B28,'Wilo Price List'!B:F,5,FALSE) -> 5583
B30: 2220110 | C30: Atmos GIGA-I 50/105-3/2 | D30: =VLOOKUP(B30,'Wilo Price List'!B:F,5,FALSE) -> 3392
B31: 2220108 | C31: Atmos GIGA-I 50/115-4/2 | D31: =VLOOKUP(B31,'Wilo Price List'!B:F,5,FALSE) -> 3601
B32: 2220106 | C32: Atmos GIGA-I 50/125-4/2 | D32: =VLOOKUP(B32,'Wilo Price List'!B:F,5,FALSE) -> 3559
B33: 2220104 | C33: Atmos GIGA-I 50/125-5,5/2 | D33: =VLOOKUP(B33,'Wilo Price List'!B:F,5,FALSE) -> 4502
B34: 2220128 | C34: Atmos GIGA-I 50/130-4/2 | D34: =VLOOKUP(B34,'Wilo Price List'!B:F,5,FALSE) -> 3770
B35: 2220118 | C35: Atmos GIGA-I 50/140-0,55/4 | D35: =VLOOKUP(B35,'Wilo Price List'!B:F,5,FALSE) -> 3366
B36: 2220126 | C36: Atmos GIGA-I 50/140-5,5/2 | D36: =VLOOKUP(B36,'Wilo Price List'!B:F,5,FALSE) -> 4910
B37: 2220116 | C37: Atmos GIGA-I 50/150-0,75/4 | D37: =VLOOKUP(B37,'Wilo Price List'!B:F,5,FALSE) -> 3881
B38: 2220124 | C38: Atmos GIGA-I 50/150-7,5/2 | D38: =VLOOKUP(B38,'Wilo Price List'!B:F,5,FALSE) -> 5063
B39: 2220114 | C39: Atmos GIGA-I 50/160-1,1/4 | D39: =VLOOKUP(B39,'Wilo Price List'!B:F,5,FALSE) -> 3326
B40: 2220120 | C40: Atmos GIGA-I 50/160-11/2 | D40: =VLOOKUP(B40,'Wilo Price List'!B:F,5,FALSE) -> 5368
B41: 2220122 | C41: Atmos GIGA-I 50/160-7,5/2 | D41: =VLOOKUP(B41,'Wilo Price List'!B:F,5,FALSE) -> 5027
B42: 2220136 | C42: Atmos GIGA-I 50/180-1,1/4 | D42: =VLOOKUP(B42,'Wilo Price List'!B:F,5,FALSE) -> 3590
B43: 2222598 | C43: Atmos GIGA-I 50/180-7,5/2 | D43: =VLOOKUP(B43,'Wilo Price List'!B:F,5,FALSE) -> 5141
B44: 2220134 | C44: Atmos GIGA-I 50/190-1,5/4 | D44: =VLOOKUP(B44,'Wilo Price List'!B:F,5,FALSE) -> 3722
B45: 2220142 | C45: Atmos GIGA-I 50/190-11/2 | D45: =VLOOKUP(B45,'Wilo Price List'!B:F,5,FALSE) -> 5626
B46: 2220132 | C46: Atmos GIGA-I 50/200-1,5/4 | D46: =VLOOKUP(B46,'Wilo Price List'!B:F,5,FALSE) -> 3642
B47: 2220140 | C47: Atmos GIGA-I 50/200-11/2 | D47: =VLOOKUP(B47,'Wilo Price List'!B:F,5,FALSE) -> 5639
B48: 2220138 | C48: Atmos GIGA-I 50/200-15/2 | D48: =VLOOKUP(B48,'Wilo Price List'!B:F,5,FALSE) -> 6633
B49: 2220130 | C49: Atmos GIGA-I 50/200-2,2/4 | D49: =VLOOKUP(B49,'Wilo Price List'!B:F,5,FALSE) -> 3690
B50: 2220148 | C50: Atmos GIGA-I 50/220-1,5/4 | D50: =VLOOKUP(B50,'Wilo Price List'!B:F,5,FALSE) -> 4467
B51: 2220160 | C51: Atmos GIGA-I 50/220-15/2 | D51: =VLOOKUP(B51,'Wilo Price List'!B:F,5,FALSE) -> 7138
B52: 2220158 | C52: Atmos GIGA-I 50/230-18,5/2 | D52: =VLOOKUP(B52,'Wilo Price List'!B:F,5,FALSE) -> 7211
B53: 2220146 | C53: Atmos GIGA-I 50/230-2,2/4 | D53: =VLOOKUP(B53,'Wilo Price List'!B:F,5,FALSE) -> 4475
B54: 2220156 | C54: Atmos GIGA-I 50/240-18,5/2 | D54: =VLOOKUP(B54,'Wilo Price List'!B:F,5,FALSE) -> 7086
B55: 2220154 | C55: Atmos GIGA-I 50/240-22/2 | D55: =VLOOKUP(B55,'Wilo Price List'!B:F,5,FALSE) -> 8445
B56: 2220144 | C56: Atmos GIGA-I 50/240-3/4 | D56: =VLOOKUP(B56,'Wilo Price List'!B:F,5,FALSE) -> 4400
B57: 2220152 | C57: Atmos GIGA-I 50/250-22/2 | D57: =VLOOKUP(B57,'Wilo Price List'!B:F,5,FALSE) -> 8463
B58: 2220150 | C58: Atmos GIGA-I 50/250-30/2 | D58: =VLOOKUP(B58,'Wilo Price List'!B:F,5,FALSE) -> 8324
B59: 2222610 | C59: Atmos GIGA-I 50/250-4/4 | D59: =VLOOKUP(B59,'Wilo Price List'!B:F,5,FALSE) -> 4580
B60: 2222628 | C60: Atmos GIGA-I 50/85-1,5/2 | D60: =VLOOKUP(B60,'Wilo Price List'!B:F,5,FALSE) -> 3124
B61: 2220112 | C61: Atmos GIGA-I 50/95-2,2/2 | D61: =VLOOKUP(B61,'Wilo Price List'!B:F,5,FALSE) -> 3260
B63: 2219030 | C63: Atmos GIGA-I 65/105-0,55/4 | D63: =VLOOKUP(B63,'Wilo Price List'!B:F,5,FALSE) -> 3102
B64: 2219038 | C64: Atmos GIGA-I 65/105-4/2 | D64: =VLOOKUP(B64,'Wilo Price List'!B:F,5,FALSE) -> 3611
B65: 2219028 | C65: Atmos GIGA-I 65/115-0,75/4 | D65: =VLOOKUP(B65,'Wilo Price List'!B:F,5,FALSE) -> 3639
B66: 2219036 | C66: Atmos GIGA-I 65/115-5,5/2 | D66: =VLOOKUP(B66,'Wilo Price List'!B:F,5,FALSE) -> 4555
B67: 2219026 | C67: Atmos GIGA-I 65/125-1,1/4 | D67: =VLOOKUP(B67,'Wilo Price List'!B:F,5,FALSE) -> 3094
B68: 2219034 | C68: Atmos GIGA-I 65/125-7,5/2 | D68: =VLOOKUP(B68,'Wilo Price List'!B:F,5,FALSE) -> 4822
B69: 2220172 | C69: Atmos GIGA-I 65/130-5,5/2 | D69: =VLOOKUP(B69,'Wilo Price List'!B:F,5,FALSE) -> 5015
B70: 2220166 | C70: Atmos GIGA-I 65/140-0,75/4 | D70: =VLOOKUP(B70,'Wilo Price List'!B:F,5,FALSE) -> 3921
B71: 2220170 | C71: Atmos GIGA-I 65/140-7,5/2 | D71: =VLOOKUP(B71,'Wilo Price List'!B:F,5,FALSE) -> 5151
B72: 2220164 | C72: Atmos GIGA-I 65/150-1,1/4 | D72: =VLOOKUP(B72,'Wilo Price List'!B:F,5,FALSE) -> 3296
B73: 2220168 | C73: Atmos GIGA-I 65/150-11/2 | D73: =VLOOKUP(B73,'Wilo Price List'!B:F,5,FALSE) -> 5309
B74: 2220162 | C74: Atmos GIGA-I 65/160-1,5/4 | D74: =VLOOKUP(B74,'Wilo Price List'!B:F,5,FALSE) -> 3406
B75: 2222612 | C75: Atmos GIGA-I 65/160-15/2 | D75: =VLOOKUP(B75,'Wilo Price List'!B:F,5,FALSE) -> 6421
B76: 2220188 | C76: Atmos GIGA-I 65/180-15/2 | D76: =VLOOKUP(B76,'Wilo Price List'!B:F,5,FALSE) -> 6733
B77: 2222622 | C77: Atmos GIGA-I 65/190-15/2 | D77: =VLOOKUP(B77,'Wilo Price List'!B:F,5,FALSE) -> 6686
B78: 2220186 | C78: Atmos GIGA-I 65/190-18,5/2 | D78: =VLOOKUP(B78,'Wilo Price List'!B:F,5,FALSE) -> 6851
B79: 2220178 | C79: Atmos GIGA-I 65/190-2,2/4 | D79: =VLOOKUP(B79,'Wilo Price List'!B:F,5,FALSE) -> 4092
B80: 2220184 | C80: Atmos GIGA-I 65/200-18,5/2 | D80: =VLOOKUP(B80,'Wilo Price List'!B:F,5,FALSE) -> 6813
B81: 2220176 | C81: Atmos GIGA-I 65/200-2,2/4 | D81: =VLOOKUP(B81,'Wilo Price List'!B:F,5,FALSE) -> 4047
B82: 2220182 | C82: Atmos GIGA-I 65/200-22/2 | D82: =VLOOKUP(B82,'Wilo Price List'!B:F,5,FALSE) -> 8171
B83: 2220174 | C83: Atmos GIGA-I 65/200-3/4 | D83: =VLOOKUP(B83,'Wilo Price List'!B:F,5,FALSE) -> 4187
B84: 2220200 | C84: Atmos GIGA-I 65/230-18,5/2 | D84: =VLOOKUP(B84,'Wilo Price List'!B:F,5,FALSE) -> 7286
B85: 2220198 | C85: Atmos GIGA-I 65/230-22/2 | D85: =VLOOKUP(B85,'Wilo Price List'!B:F,5,FALSE) -> 8643
B86: 2220210 | C86: Atmos GIGA-I 65/230-3/4 | D86: =VLOOKUP(B86,'Wilo Price List'!B:F,5,FALSE) -> 4596
B87: 2220208 | C87: Atmos GIGA-I 65/240-3/4 | D87: =VLOOKUP(B87,'Wilo Price List'!B:F,5,FALSE) -> 4498
B88: 2220196 | C88: Atmos GIGA-I 65/240-30/2 | D88: =VLOOKUP(B88,'Wilo Price List'!B:F,5,FALSE) -> 8412
B89: 2220206 | C89: Atmos GIGA-I 65/240-4/4 | D89: =VLOOKUP(B89,'Wilo Price List'!B:F,5,FALSE) -> 4629
B90: 2220194 | C90: Atmos GIGA-I 65/250-30/2 | D90: =VLOOKUP(B90,'Wilo Price List'!B:F,5,FALSE) -> 8431
B91: 2220192 | C91: Atmos GIGA-I 65/250-37/2 | D91: =VLOOKUP(B91,'Wilo Price List'!B:F,5,FALSE) -> 10197
B92: 2220204 | C92: Atmos GIGA-I 65/250-4/4 | D92: =VLOOKUP(B92,'Wilo Price List'!B:F,5,FALSE) -> 4688
B93: 2220202 | C93: Atmos GIGA-I 65/250-5,5/4 | D93: =VLOOKUP(B93,'Wilo Price List'!B:F,5,FALSE) -> 5363
B94: 2219032 | C94: Atmos GIGA-I 65/95-0,37/4 | D94: =VLOOKUP(B94,'Wilo Price List'!B:F,5,FALSE) -> 3600
B95: 2219040 | C95: Atmos GIGA-I 65/95-3/2 | D95: =VLOOKUP(B95,'Wilo Price List'!B:F,5,FALSE) -> 3413
B97: 2220222 | C97: Atmos GIGA-I 80/105-5,5/2 | D97: =VLOOKUP(B97,'Wilo Price List'!B:F,5,FALSE) -> 4731
B98: 2220220 | C98: Atmos GIGA-I 80/115-7,5/2 | D98: =VLOOKUP(B98,'Wilo Price List'!B:F,5,FALSE) -> 4886
B99: 2222608 | C99: Atmos GIGA-I 80/120-7,5/2 | D99: =VLOOKUP(B99,'Wilo Price List'!B:F,5,FALSE) -> 5229
B100: 2220218 | C100: Atmos GIGA-I 80/125-11/2 | D100: =VLOOKUP(B100,'Wilo Price List'!B:F,5,FALSE) -> 5175
B101: 2222602 | C101: Atmos GIGA-I 80/130-0,75/4 | D101: =VLOOKUP(B101,'Wilo Price List'!B:F,5,FALSE) -> 3874
B102: 2220238 | C102: Atmos GIGA-I 80/130-11/2 | D102: =VLOOKUP(B102,'Wilo Price List'!B:F,5,FALSE) -> 5383
B103: 2220230 | C103: Atmos GIGA-I 80/140-1,1/4 | D103: =VLOOKUP(B103,'Wilo Price List'!B:F,5,FALSE) -> 3402
B104: 2220236 | C104: Atmos GIGA-I 80/140-15/2 | D104: =VLOOKUP(B104,'Wilo Price List'!B:F,5,FALSE) -> 6329
B105: 2220228 | C105: Atmos GIGA-I 80/150-1,5/4 | D105: =VLOOKUP(B105,'Wilo Price List'!B:F,5,FALSE) -> 3491
B106: 2220234 | C106: Atmos GIGA-I 80/150-15/2 | D106: =VLOOKUP(B106,'Wilo Price List'!B:F,5,FALSE) -> 6311
B107: 2220232 | C107: Atmos GIGA-I 80/150-18,5/2 | D107: =VLOOKUP(B107,'Wilo Price List'!B:F,5,FALSE) -> 6487
B108: 2222606 | C108: Atmos GIGA-I 80/160-18,5/2 | D108: =VLOOKUP(B108,'Wilo Price List'!B:F,5,FALSE) -> 6476
B109: 2220226 | C109: Atmos GIGA-I 80/160-2,2/4 | D109: =VLOOKUP(B109,'Wilo Price List'!B:F,5,FALSE) -> 3807
B110: 2222604 | C110: Atmos GIGA-I 80/160-22/2 | D110: =VLOOKUP(B110,'Wilo Price List'!B:F,5,FALSE) -> 7839
B111: 2220252 | C111: Atmos GIGA-I 80/165-15/2 | D111: =VLOOKUP(B111,'Wilo Price List'!B:F,5,FALSE) -> 7005
B112: 2220250 | C112: Atmos GIGA-I 80/165-18,5/2 | D112: =VLOOKUP(B112,'Wilo Price List'!B:F,5,FALSE) -> 7168
B113: 2220248 | C113: Atmos GIGA-I 80/170-18,5/2 | D113: =VLOOKUP(B113,'Wilo Price List'!B:F,5,FALSE) -> 7168
B114: 2220260 | C114: Atmos GIGA-I 80/170-2,2/4 | D114: =VLOOKUP(B114,'Wilo Price List'!B:F,5,FALSE) -> 4407
B115: 2220246 | C115: Atmos GIGA-I 80/170-22/2 | D115: =VLOOKUP(B115,'Wilo Price List'!B:F,5,FALSE) -> 8525
B116: 2220258 | C116: Atmos GIGA-I 80/180-3/4 | D116: =VLOOKUP(B116,'Wilo Price List'!B:F,5,FALSE) -> 4503
B117: 2220244 | C117: Atmos GIGA-I 80/180-30/2 | D117: =VLOOKUP(B117,'Wilo Price List'!B:F,5,FALSE) -> 8255
B118: 2220256 | C118: Atmos GIGA-I 80/190-3/4 | D118: =VLOOKUP(B118,'Wilo Price List'!B:F,5,FALSE) -> 4423
B119: 2220242 | C119: Atmos GIGA-I 80/190-30/2 | D119: =VLOOKUP(B119,'Wilo Price List'!B:F,5,FALSE) -> 8172
B120: 2220240 | C120: Atmos GIGA-I 80/190-37/2 | D120: =VLOOKUP(B120,'Wilo Price List'!B:F,5,FALSE) -> 9938
B121: 2220254 | C121: Atmos GIGA-I 80/190-4/4 | D121: =VLOOKUP(B121,'Wilo Price List'!B:F,5,FALSE) -> 4555
B122: 2222620 | C122: Atmos GIGA-I 80/200-5,5/4 | D122: =VLOOKUP(B122,'Wilo Price List'!B:F,5,FALSE) -> 5331
B123: 2219046 | C123: Atmos GIGA-I 80/230-4/4 | D123: =VLOOKUP(B123,'Wilo Price List'!B:F,5,FALSE) -> 5366
B124: 2219044 | C124: Atmos GIGA-I 80/240-5,5/4 | D124: =VLOOKUP(B124,'Wilo Price List'!B:F,5,FALSE) -> 6192
B125: 2219042 | C125: Atmos GIGA-I 80/250-7,5/4 | D125: =VLOOKUP(B125,'Wilo Price List'!B:F,5,FALSE) -> 6623
B126: 2220364 | C126: Atmos GIGA-I 80/285-5,5/4 | D126: =VLOOKUP(B126,'Wilo Price List'!B:F,5,FALSE) -> 7423
B127: 2220362 | C127: Atmos GIGA-I 80/295-5,5/4 | D127: =VLOOKUP(B127,'Wilo Price List'!B:F,5,FALSE) -> 7050
B128: 2220360 | C128: Atmos GIGA-I 80/295-7,5/4 | D128: =VLOOKUP(B128,'Wilo Price List'!B:F,5,FALSE) -> 7335
B129: 2220356 | C129: Atmos GIGA-I 80/305-11/4 | D129: =VLOOKUP(B129,'Wilo Price List'!B:F,5,FALSE) -> 7389
B130: 2220358 | C130: Atmos GIGA-I 80/305-7,5/4 | D130: =VLOOKUP(B130,'Wilo Price List'!B:F,5,FALSE) -> 7312
B131: 2220354 | C131: Atmos GIGA-I 80/315-11/4 | D131: =VLOOKUP(B131,'Wilo Price List'!B:F,5,FALSE) -> 7195
B132: 2220352 | C132: Atmos GIGA-I 80/315-15/4 | D132: =VLOOKUP(B132,'Wilo Price List'!B:F,5,FALSE) -> 8265
B133: 2222600 | C133: Atmos GIGA-I 80/85-3/2 | D133: =VLOOKUP(B133,'Wilo Price List'!B:F,5,FALSE) -> 3434
B134: 2220224 | C134: Atmos GIGA-I 80/95-4/2 | D134: =VLOOKUP(B134,'Wilo Price List'!B:F,5,FALSE) -> 3763
B136: 2219066 | C136: Atmos GIGA-I 100/120-11/2 | D136: =VLOOKUP(B136,'Wilo Price List'!B:F,5,FALSE) -> 6031
B137: 2219054 | C137: Atmos GIGA-I 100/130-1,1/4 | D137: =VLOOKUP(B137,'Wilo Price List'!B:F,5,FALSE) -> 4123
B138: 2219064 | C138: Atmos GIGA-I 100/130-15/2 | D138: =VLOOKUP(B138,'Wilo Price List'!B:F,5,FALSE) -> 6913
B139: 2219052 | C139: Atmos GIGA-I 100/140-1,5/4 | D139: =VLOOKUP(B139,'Wilo Price List'!B:F,5,FALSE) -> 4177
B140: 2219062 | C140: Atmos GIGA-I 100/140-18,5/2 | D140: =VLOOKUP(B140,'Wilo Price List'!B:F,5,FALSE) -> 6949
B141: 2219050 | C141: Atmos GIGA-I 100/150-2,2/4 | D141: =VLOOKUP(B141,'Wilo Price List'!B:F,5,FALSE) -> 4365
B142: 2219060 | C142: Atmos GIGA-I 100/150-22/2 | D142: =VLOOKUP(B142,'Wilo Price List'!B:F,5,FALSE) -> 8381
B143: 2219058 | C143: Atmos GIGA-I 100/160-22/2 | D143: =VLOOKUP(B143,'Wilo Price List'!B:F,5,FALSE) -> 8204
B144: 2219048 | C144: Atmos GIGA-I 100/160-3/4 | D144: =VLOOKUP(B144,'Wilo Price List'!B:F,5,FALSE) -> 4336
B145: 2219056 | C145: Atmos GIGA-I 100/160-30/2 | D145: =VLOOKUP(B145,'Wilo Price List'!B:F,5,FALSE) -> 8043
B146: 2219088 | C146: Atmos GIGA-I 100/165-22/2 | D146: =VLOOKUP(B146,'Wilo Price List'!B:F,5,FALSE) -> 9612
B147: 2219076 | C147: Atmos GIGA-I 100/170-3/4 | D147: =VLOOKUP(B147,'Wilo Price List'!B:F,5,FALSE) -> 5171
B148: 2219086 | C148: Atmos GIGA-I 100/170-30/2 | D148: =VLOOKUP(B148,'Wilo Price List'!B:F,5,FALSE) -> 9205
B149: 2219762 | C149: Atmos GIGA-I 100/180-30/2 | D149: =VLOOKUP(B149,'Wilo Price List'!B:F,5,FALSE) -> 9128
B150: 2219084 | C150: Atmos GIGA-I 100/180-37/2 | D150: =VLOOKUP(B150,'Wilo Price List'!B:F,5,FALSE) -> 10885
B151: 2219074 | C151: Atmos GIGA-I 100/180-4/4 | D151: =VLOOKUP(B151,'Wilo Price List'!B:F,5,FALSE) -> 5271
B152: 2219072 | C152: Atmos GIGA-I 100/190-5,5/4 | D152: =VLOOKUP(B152,'Wilo Price List'!B:F,5,FALSE) -> 5977
B153: 2219070 | C153: Atmos GIGA-I 100/200-5,5/4 | D153: =VLOOKUP(B153,'Wilo Price List'!B:F,5,FALSE) -> 5817
B154: 2219068 | C154: Atmos GIGA-I 100/200-7,5/4 | D154: =VLOOKUP(B154,'Wilo Price List'!B:F,5,FALSE) -> 6077
B155: 2218488 | C155: Atmos GIGA-I 100/230-5,5/4 | D155: =VLOOKUP(B155,'Wilo Price List'!B:F,5,FALSE) -> 6709
B156: 2218486 | C156: Atmos GIGA-I 100/240-5,5/4 | D156: =VLOOKUP(B156,'Wilo Price List'!B:F,5,FALSE) -> 6380
B157: 2218484 | C157: Atmos GIGA-I 100/240-7,5/4 | D157: =VLOOKUP(B157,'Wilo Price List'!B:F,5,FALSE) -> 6663
B158: 2218480 | C158: Atmos GIGA-I 100/250-11/4 | D158: =VLOOKUP(B158,'Wilo Price List'!B:F,5,FALSE) -> 7462
B159: 2218482 | C159: Atmos GIGA-I 100/250-7,5/4 | D159: =VLOOKUP(B159,'Wilo Price List'!B:F,5,FALSE) -> 6699
B160: 2220392 | C160: Atmos GIGA-I 100/265-5,5/4 | D160: =VLOOKUP(B160,'Wilo Price List'!B:F,5,FALSE) -> 7331
B161: 2220390 | C161: Atmos GIGA-I 100/275-7,5/4 | D161: =VLOOKUP(B161,'Wilo Price List'!B:F,5,FALSE) -> 8055
B162: 2220388 | C162: Atmos GIGA-I 100/285-11/4 | D162: =VLOOKUP(B162,'Wilo Price List'!B:F,5,FALSE) -> 7798
B163: 2220386 | C163: Atmos GIGA-I 100/295-11/4 | D163: =VLOOKUP(B163,'Wilo Price List'!B:F,5,FALSE) -> 7798
B164: 2220384 | C164: Atmos GIGA-I 100/295-15/4 | D164: =VLOOKUP(B164,'Wilo Price List'!B:F,5,FALSE) -> 8875
B165: 2220382 | C165: Atmos GIGA-I 100/305-15/4 | D165: =VLOOKUP(B165,'Wilo Price List'!B:F,5,FALSE) -> 8868
B166: 2220380 | C166: Atmos GIGA-I 100/305-18,5/4 | D166: =VLOOKUP(B166,'Wilo Price List'!B:F,5,FALSE) -> 10147
B167: 2220378 | C167: Atmos GIGA-I 100/315-18,5/4 | D167: =VLOOKUP(B167,'Wilo Price List'!B:F,5,FALSE) -> 10147
B168: 2220376 | C168: Atmos GIGA-I 100/315-22/4 | D168: =VLOOKUP(B168,'Wilo Price List'!B:F,5,FALSE) -> 10444
B169: 2220430 | C169: Atmos GIGA-I 100/350-11/4 | D169: =VLOOKUP(B169,'Wilo Price List'!B:F,5,FALSE) -> 11922
B170: 2220428 | C170: Atmos GIGA-I 100/350-15/4 | D170: =VLOOKUP(B170,'Wilo Price List'!B:F,5,FALSE) -> 13001
B171: 2220426 | C171: Atmos GIGA-I 100/360-15/4 | D171: =VLOOKUP(B171,'Wilo Price List'!B:F,5,FALSE) -> 12699
B172: 2220424 | C172: Atmos GIGA-I 100/360-18,5/4 | D172: =VLOOKUP(B172,'Wilo Price List'!B:F,5,FALSE) -> 13898
B173: 2220422 | C173: Atmos GIGA-I 100/370-18,5/4 | D173: =VLOOKUP(B173,'Wilo Price List'!B:F,5,FALSE) -> 13679
B174: 2220420 | C174: Atmos GIGA-I 100/370-22/4 | D174: =VLOOKUP(B174,'Wilo Price List'!B:F,5,FALSE) -> 13973
B175: 2220418 | C175: Atmos GIGA-I 100/380-22/4 | D175: =VLOOKUP(B175,'Wilo Price List'!B:F,5,FALSE) -> 13665
B176: 2220416 | C176: Atmos GIGA-I 100/380-30/4 | D176: =VLOOKUP(B176,'Wilo Price List'!B:F,5,FALSE) -> 15617
B177: 2220414 | C177: Atmos GIGA-I 100/390-30/4 | D177: =VLOOKUP(B177,'Wilo Price List'!B:F,5,FALSE) -> 15261
B179: 2222624 | C179: Atmos GIGA-I 125/130-1,5/4 | D179: =VLOOKUP(B179,'Wilo Price List'!B:F,5,FALSE) -> 4229
B180: 2219102 | C180: Atmos GIGA-I 125/130-15/2 | D180: =VLOOKUP(B180,'Wilo Price List'!B:F,5,FALSE) -> 7803
B181: 2219100 | C181: Atmos GIGA-I 125/140-18,5/2 | D181: =VLOOKUP(B181,'Wilo Price List'!B:F,5,FALSE) -> 8106
B182: 2219094 | C182: Atmos GIGA-I 125/140-2,2/4 | D182: =VLOOKUP(B182,'Wilo Price List'!B:F,5,FALSE) -> 5361
B183: 2219098 | C183: Atmos GIGA-I 125/150-22/2 | D183: =VLOOKUP(B183,'Wilo Price List'!B:F,5,FALSE) -> 9321
B184: 2219092 | C184: Atmos GIGA-I 125/150-3/4 | D184: =VLOOKUP(B184,'Wilo Price List'!B:F,5,FALSE) -> 5402
B185: 2219096 | C185: Atmos GIGA-I 125/160-30/2 | D185: =VLOOKUP(B185,'Wilo Price List'!B:F,5,FALSE) -> 9089
B186: 2219090 | C186: Atmos GIGA-I 125/160-4/4 | D186: =VLOOKUP(B186,'Wilo Price List'!B:F,5,FALSE) -> 5369
B187: 2220294 | C187: Atmos GIGA-I 125/170-37/2 | D187: =VLOOKUP(B187,'Wilo Price List'!B:F,5,FALSE) -> 11000
B188: 2220302 | C188: Atmos GIGA-I 125/180-4/4 | D188: =VLOOKUP(B188,'Wilo Price List'!B:F,5,FALSE) -> 5376
B189: 2220300 | C189: Atmos GIGA-I 125/190-5,5/4 | D189: =VLOOKUP(B189,'Wilo Price List'!B:F,5,FALSE) -> 6002
B190: 2220298 | C190: Atmos GIGA-I 125/200-7,5/4 | D190: =VLOOKUP(B190,'Wilo Price List'!B:F,5,FALSE) -> 6144
B191: 2218502 | C191: Atmos GIGA-I 125/220-5,5/4 | D191: =VLOOKUP(B191,'Wilo Price List'!B:F,5,FALSE) -> 7292
B192: 2218500 | C192: Atmos GIGA-I 125/230-5,5/4 | D192: =VLOOKUP(B192,'Wilo Price List'!B:F,5,FALSE) -> 7058
B193: 2218498 | C193: Atmos GIGA-I 125/230-7,5/4 | D193: =VLOOKUP(B193,'Wilo Price List'!B:F,5,FALSE) -> 7329
B194: 2218494 | C194: Atmos GIGA-I 125/240-11/4 | D194: =VLOOKUP(B194,'Wilo Price List'!B:F,5,FALSE) -> 7700
B195: 2218496 | C195: Atmos GIGA-I 125/240-7,5/4 | D195: =VLOOKUP(B195,'Wilo Price List'!B:F,5,FALSE) -> 6923
B196: 2218492 | C196: Atmos GIGA-I 125/250-11/4 | D196: =VLOOKUP(B196,'Wilo Price List'!B:F,5,FALSE) -> 7539
B197: 2218490 | C197: Atmos GIGA-I 125/250-15/4 | D197: =VLOOKUP(B197,'Wilo Price List'!B:F,5,FALSE) -> 8618
B198: 2218530 | C198: Atmos GIGA-I 125/285-15/4 | D198: =VLOOKUP(B198,'Wilo Price List'!B:F,5,FALSE) -> 8981
B199: 2218528 | C199: Atmos GIGA-I 125/295-15/4 | D199: =VLOOKUP(B199,'Wilo Price List'!B:F,5,FALSE) -> 9509
B200: 2218526 | C200: Atmos GIGA-I 125/295-18,5/4 | D200: =VLOOKUP(B200,'Wilo Price List'!B:F,5,FALSE) -> 10791
B201: 2218524 | C201: Atmos GIGA-I 125/305-18,5/4 | D201: =VLOOKUP(B201,'Wilo Price List'!B:F,5,FALSE) -> 10691
B202: 2218522 | C202: Atmos GIGA-I 125/305-22/4 | D202: =VLOOKUP(B202,'Wilo Price List'!B:F,5,FALSE) -> 10992
B203: 2218520 | C203: Atmos GIGA-I 125/315-22/4 | D203: =VLOOKUP(B203,'Wilo Price List'!B:F,5,FALSE) -> 10581
B204: 2218518 | C204: Atmos GIGA-I 125/315-30/4 | D204: =VLOOKUP(B204,'Wilo Price List'!B:F,5,FALSE) -> 12227
B205: 2220452 | C205: Atmos GIGA-I 125/380-30/4 | D205: =VLOOKUP(B205,'Wilo Price List'!B:F,5,FALSE) -> 18724
B206: 2220434 | C206: Atmos GIGA-I 125/400-55/4 | D206: =VLOOKUP(B206,'Wilo Price List'!B:F,5,FALSE) -> 24405
B208: 2219112 | C208: Atmos GIGA-I 150/170-5,5/4 | D208: =VLOOKUP(B208,'Wilo Price List'!B:F,5,FALSE) -> 6729
B209: 2219110 | C209: Atmos GIGA-I 150/180-7,5/4 | D209: =VLOOKUP(B209,'Wilo Price List'!B:F,5,FALSE) -> 7000
B210: 2219108 | C210: Atmos GIGA-I 150/190-11/4 | D210: =VLOOKUP(B210,'Wilo Price List'!B:F,5,FALSE) -> 7281
B211: 2219106 | C211: Atmos GIGA-I 150/200-11/4 | D211: =VLOOKUP(B211,'Wilo Price List'!B:F,5,FALSE) -> 7410
... 55 more rows

Sheet Atmos Giga D
B2: Atmos Giga D | H2: Home
B5: Article No. (or variant) | C5: Article description | D5: List Price | E5: Price group
E7: PG3
B8: 2225282 | C8: Atmos GIGA-D 40/160-5,5/2 | D8: =VLOOKUP(B8,'Wilo Price List'!B:F,5,FALSE) -> 8201
B9: 2225292 | C9: Atmos GIGA-D 40/190-0,75/4 | D9: =VLOOKUP(B9,'Wilo Price List'!B:F,5,FALSE) -> 8226
B10: 2225290 | C10: Atmos GIGA-D 40/200-1,1/4 | D10: =VLOOKUP(B10,'Wilo Price List'!B:F,5,FALSE) -> 7326
B12: 2225306 | C12: Atmos GIGA-D 50/85-1,5/2 | D12: =VLOOKUP(B12,'Wilo Price List'!B:F,5,FALSE) -> 5737
B14: 2225482 | C14: Atmos GIGA-D 100/120-11/2 | D14: =VLOOKUP(B14,'Wilo Price List'!B:F,5,FALSE) -> 13818
B15: 2225470 | C15: Atmos GIGA-D 100/130-1,1/4 | D15: =VLOOKUP(B15,'Wilo Price List'!B:F,5,FALSE) -> 9735
B16: 2225480 | C16: Atmos GIGA-D 100/130-15/2 | D16: =VLOOKUP(B16,'Wilo Price List'!B:F,5,FALSE) -> 15584
B17: 2225468 | C17: Atmos GIGA-D 100/140-1,5/4 | D17: =VLOOKUP(B17,'Wilo Price List'!B:F,5,FALSE) -> 10252
B18: 2225478 | C18: Atmos GIGA-D 100/140-18,5/2 | D18: =VLOOKUP(B18,'Wilo Price List'!B:F,5,FALSE) -> 15657
B19: 2225466 | C19: Atmos GIGA-D 100/150-2,2/4 | D19: =VLOOKUP(B19,'Wilo Price List'!B:F,5,FALSE) -> 10256
B20: 2225476 | C20: Atmos GIGA-D 100/150-22/2 | D20: =VLOOKUP(B20,'Wilo Price List'!B:F,5,FALSE) -> 18521
B21: 2225474 | C21: Atmos GIGA-D 100/160-22/2 | D21: =VLOOKUP(B21,'Wilo Price List'!B:F,5,FALSE) -> 18170
B22: 2225464 | C22: Atmos GIGA-D 100/160-3/4 | D22: =VLOOKUP(B22,'Wilo Price List'!B:F,5,FALSE) -> 10198
B23: 2225472 | C23: Atmos GIGA-D 100/160-30/2 | D23: =VLOOKUP(B23,'Wilo Price List'!B:F,5,FALSE) -> 17848
B24: 2225510 | C24: Atmos GIGA-D 100/230-5,5/4 | D24: =VLOOKUP(B24,'Wilo Price List'!B:F,5,FALSE) -> 14744
B25: 2225508 | C25: Atmos GIGA-D 100/240-5,5/4 | D25: =VLOOKUP(B25,'Wilo Price List'!B:F,5,FALSE) -> 14087
B26: 2225506 | C26: Atmos GIGA-D 100/240-7,5/4 | D26: =VLOOKUP(B26,'Wilo Price List'!B:F,5,FALSE) -> 14603
B27: 2225502 | C27: Atmos GIGA-D 100/250-11/4 | D27: =VLOOKUP(B27,'Wilo Price List'!B:F,5,FALSE) -> 16343
B28: 2225504 | C28: Atmos GIGA-D 100/250-7,5/4 | D28: =VLOOKUP(B28,'Wilo Price List'!B:F,5,FALSE) -> 14777
B30: 2225512 | C30: Atmos GIGA-D 125/160-4/4 | D30: =VLOOKUP(B30,'Wilo Price List'!B:F,5,FALSE) -> 11700
B31: 2225534 | C31: Atmos GIGA-D 125/180-4/4 | D31: =VLOOKUP(B31,'Wilo Price List'!B:F,5,FALSE) -> 12777
B32: 2225532 | C32: Atmos GIGA-D 125/190-5,5/4 | D32: =VLOOKUP(B32,'Wilo Price List'!B:F,5,FALSE) -> 14299
B33: 2225530 | C33: Atmos GIGA-D 125/200-7,5/4 | D33: =VLOOKUP(B33,'Wilo Price List'!B:F,5,FALSE) -> 14560
B34: 2225548 | C34: Atmos GIGA-D 125/220-5,5/4 | D34: =VLOOKUP(B34,'Wilo Price List'!B:F,5,FALSE) -> 16861
B35: 2225546 | C35: Atmos GIGA-D 125/230-5,5/4 | D35: =VLOOKUP(B35,'Wilo Price List'!B:F,5,FALSE) -> 16392
B36: 2225544 | C36: Atmos GIGA-D 125/230-7,5/4 | D36: =VLOOKUP(B36,'Wilo Price List'!B:F,5,FALSE) -> 16937
B37: 2225540 | C37: Atmos GIGA-D 125/240-11/4 | D37: =VLOOKUP(B37,'Wilo Price List'!B:F,5,FALSE) -> 17690
B38: 2225542 | C38: Atmos GIGA-D 125/240-7,5/4 | D38: =VLOOKUP(B38,'Wilo Price List'!B:F,5,FALSE) -> 16124
B39: 2225538 | C39: Atmos GIGA-D 125/250-11/4 | D39: =VLOOKUP(B39,'Wilo Price List'!B:F,5,FALSE) -> 17369
B40: 2225536 | C40: Atmos GIGA-D 125/250-15/4 | D40: =VLOOKUP(B40,'Wilo Price List'!B:F,5,FALSE) -> 19524
B42: 2225586 | C42: Atmos GIGA-D 150/220-11/4 | D42: =VLOOKUP(B42,'Wilo Price List'!B:F,5,FALSE) -> 19235
B43: 2225584 | C43: Atmos GIGA-D 150/230-11/4 | D43: =VLOOKUP(B43,'Wilo Price List'!B:F,5,FALSE) -> 18804
B44: 2225582 | C44: Atmos GIGA-D 150/230-15/4 | D44: =VLOOKUP(B44,'Wilo Price List'!B:F,5,FALSE) -> 20972
B45: 2225580 | C45: Atmos GIGA-D 150/240-15/4 | D45: =VLOOKUP(B45,'Wilo Price List'!B:F,5,FALSE) -> 20779
B46: 2225578 | C46: Atmos GIGA-D 150/240-18,5/4 | D46: =VLOOKUP(B46,'Wilo Price List'!B:F,5,FALSE) -> 23527
B47: 2225576 | C47: Atmos GIGA-D 150/250-18,5/4 | D47: =VLOOKUP(B47,'Wilo Price List'!B:F,5,FALSE) -> 23517
B48: 2225574 | C48: Atmos GIGA-D 150/250-22/4 | D48: =VLOOKUP(B48,'Wilo Price List'!B:F,5,FALSE) -> 24104
B49: 2225610 | C49: Atmos GIGA-D 150/275-15/4 | D49: =VLOOKUP(B49,'Wilo Price List'!B:F,5,FALSE) -> 27652
B50: 2225608 | C50: Atmos GIGA-D 150/275-18,5/4 | D50: =VLOOKUP(B50,'Wilo Price List'!B:F,5,FALSE) -> 30057
B51: 2225606 | C51: Atmos GIGA-D 150/285-18,5/4 | D51: =VLOOKUP(B51,'Wilo Price List'!B:F,5,FALSE) -> 29796
B52: 2225604 | C52: Atmos GIGA-D 150/285-22/4 | D52: =VLOOKUP(B52,'Wilo Price List'!B:F,5,FALSE) -> 30383
B53: 2225602 | C53: Atmos GIGA-D 150/295-30/4 | D53: =VLOOKUP(B53,'Wilo Price List'!B:F,5,FALSE) -> 33098
B54: 2225600 | C54: Atmos GIGA-D 150/305-30/4 | D54: =VLOOKUP(B54,'Wilo Price List'!B:F,5,FALSE) -> 32755
B55: 2225598 | C55: Atmos GIGA-D 150/305-37/4 | D55: =VLOOKUP(B55,'Wilo Price List'!B:F,5,FALSE) -> 56665
B56: 2225594 | C56: Atmos GIGA-D 150/315-37/4 | D56: =VLOOKUP(B56,'Wilo Price List'!B:F,5,FALSE) -> 56297
B57: 2225590 | C57: Atmos GIGA-D 150/315-45/4 | D57: =VLOOKUP(B57,'Wilo Price List'!B:F,5,FALSE) -> 37593
B59: 2225650 | C59: Atmos GIGA-D 200/275-22/4 | D59: =VLOOKUP(B59,'Wilo Price List'!B:F,5,FALSE) -> 30337
B60: 2225646 | C60: Atmos GIGA-D 200/285-30/4 | D60: =VLOOKUP(B60,'Wilo Price List'!B:F,5,FALSE) -> 32064
B61: 2225644 | C61: Atmos GIGA-D 200/295-30/4 | D61: =VLOOKUP(B61,'Wilo Price List'!B:F,5,FALSE) -> 32228
B62: 2225642 | C62: Atmos GIGA-D 200/295-37/4 | D62: =VLOOKUP(B62,'Wilo Price List'!B:F,5,FALSE) -> 56148
B63: 2225638 | C63: Atmos GIGA-D 200/305-37/4 | D63: =VLOOKUP(B63,'Wilo Price List'!B:F,5,FALSE) -> 55594
B64: 2225634 | C64: Atmos GIGA-D 200/305-45/4 | D64: =VLOOKUP(B64,'Wilo Price List'!B:F,5,FALSE) -> 36881
B65: 2225630 | C65: Atmos GIGA-D 200/315-45/4 | D65: =VLOOKUP(B65,'Wilo Price List'!B:F,5,FALSE) -> 36358
B66: 2225626 | C66: Atmos GIGA-D 200/315-55/4 | D66: =VLOOKUP(B66,'Wilo Price List'!B:F,5,FALSE) -> 50196

Sheet Yonos Giga 2.0
B2: Yonos Giga | H2: Home
B5: Article No. (or variant) | C5: Article description | D5: List Price | E5: Price group
B7: 3~
B9: 2204971 | C9: Yonos GIGA2.0-I 32/1-12/0,55 | D9: =VLOOKUP(B9,'Wilo Price List'!B:F,5,FALSE) -> 5126 | E9: PG3
B10: 2204970 | C10: Yonos GIGA2.0-I 32/1-15/0,75 | D10: =VLOOKUP(B10,'Wilo Price List'!B:F,5,FALSE) -> 5254 | E10: PG3
B11: 2204969 | C11: Yonos GIGA2.0-I 32/1-19/1,1 | D11: =VLOOKUP(B11,'Wilo Price List'!B:F,5,FALSE) -> 5260 | E11: PG3
B12: 2204968 | C12: Yonos GIGA2.0-I 32/1-24/1,5 | D12: =VLOOKUP(B12,'Wilo Price List'!B:F,5,FALSE) -> 5421 | E12: PG3
B13: 2204973 | C13: Yonos GIGA2.0-I 32/1-32/2,2 | D13: =VLOOKUP(B13,'Wilo Price List'!B:F,5,FALSE) -> 5417 | E13: PG3
B15: 2204977 | C15: Yonos GIGA2.0-I 40/1-8/0,55 | D15: =VLOOKUP(B15,'Wilo Price List'!B:F,5,FALSE) -> 5175 | E15: PG3
B16: 2204976 | C16: Yonos GIGA2.0-I 40/1-10/0,75 | D16: =VLOOKUP(B16,'Wilo Price List'!B:F,5,FALSE) -> 5245 | E16: PG3
B17: 2204975 | C17: Yonos GIGA2.0-I 40/1-13/1,1 | D17: =VLOOKUP(B17,'Wilo Price List'!B:F,5,FALSE) -> 5245 | E17: PG3
B18: 2204974 | C18: Yonos GIGA2.0-I 40/1-16/1,5 | D18: =VLOOKUP(B18,'Wilo Price List'!B:F,5,FALSE) -> 5340 | E18: PG3
B19: 2204983 | C19: Yonos GIGA2.0-I 40/1-21/2,2 | D19: =VLOOKUP(B19,'Wilo Price List'!B:F,5,FALSE) -> 5409 | E19: PG3
B20: 2204982 | C20: Yonos GIGA2.0-I 40/1-26/3,0 | D20: =VLOOKUP(B20,'Wilo Price List'!B:F,5,FALSE) -> 5407 | E20: PG3
B21: 2204981 | C21: Yonos GIGA2.0-I 40/1-31/4,0 | D21: =VLOOKUP(B21,'Wilo Price List'!B:F,5,FALSE) -> 5742 | E21: PG3
B23: 2204987 | C23: Yonos GIGA2.0-I 50/1-6/0,55 | D23: =VLOOKUP(B23,'Wilo Price List'!B:F,5,FALSE) -> 5276 | E23: PG3
B24: 2204986 | C24: Yonos GIGA2.0-I 50/1-8/0,75 | D24: =VLOOKUP(B24,'Wilo Price List'!B:F,5,FALSE) -> 5346 | E24: PG3
B25: 2204985 | C25: Yonos GIGA2.0-I 50/1-10/1,1 | D25: =VLOOKUP(B25,'Wilo Price List'!B:F,5,FALSE) -> 5346 | E25: PG3
B26: 2204984 | C26: Yonos GIGA2.0-I 50/1-13/1,5 | D26: =VLOOKUP(B26,'Wilo Price List'!B:F,5,FALSE) -> 5486 | E26: PG3
B27: 2204993 | C27: Yonos GIGA2.0-I 50/1-17/2,2 | D27: =VLOOKUP(B27,'Wilo Price List'!B:F,5,FALSE) -> 5510 | E27: PG3
B28: 2204992 | C28: Yonos GIGA2.0-I 50/1-20/3,0 | D28: =VLOOKUP(B28,'Wilo Price List'!B:F,5,FALSE) -> 5509 | E28: PG3
B29: 2204991 | C29: Yonos GIGA2.0-I 50/1-25/4,0 | D29: =VLOOKUP(B29,'Wilo Price List'!B:F,5,FALSE) -> 5892 | E29: PG3
B31: 2204997 | C31: Yonos GIGA2.0-I 65/1-5/0,55 | D31: =VLOOKUP(B31,'Wilo Price List'!B:F,5,FALSE) -> 5184 | E31: PG3
B32: 2204996 | C32: Yonos GIGA2.0-I 65/1-6/0,75 | D32: =VLOOKUP(B32,'Wilo Price List'!B:F,5,FALSE) -> 5357 | E32: PG3
B33: 2204995 | C33: Yonos GIGA2.0-I 65/1-8/1,1 2 | D33: =VLOOKUP(B33,'Wilo Price List'!B:F,5,FALSE) -> 5360 | E33: PG3
B34: 2204994 | C34: Yonos GIGA2.0-I 65/1-10/1,5 | D34: =VLOOKUP(B34,'Wilo Price List'!B:F,5,FALSE) -> 5500 | E34: PG3
B35: 2205003 | C35: Yonos GIGA2.0-I 65/1-14/2,2 | D35: =VLOOKUP(B35,'Wilo Price List'!B:F,5,FALSE) -> 5523 | E35: PG3
B36: 2205002 | C36: Yonos GIGA2.0-I 65/1-16/3,0 | D36: =VLOOKUP(B36,'Wilo Price List'!B:F,5,FALSE) -> 5596 | E36: PG3
B37: 2205001 | C37: Yonos GIGA2.0-I 65/1-20/4,0 | D37: =VLOOKUP(B37,'Wilo Price List'!B:F,5,FALSE) -> 5866 | E37: PG3
B38: 2205000 | C38: Yonos GIGA2.0-I 65/1-24/5,5 | D38: =VLOOKUP(B38,'Wilo Price List'!B:F,5,FALSE) -> 6753 | E38: PG3
B39: 2204999 | C39: Yonos GIGA2.0-I 65/1-31/7,5 | D39: =VLOOKUP(B39,'Wilo Price List'!B:F,5,FALSE) -> 6753 | E39: PG3
B41: 2205007 | C41: Yonos GIGA2.0-I 80/1-4/0,55 | D41: =VLOOKUP(B41,'Wilo Price List'!B:F,5,FALSE) -> 5513 | E41: PG3
B42: 2205006 | C42: Yonos GIGA2.0-I 80/1-5/0,75 | D42: =VLOOKUP(B42,'Wilo Price List'!B:F,5,FALSE) -> 5540 | E42: PG3
B43: 2205005 | C43: Yonos GIGA2.0-I 80/1-6/1,1 2 | D43: =VLOOKUP(B43,'Wilo Price List'!B:F,5,FALSE) -> 5540 | E43: PG3
B44: 2205004 | C44: Yonos GIGA2.0-I 80/1-8/1,5 2 | D44: =VLOOKUP(B44,'Wilo Price List'!B:F,5,FALSE) -> 5680 | E44: PG3
B45: 2205013 | C45: Yonos GIGA2.0-I 80/1-10/2,2 | D45: =VLOOKUP(B45,'Wilo Price List'!B:F,5,FALSE) -> 5704 | E45: PG3
B46: 2205012 | C46: Yonos GIGA2.0-I 80/1-12/3,0 | D46: =VLOOKUP(B46,'Wilo Price List'!B:F,5,FALSE) -> 5719 | E46: PG3
B47: 2205011 | C47: Yonos GIGA2.0-I 80/1-15/4,0 | D47: =VLOOKUP(B47,'Wilo Price List'!B:F,5,FALSE) -> 6046 | E47: PG3
B48: 2205010 | C48: Yonos GIGA2.0-I 80/1-19/5,5 | D48: =VLOOKUP(B48,'Wilo Price List'!B:F,5,FALSE) -> 6884 | E48: PG3
B49: 2205009 | C49: Yonos GIGA2.0-I 80/1-23/7,5 | D49: =VLOOKUP(B49,'Wilo Price List'!B:F,5,FALSE) -> 6884 | E49: PG3
B51: 2205023 | C51: Yonos GIGA2.0-I 100/1-8/2,2 | D51: =VLOOKUP(B51,'Wilo Price List'!B:F,5,FALSE) -> 7919 | E51: PG3
B52: 2205022 | C52: Yonos GIGA2.0-I 100/1-9/3,0 | D52: =VLOOKUP(B52,'Wilo Price List'!B:F,5,FALSE) -> 7901 | E52: PG3
B53: 2205021 | C53: Yonos GIGA2.0-I 100/1-11/4,0 | D53: =VLOOKUP(B53,'Wilo Price List'!B:F,5,FALSE) -> 9405 | E53: PG3
B54: 2205020 | C54: Yonos GIGA2.0-I 100/1-14/5,5 | D54: =VLOOKUP(B54,'Wilo Price List'!B:F,5,FALSE) -> 11474 | E54: PG3
B55: 2205019 | C55: Yonos GIGA2.0-I 100/1-18/7,5 | D55: =VLOOKUP(B55,'Wilo Price List'!B:F,5,FALSE) -> 11417 | E55: PG3
B57: 2205028 | C57: Yonos GIGA2.0-I 125/1-7/2,2 | D57: =VLOOKUP(B57,'Wilo Price List'!B:F,5,FALSE) -> 8357 | E57: PG3
B58: 2205027 | C58: Yonos GIGA2.0-I 125/1-9/3,0 | D58: =VLOOKUP(B58,'Wilo Price List'!B:F,5,FALSE) -> 8357 | E58: PG3
B59: 2205026 | C59: Yonos GIGA2.0-I 125/1-11/4,0 | D59: =VLOOKUP(B59,'Wilo Price List'!B:F,5,FALSE) -> 9794 | E59: PG3
B60: 2205025 | C60: Yonos GIGA2.0-I 125/1-14/5,5 | D60: =VLOOKUP(B60,'Wilo Price List'!B:F,5,FALSE) -> 12206 | E60: PG3
B61: 2205024 | C61: Yonos GIGA2.0-I 125/1-17/7,5 | D61: =VLOOKUP(B61,'Wilo Price List'!B:F,5,FALSE) -> 12149 | E61: PG3
B63: 1~
B65: 2207029 | C65: Yonos GIGA2.0-I 32/1-9/M-0,37 | D65: =VLOOKUP(B65,'Wilo Price List'!B:F,5,FALSE) -> 4822 | E65: PG3
B66: 2207028 | C66: Yonos GIGA2.0-I 32/1-12/M-0,55 | D66: =VLOOKUP(B66,'Wilo Price List'!B:F,5,FALSE) -> 4822 | E66: PG3
B67: 2207027 | C67: Yonos GIGA2.0-I 32/1-15/M-0,75 | D67: =VLOOKUP(B67,'Wilo Price List'!B:F,5,FALSE) -> 4971 | E67: PG3
B68: 2207026 | C68: Yonos GIGA2.0-I 32/1-19/M-1,1 | D68: =VLOOKUP(B68,'Wilo Price List'!B:F,5,FALSE) -> 4971 | E68: PG3
B69: 2207025 | C69: Yonos GIGA2.0-I 32/1-24/M-1,5 | D69: =VLOOKUP(B69,'Wilo Price List'!B:F,5,FALSE) -> 4965 | E69: PG3
B71: 2207034 | C71: Yonos GIGA2.0-I 40/1-6/M-0,37 | D71: =VLOOKUP(B71,'Wilo Price List'!B:F,5,FALSE) -> 4826 | E71: PG3
B72: 2207033 | C72: Yonos GIGA2.0-I 40/1-8/M-0,55 | D72: =VLOOKUP(B72,'Wilo Price List'!B:F,5,FALSE) -> 4947 | E72: PG3
B73: 2207032 | C73: Yonos GIGA2.0-I 40/1-10/M-0,75 | D73: =VLOOKUP(B73,'Wilo Price List'!B:F,5,FALSE) -> 4947 | E73: PG3
B74: 2207031 | C74: Yonos GIGA2.0-I 40/1-13/M-1,1 | D74: =VLOOKUP(B74,'Wilo Price List'!B:F,5,FALSE) -> 4947 | E74: PG3
B75: 2207030 | C75: Yonos GIGA2.0-I 40/1-16/M-1,5 | D75: =VLOOKUP(B75,'Wilo Price List'!B:F,5,FALSE) -> 5168 | E75: PG3
B77: 2207039 | C77: Yonos GIGA2.0-I 50/1-5/M-0,37 | D77: =VLOOKUP(B77,'Wilo Price List'!B:F,5,FALSE) -> 4926 | E77: PG3
B78: 2207038 | C78: Yonos GIGA2.0-I 50/1-6/M-0,55 | D78: =VLOOKUP(B78,'Wilo Price List'!B:F,5,FALSE) -> 5048 | E78: PG3
B79: 2207037 | C79: Yonos GIGA2.0-I 50/1-8/M-0,75 | D79: =VLOOKUP(B79,'Wilo Price List'!B:F,5,FALSE) -> 5048 | E79: PG3
B80: 2207036 | C80: Yonos GIGA2.0-I 50/1-10/M-1,1 | D80: =VLOOKUP(B80,'Wilo Price List'!B:F,5,FALSE) -> 5048 | E80: PG3
B81: 2207035 | C81: Yonos GIGA2.0-I 50/1-13/M-1,5 | D81: =VLOOKUP(B81,'Wilo Price List'!B:F,5,FALSE) -> 5270 | E81: PG3
B83: 2207044 | C83: Yonos GIGA2.0-I 65/1-4/M-0,37 | D83: =VLOOKUP(B83,'Wilo Price List'!B:F,5,FALSE) -> 4942 | E83: PG3
B84: 2207043 | C84: Yonos GIGA2.0-I 65/1-5/M-0,55 | D84: =VLOOKUP(B84,'Wilo Price List'!B:F,5,FALSE) -> 4942 | E84: PG3
B85: 2207042 | C85: Yonos GIGA2.0-I 65/1-6/M-0,75 | D85: =VLOOKUP(B85,'Wilo Price List'!B:F,5,FALSE) -> 5090 | E85: PG3
B86: 2207041 | C86: Yonos GIGA2.0-I 65/1-8/M-1,1 | D86: =VLOOKUP(B86,'Wilo Price List'!B:F,5,FALSE) -> 5089 | E86: PG3
B87: 2207040 | C87: Yonos GIGA2.0-I 65/1-10/M-1,5 | D87: =VLOOKUP(B87,'Wilo Price List'!B:F,5,FALSE) -> 5308 | E87: PG3
B89: 2207049 | C89: Yonos GIGA2.0-I 80/1-3/M-0,37 | D89: =VLOOKUP(B89,'Wilo Price List'!B:F,5,FALSE) -> 5128 | E89: PG3
B90: 2207048 | C90: Yonos GIGA2.0-I 80/1-4/M-0,55 | D90: =VLOOKUP(B90,'Wilo Price List'!B:F,5,FALSE) -> 5249 | E90: PG3
B91: 2207047 | C91: Yonos GIGA2.0-I 80/1-5/M-0,75 | D91: =VLOOKUP(B91,'Wilo Price List'!B:F,5,FALSE) -> 5249 | E91: PG3
B92: 2207046 | C92: Yonos GIGA2.0-I 80/1-6/M-1,1 | D92: =VLOOKUP(B92,'Wilo Price List'!B:F,5,FALSE) -> 5249 | E92: PG3
B93: 2207045 | C93: Yonos GIGA2.0-I 80/1-8/M-1,5 | D93: =VLOOKUP(B93,'Wilo Price List'!B:F,5,FALSE) -> 5469 | E93: PG3

Sheet Yonos Giga D 2.0
B2: Yonos Giga | H2: Home
B5: Article No. (or variant) | C5: Article description | D5: List Price | E5: Price group
B7: 3~
B9: 2205855 | C9: Yonos GIGA2.0-D 32/1-12/0,55 | D9: =VLOOKUP(B9,'Wilo Price List'!B:F,5,FALSE) -> 9132 | E9: PG3
B10: 2205854 | C10: Yonos GIGA2.0-D 32/1-15/0,75 | D10: =VLOOKUP(B10,'Wilo Price List'!B:F,5,FALSE) -> 9471 | E10: PG3
B11: 2205853 | C11: Yonos GIGA2.0-D 32/1-19/1,1 | D11: =VLOOKUP(B11,'Wilo Price List'!B:F,5,FALSE) -> 9483 | E11: PG3
B12: 2205852 | C12: Yonos GIGA2.0-D 32/1-24/1,5 | D12: =VLOOKUP(B12,'Wilo Price List'!B:F,5,FALSE) -> 9461 | E12: PG3
B13: 2205857 | C13: Yonos GIGA2.0-D 32/1-32/2,2 | D13: =VLOOKUP(B13,'Wilo Price List'!B:F,5,FALSE) -> 9804 | E13: PG3
B15: 2205861 | C15: Yonos GIGA2.0-D 40/1-8/0,55 | D15: =VLOOKUP(B15,'Wilo Price List'!B:F,5,FALSE) -> 8938 | E15: PG3
B16: 2205860 | C16: Yonos GIGA2.0-D 40/1-10/0,75 | D16: =VLOOKUP(B16,'Wilo Price List'!B:F,5,FALSE) -> 9423 | E16: PG3
B17: 2205859 | C17: Yonos GIGA2.0-D 40/1-13/1,1 | D17: =VLOOKUP(B17,'Wilo Price List'!B:F,5,FALSE) -> 9423 | E17: PG3
B18: 2205858 | C18: Yonos GIGA2.0-D 40/1-16/1,5 | D18: =VLOOKUP(B18,'Wilo Price List'!B:F,5,FALSE) -> 9704 | E18: PG3
B19: 2205867 | C19: Yonos GIGA2.0-D 40/1-21/2,2 | D19: =VLOOKUP(B19,'Wilo Price List'!B:F,5,FALSE) -> 9750 | E19: PG3
B20: 2205866 | C20: Yonos GIGA2.0-D 40/1-26/3,0 | D20: =VLOOKUP(B20,'Wilo Price List'!B:F,5,FALSE) -> 9747 | E20: PG3
B21: 2205865 | C21: Yonos GIGA2.0-D 40/1-31/4,0 | D21: =VLOOKUP(B21,'Wilo Price List'!B:F,5,FALSE) -> 10418 | E21: PG3
B23: 2205871 | C23: Yonos GIGA2.0-D 50/1-6/0,55 | D23: =VLOOKUP(B23,'Wilo Price List'!B:F,5,FALSE) -> 9692 | E23: PG3
B24: 2205870 | C24: Yonos GIGA2.0-D 50/1-8/0,75 | D24: =VLOOKUP(B24,'Wilo Price List'!B:F,5,FALSE) -> 9833 | E24: PG3
B25: 2205869 | C25: Yonos GIGA2.0-D 50/1-10/1,1 | D25: =VLOOKUP(B25,'Wilo Price List'!B:F,5,FALSE) -> 9833 | E25: PG3
B26: 2205868 | C26: Yonos GIGA2.0-D 50/1-13/1,5 | D26: =VLOOKUP(B26,'Wilo Price List'!B:F,5,FALSE) -> 10113 | E26: PG3
B27: 2205877 | C27: Yonos GIGA2.0-D 50/1-17/2,2 | D27: =VLOOKUP(B27,'Wilo Price List'!B:F,5,FALSE) -> 10160 | E27: PG3
B28: 2205876 | C28: Yonos GIGA2.0-D 50/1-20/3,0 | D28: =VLOOKUP(B28,'Wilo Price List'!B:F,5,FALSE) -> 10157 | E28: PG3
B29: 2205875 | C29: Yonos GIGA2.0-D 50/1-25/4,0 | D29: =VLOOKUP(B29,'Wilo Price List'!B:F,5,FALSE) -> 10838 | E29: PG3
B31: 2205881 | C31: Yonos GIGA2.0-D 65/1-5/0,55 | D31: =VLOOKUP(B31,'Wilo Price List'!B:F,5,FALSE) -> 9707 | E31: PG3
B32: 2205880 | C32: Yonos GIGA2.0-D 65/1-6/0,75 | D32: =VLOOKUP(B32,'Wilo Price List'!B:F,5,FALSE) -> 10051 | E32: PG3
B33: 2205879 | C33: Yonos GIGA2.0-D 65/1-8/1,1 2 | D33: =VLOOKUP(B33,'Wilo Price List'!B:F,5,FALSE) -> 10056 | E33: PG3
B34: 2205878 | C34: Yonos GIGA2.0-D 65/1-10/1,5 | D34: =VLOOKUP(B34,'Wilo Price List'!B:F,5,FALSE) -> 10337 | E34: PG3
B35: 2205887 | C35: Yonos GIGA2.0-D 65/1-14/2,2 | D35: =VLOOKUP(B35,'Wilo Price List'!B:F,5,FALSE) -> 10384 | E35: PG3
B36: 2205886 | C36: Yonos GIGA2.0-D 65/1-16/3,0 | D36: =VLOOKUP(B36,'Wilo Price List'!B:F,5,FALSE) -> 10529 | E36: PG3
B37: 2205885 | C37: Yonos GIGA2.0-D 65/1-20/4,0 | D37: =VLOOKUP(B37,'Wilo Price List'!B:F,5,FALSE) -> 11067 | E37: PG3
B38: 2205884 | C38: Yonos GIGA2.0-D 65/1-24/5,5 | D38: =VLOOKUP(B38,'Wilo Price List'!B:F,5,FALSE) -> 13071 | E38: PG3
B39: 2205883 | C39: Yonos GIGA2.0-D 65/1-31/7,5 | D39: =VLOOKUP(B39,'Wilo Price List'!B:F,5,FALSE) -> 13071 | E39: PG3
B41: 2205891 | C41: Yonos GIGA2.0-D 80/1-4/0,55 | D41: =VLOOKUP(B41,'Wilo Price List'!B:F,5,FALSE) -> 10033 | E41: PG3
B42: 2205890 | C42: Yonos GIGA2.0-D 80/1-5/0,75 | D42: =VLOOKUP(B42,'Wilo Price List'!B:F,5,FALSE) -> 10174 | E42: PG3
B43: 2205889 | C43: Yonos GIGA2.0-D 80/1-6/1,1 2 | D43: =VLOOKUP(B43,'Wilo Price List'!B:F,5,FALSE) -> 10174 | E43: PG3
B44: 2205888 | C44: Yonos GIGA2.0-D 80/1-8/1,5 2 | D44: =VLOOKUP(B44,'Wilo Price List'!B:F,5,FALSE) -> 10454 | E44: PG3
B45: 2205897 | C45: Yonos GIGA2.0-D 80/1-10/2,2 | D45: =VLOOKUP(B45,'Wilo Price List'!B:F,5,FALSE) -> 10500 | E45: PG3
B46: 2205896 | C46: Yonos GIGA2.0-D 80/1-12/3,0 | D46: =VLOOKUP(B46,'Wilo Price List'!B:F,5,FALSE) -> 10532 | E46: PG3
B47: 2205895 | C47: Yonos GIGA2.0-D 80/1-15/4,0 | D47: =VLOOKUP(B47,'Wilo Price List'!B:F,5,FALSE) -> 11186 | E47: PG3
B48: 2205894 | C48: Yonos GIGA2.0-D 80/1-19/5,5 | D48: =VLOOKUP(B48,'Wilo Price List'!B:F,5,FALSE) -> 12861 | E48: PG3
B49: 2205893 | C49: Yonos GIGA2.0-D 80/1-23/7,5 | D49: =VLOOKUP(B49,'Wilo Price List'!B:F,5,FALSE) -> 12861 | E49: PG3
B51: 2205907 | C51: Yonos GIGA2.0-D 100/1-8/2,2 | D51: =VLOOKUP(B51,'Wilo Price List'!B:F,5,FALSE) -> 17572 | E51: PG3
B52: 2205906 | C52: Yonos GIGA2.0-D 100/1-9/3,0 | D52: =VLOOKUP(B52,'Wilo Price List'!B:F,5,FALSE) -> 17537 | E52: PG3
B53: 2205905 | C53: Yonos GIGA2.0-D 100/1-11/4,0 | D53: =VLOOKUP(B53,'Wilo Price List'!B:F,5,FALSE) -> 20577 | E53: PG3
B54: 2205904 | C54: Yonos GIGA2.0-D 100/1-14/5,5 | D54: =VLOOKUP(B54,'Wilo Price List'!B:F,5,FALSE) -> 24011 | E54: PG3
B55: 2205903 | C55: Yonos GIGA2.0-D 100/1-18/7,5 | D55: =VLOOKUP(B55,'Wilo Price List'!B:F,5,FALSE) -> 23897 | E55: PG3
B57: 2205912 | C57: Yonos GIGA2.0-D 125/1-7/2,2 | D57: =VLOOKUP(B57,'Wilo Price List'!B:F,5,FALSE) -> 27003 | E57: PG3
B58: 2205911 | C58: Yonos GIGA2.0-D 125/1-9/3,0 | D58: =VLOOKUP(B58,'Wilo Price List'!B:F,5,FALSE) -> 27003 | E58: PG3
B59: 2205910 | C59: Yonos GIGA2.0-D 125/1-11/4,0 | D59: =VLOOKUP(B59,'Wilo Price List'!B:F,5,FALSE) -> 29883 | E59: PG3
B60: 2205909 | C60: Yonos GIGA2.0-D 125/1-14/5,5 | D60: =VLOOKUP(B60,'Wilo Price List'!B:F,5,FALSE) -> 31676 | E60: PG3
B61: 2205908 | C61: Yonos GIGA2.0-D 125/1-17/7,5 | D61: =VLOOKUP(B61,'Wilo Price List'!B:F,5,FALSE) -> 31563 | E61: PG3
B63: 1~
B65: 2207249 | C65: Yonos GIGA2.0-D 32/1-9/M-0,37 | D65: =VLOOKUP(B65,'Wilo Price List'!B:F,5,FALSE) -> 8421 | E65: PG3
B66: 2207248 | C66: Yonos GIGA2.0-D 32/1-12/M-0,55 | D66: =VLOOKUP(B66,'Wilo Price List'!B:F,5,FALSE) -> 8421 | E66: PG3
B67: 2207247 | C67: Yonos GIGA2.0-D 32/1-15/M-0,75 | D67: =VLOOKUP(B67,'Wilo Price List'!B:F,5,FALSE) -> 8719 | E67: PG3
B68: 2207246 | C68: Yonos GIGA2.0-D 32/1-19/M-1,1 | D68: =VLOOKUP(B68,'Wilo Price List'!B:F,5,FALSE) -> 8719 | E68: PG3
B69: 2207245 | C69: Yonos GIGA2.0-D 32/1-24/M-1,5 | D69: =VLOOKUP(B69,'Wilo Price List'!B:F,5,FALSE) -> 8707 | E69: PG3
B71: 2207254 | C71: Yonos GIGA2.0-D 40/1-6/M-0,37 | D71: =VLOOKUP(B71,'Wilo Price List'!B:F,5,FALSE) -> 9257 | E71: PG3
B72: 2207253 | C72: Yonos GIGA2.0-D 40/1-8/M-0,55 | D72: =VLOOKUP(B72,'Wilo Price List'!B:F,5,FALSE) -> 9500 | E72: PG3
B73: 2207252 | C73: Yonos GIGA2.0-D 40/1-10/M-0,75 | D73: =VLOOKUP(B73,'Wilo Price List'!B:F,5,FALSE) -> 9500 | E73: PG3
B74: 2207251 | C74: Yonos GIGA2.0-D 40/1-13/M-1,1 | D74: =VLOOKUP(B74,'Wilo Price List'!B:F,5,FALSE) -> 9500 | E74: PG3
B75: 2207250 | C75: Yonos GIGA2.0-D 40/1-16/M-1,5 | D75: =VLOOKUP(B75,'Wilo Price List'!B:F,5,FALSE) -> 9940 | E75: PG3
B77: 2207259 | C77: Yonos GIGA2.0-D 50/1-5/M-0,37 | D77: =VLOOKUP(B77,'Wilo Price List'!B:F,5,FALSE) -> 9228 | E77: PG3
B78: 2207258 | C78: Yonos GIGA2.0-D 50/1-6/M-0,55 | D78: =VLOOKUP(B78,'Wilo Price List'!B:F,5,FALSE) -> 9471 | E78: PG3
B79: 2207257 | C79: Yonos GIGA2.0-D 50/1-8/M-0,75 | D79: =VLOOKUP(B79,'Wilo Price List'!B:F,5,FALSE) -> 9471 | E79: PG3
B80: 2207256 | C80: Yonos GIGA2.0-D 50/1-10/M-1,1 | D80: =VLOOKUP(B80,'Wilo Price List'!B:F,5,FALSE) -> 9471 | E80: PG3
B81: 2207255 | C81: Yonos GIGA2.0-D 50/1-13/M-1,5 | D81: =VLOOKUP(B81,'Wilo Price List'!B:F,5,FALSE) -> 9911 | E81: PG3
B83: 2207264 | C83: Yonos GIGA2.0-D 65/1-4/M-0,37 | D83: =VLOOKUP(B83,'Wilo Price List'!B:F,5,FALSE) -> 9415 | E83: PG3
B84: 2207263 | C84: Yonos GIGA2.0-D 65/1-5/M-0,55 | D84: =VLOOKUP(B84,'Wilo Price List'!B:F,5,FALSE) -> 9415 | E84: PG3
B85: 2207262 | C85: Yonos GIGA2.0-D 65/1-6/M-0,75 | D85: =VLOOKUP(B85,'Wilo Price List'!B:F,5,FALSE) -> 9712 | E85: PG3
B86: 2207261 | C86: Yonos GIGA2.0-D 65/1-8/M-1,1 | D86: =VLOOKUP(B86,'Wilo Price List'!B:F,5,FALSE) -> 9709 | E86: PG3
B87: 2207260 | C87: Yonos GIGA2.0-D 65/1-10/M-1,5 | D87: =VLOOKUP(B87,'Wilo Price List'!B:F,5,FALSE) -> 10149 | E87: PG3
B89: 2207269 | C89: Yonos GIGA2.0-D 80/1-3/M-0,37 | D89: =VLOOKUP(B89,'Wilo Price List'!B:F,5,FALSE) -> 9285 | E89: PG3
B90: 2207268 | C90: Yonos GIGA2.0-D 80/1-4/M-0,55 | D90: =VLOOKUP(B90,'Wilo Price List'!B:F,5,FALSE) -> 9528 | E90: PG3
B91: 2207267 | C91: Yonos GIGA2.0-D 80/1-5/M-0,75 | D91: =VLOOKUP(B91,'Wilo Price List'!B:F,5,FALSE) -> 9528 | E91: PG3
B92: 2207266 | C92: Yonos GIGA2.0-D 80/1-6/M-1,1 | D92: =VLOOKUP(B92,'Wilo Price List'!B:F,5,FALSE) -> 9528 | E92: PG3
B93: 2207265 | C93: Yonos GIGA2.0-D 80/1-8/M-1,5 | D93: =VLOOKUP(B93,'Wilo Price List'!B:F,5,FALSE) -> 9967 | E93: PG3

Sheet Stratos Giga I 2.0
B2: Stratos Giga 2.0 I | H2: Home
B5: Article No. (or variant) | C5: Article description | D5: List Price | E5: Price group
B7: 3~
B9: 2204720 | C9: Stratos GIGA2.0-I 32/1-25/1,5 | D9: =VLOOKUP(B9,'Wilo Price List'!B:F,5,FALSE) -> 7018 | E9: PG3
B10: 2204721 | C10: Stratos GIGA2.0-I 32/1-20/1,1 | D10: =VLOOKUP(B10,'Wilo Price List'!B:F,5,FALSE) -> 6800 | E10: PG3
B11: 2204722 | C11: Stratos GIGA2.0-I 32/1-15/0,75 | D11: =VLOOKUP(B11,'Wilo Price List'!B:F,5,FALSE) -> 6627 | E11: PG3
B12: 2204723 | C12: Stratos GIGA2.0-I 32/1-13/0,55 | D12: =VLOOKUP(B12,'Wilo Price List'!B:F,5,FALSE) -> 6580 | E12: PG3
B14: 2204726 | C14: Stratos GIGA2.0-I 40/1-19/1,1 | D14: =VLOOKUP(B14,'Wilo Price List'!B:F,5,FALSE) -> 6414 | E14: PG3
B15: 2204727 | C15: Stratos GIGA2.0-I 40/1-14/0,75 | D15: =VLOOKUP(B15,'Wilo Price List'!B:F,5,FALSE) -> 6409 | E15: PG3
B16: 2204728 | C16: Stratos GIGA2.0-I 40/1-11/0,55 | D16: =VLOOKUP(B16,'Wilo Price List'!B:F,5,FALSE) -> 6194 | E16: PG3
B18: 2204733 | C18: Stratos GIGA2.0-I 50/1-17/1,1 | D18: =VLOOKUP(B18,'Wilo Price List'!B:F,5,FALSE) -> 6496 | E18: PG3
B19: 2204734 | C19: Stratos GIGA2.0-I 50/1-13/0,75 | D19: =VLOOKUP(B19,'Wilo Price List'!B:F,5,FALSE) -> 6345 | E19: PG3
B20: 2204735 | C20: Stratos GIGA2.0-I 50/1-10/0,55 | D20: =VLOOKUP(B20,'Wilo Price List'!B:F,5,FALSE) -> 6272 | E20: PG3
B22: 2204740 | C22: Stratos GIGA2.0-I 65/1-12/1,1 | D22: =VLOOKUP(B22,'Wilo Price List'!B:F,5,FALSE) -> 6871 | E22: PG3
B23: 2204741 | C23: Stratos GIGA2.0-I 65/1-9/0,75 | D23: =VLOOKUP(B23,'Wilo Price List'!B:F,5,FALSE) -> 6871 | E23: PG3
B24: 2204742 | C24: Stratos GIGA2.0-I 65/1-7/0,55 | D24: =VLOOKUP(B24,'Wilo Price List'!B:F,5,FALSE) -> 6655 | E24: PG3
B26: 2204748 | C26: Stratos GIGA2.0-I 80/1-10/1,1 | D26: =VLOOKUP(B26,'Wilo Price List'!B:F,5,FALSE) -> 6946 | E26: PG3
B27: 2204749 | C27: Stratos GIGA2.0-I 80/1-8/0,75 | D27: =VLOOKUP(B27,'Wilo Price List'!B:F,5,FALSE) -> 6946 | E27: PG3
B28: 2204750 | C28: Stratos GIGA2.0-I 80/1-6/0,55 | D28: =VLOOKUP(B28,'Wilo Price List'!B:F,5,FALSE) -> 6874 | E28: PG3
B30: 2204725 | C30: Stratos GIGA2.0-I 40/1-23/1,5 | D30: =VLOOKUP(B30,'Wilo Price List'!B:F,5,FALSE) -> 6879 | E30: PG3
B31: 2204730 | C31: Stratos GIGA2.0-I 40/1-37/3,0 | D31: =VLOOKUP(B31,'Wilo Price List'!B:F,5,FALSE) -> 7068 | E31: PG3
B32: 2204731 | C32: Stratos GIGA2.0-I 40/1-31/2,2 | D32: =VLOOKUP(B32,'Wilo Price List'!B:F,5,FALSE) -> 6928 | E32: PG3
B34: 2204732 | C34: Stratos GIGA2.0-I 50/1-20/1,5 | D34: =VLOOKUP(B34,'Wilo Price List'!B:F,5,FALSE) -> 6993 | E34: PG3
B35: 2204737 | C35: Stratos GIGA2.0-I 50/1-37/3,0 | D35: =VLOOKUP(B35,'Wilo Price List'!B:F,5,FALSE) -> 7161 | E35: PG3
B36: 2204738 | C36: Stratos GIGA2.0-I 50/1-30/2,2 | D36: =VLOOKUP(B36,'Wilo Price List'!B:F,5,FALSE) -> 7022 | E36: PG3
B38: 2204739 | C38: Stratos GIGA2.0-I 65/1-15/1,5 | D38: =VLOOKUP(B38,'Wilo Price List'!B:F,5,FALSE) -> 7104 | E38: PG3
B39: 2204744 | C39: Stratos GIGA2.0-I 65/1-37/4,0 | D39: =VLOOKUP(B39,'Wilo Price List'!B:F,5,FALSE) -> 7448 | E39: PG3
B40: 2204745 | C40: Stratos GIGA2.0-I 65/1-31/3,0 | D40: =VLOOKUP(B40,'Wilo Price List'!B:F,5,FALSE) -> 7262 | E40: PG3
B41: 2204746 | C41: Stratos GIGA2.0-I 65/1-25/2,2 | D41: =VLOOKUP(B41,'Wilo Price List'!B:F,5,FALSE) -> 7317 | E41: PG3
B43: 2204747 | C43: Stratos GIGA2.0-I 80/1-13/1,5 | D43: =VLOOKUP(B43,'Wilo Price List'!B:F,5,FALSE) -> 7549 | E43: PG3
B44: 2204754 | C44: Stratos GIGA2.0-I 80/1-30/4,0 | D44: =VLOOKUP(B44,'Wilo Price List'!B:F,5,FALSE) -> 7762 | E44: PG3
B45: 2204755 | C45: Stratos GIGA2.0-I 80/1-24/3,0 | D45: =VLOOKUP(B45,'Wilo Price List'!B:F,5,FALSE) -> 7607 | E45: PG3
B46: 2204756 | C46: Stratos GIGA2.0-I 80/1-20/2,2 | D46: =VLOOKUP(B46,'Wilo Price List'!B:F,5,FALSE) -> 7607 | E46: PG3
B48: 2204758 | C48: Stratos GIGA2.0-I 100/1-8/1,1 | D48: =VLOOKUP(B48,'Wilo Price List'!B:F,5,FALSE) -> 7597 | E48: PG3
B49: 2204757 | C49: Stratos GIGA2.0-I 100/1-9/1,5 | D49: =VLOOKUP(B49,'Wilo Price List'!B:F,5,FALSE) -> 8062 | E49: PG3
B50: 2204764 | C50: Stratos GIGA2.0-I 100/1-25/4,0 | D50: =VLOOKUP(B50,'Wilo Price List'!B:F,5,FALSE) -> 8249 | E50: PG3
B51: 2204765 | C51: Stratos GIGA2.0-I 100/1-20/3,0 | D51: =VLOOKUP(B51,'Wilo Price List'!B:F,5,FALSE) -> 8141 | E51: PG3
B52: 2204766 | C52: Stratos GIGA2.0-I 100/1-17/2,2 | D52: =VLOOKUP(B52,'Wilo Price List'!B:F,5,FALSE) -> 8251 | E52: PG3
B53: 2204774 | C53: Stratos GIGA2.0-I 100/1-11/4,0 | D53: =VLOOKUP(B53,'Wilo Price List'!B:F,5,FALSE) -> 10899 | E53: PG3
B54: 2204775 | C54: Stratos GIGA2.0-I 100/1-9/3,0 | D54: =VLOOKUP(B54,'Wilo Price List'!B:F,5,FALSE) -> 9005 | E54: PG3
B55: 2204776 | C55: Stratos GIGA2.0-I 100/1-8/2,2 | D55: =VLOOKUP(B55,'Wilo Price List'!B:F,5,FALSE) -> 9006 | E55: PG3
B57: 2204779 | C57: Stratos GIGA2.0-I 125/1-11/4,0 | D57: =VLOOKUP(B57,'Wilo Price List'!B:F,5,FALSE) -> 11284 | E57: PG3
B58: 2204780 | C58: Stratos GIGA2.0-I 125/1-9/3,0 | D58: =VLOOKUP(B58,'Wilo Price List'!B:F,5,FALSE) -> 9429 | E58: PG3
B59: 2204781 | C59: Stratos GIGA2.0-I 125/1-7/2,2 | D59: =VLOOKUP(B59,'Wilo Price List'!B:F,5,FALSE) -> 9445 | E59: PG3
B62: 1~
B63: 2206909 | C63: Stratos GIGA2.0-I 32/1-9/M-0,37 | D63: =VLOOKUP(B63,'Wilo Price List'!B:F,5,FALSE) -> 6335 | E63: PG3
B64: 2206908 | C64: Stratos GIGA2.0-I 32/1-13/M-0,55 | D64: =VLOOKUP(B64,'Wilo Price List'!B:F,5,FALSE) -> 6335 | E64: PG3
B65: 2206907 | C65: Stratos GIGA2.0-I 32/1-15/M-0,75 | D65: =VLOOKUP(B65,'Wilo Price List'!B:F,5,FALSE) -> 6483 | E65: PG3
B66: 2206906 | C66: Stratos GIGA2.0-I 32/1-20/M-1,1 | D66: =VLOOKUP(B66,'Wilo Price List'!B:F,5,FALSE) -> 6477 | E66: PG3
B67: 2206905 | C67: Stratos GIGA2.0-I 32/1-25/M-1,5 | D67: =VLOOKUP(B67,'Wilo Price List'!B:F,5,FALSE) -> 6478 | E67: PG3
B69: 2206914 | C69: Stratos GIGA2.0-I 40/1-8/M-0,37 | D69: =VLOOKUP(B69,'Wilo Price List'!B:F,5,FALSE) -> 5949 | E69: PG3
B70: 2206913 | C70: Stratos GIGA2.0-I 40/1-11/M-0,55 | D70: =VLOOKUP(B70,'Wilo Price List'!B:F,5,FALSE) -> 5949 | E70: PG3
B71: 2206912 | C71: Stratos GIGA2.0-I 40/1-14/M-0,75 | D71: =VLOOKUP(B71,'Wilo Price List'!B:F,5,FALSE) -> 6098 | E71: PG3
B72: 2206911 | C72: Stratos GIGA2.0-I 40/1-19/M-1,1 | D72: =VLOOKUP(B72,'Wilo Price List'!B:F,5,FALSE) -> 6092 | E72: PG3
B73: 2206910 | C73: Stratos GIGA2.0-I 40/1-23/M-1,5 | D73: =VLOOKUP(B73,'Wilo Price List'!B:F,5,FALSE) -> 6092 | E73: PG3
B75: 2206919 | C75: Stratos GIGA2.0-I 50/1-8/M-0,37 | D75: =VLOOKUP(B75,'Wilo Price List'!B:F,5,FALSE) -> 6031 | E75: PG3
B76: 2206918 | C76: Stratos GIGA2.0-I 50/1-10/M-0,55 | D76: =VLOOKUP(B76,'Wilo Price List'!B:F,5,FALSE) -> 6031 | E76: PG3
B77: 2206917 | C77: Stratos GIGA2.0-I 50/1-13/M-0,75 | D77: =VLOOKUP(B77,'Wilo Price List'!B:F,5,FALSE) -> 6031 | E77: PG3
B78: 2206916 | C78: Stratos GIGA2.0-I 50/1-17/M-1,1 | D78: =VLOOKUP(B78,'Wilo Price List'!B:F,5,FALSE) -> 6192 | E78: PG3
B79: 2206915 | C79: Stratos GIGA2.0-I 50/1-20/M-1,5 | D79: =VLOOKUP(B79,'Wilo Price List'!B:F,5,FALSE) -> 6202 | E79: PG3
B81: 2206924 | C81: Stratos GIGA2.0-I 65/1-5/M-0,37 | D81: =VLOOKUP(B81,'Wilo Price List'!B:F,5,FALSE) -> 6411 | E81: PG3
B82: 2206923 | C82: Stratos GIGA2.0-I 65/1-7/M-0,55 | D82: =VLOOKUP(B82,'Wilo Price List'!B:F,5,FALSE) -> 6411 | E82: PG3
B83: 2206922 | C83: Stratos GIGA2.0-I 65/1-9/M-0,75 | D83: =VLOOKUP(B83,'Wilo Price List'!B:F,5,FALSE) -> 6559 | E83: PG3
B84: 2206921 | C84: Stratos GIGA2.0-I 65/1-12/M-1,1 | D84: =VLOOKUP(B84,'Wilo Price List'!B:F,5,FALSE) -> 6559 | E84: PG3
B85: 2206920 | C85: Stratos GIGA2.0-I 65/1-15/M-1,5 | D85: =VLOOKUP(B85,'Wilo Price List'!B:F,5,FALSE) -> 6552 | E85: PG3
B87: 2206929 | C87: Stratos GIGA2.0-I 80/1-5/M-0,37 | D87: =VLOOKUP(B87,'Wilo Price List'!B:F,5,FALSE) -> 6513 | E87: PG3
B88: 2206928 | C88: Stratos GIGA2.0-I 80/1-6/M-0,55 | D88: =VLOOKUP(B88,'Wilo Price List'!B:F,5,FALSE) -> 6634 | E88: PG3
B89: 2206927 | C89: Stratos GIGA2.0-I 80/1-8/M-0,75 | D89: =VLOOKUP(B89,'Wilo Price List'!B:F,5,FALSE) -> 6634 | E89: PG3
B90: 2206926 | C90: Stratos GIGA2.0-I 80/1-10/M-1,1 | D90: =VLOOKUP(B90,'Wilo Price List'!B:F,5,FALSE) -> 6634 | E90: PG3
B91: 2206925 | C91: Stratos GIGA2.0-I 80/1-13/M-1,5 | D91: =VLOOKUP(B91,'Wilo Price List'!B:F,5,FALSE) -> 6880 | E91: PG3
B93: 2206931 | C93: Stratos GIGA2.0-I 100/1-8/M-1,1 | D93: =VLOOKUP(B93,'Wilo Price List'!B:F,5,FALSE) -> 7299 | E93: PG3
B94: 2206930 | C94: Stratos GIGA2.0-I 100/1-9/M-1,5 | D94: =VLOOKUP(B94,'Wilo Price List'!B:F,5,FALSE) -> 7298 | E94: PG3

Sheet Stratos Giga D 2.0
B2: Stratos Giga 2.0 D | H2: Home
B5: Article No. (or variant) | C5: Article description | D5: List Price | E5: Price group
B7: 3~
B8: 2205604 | C8: Stratos GIGA2.0-D 32/1-25/1,5 | D8: =VLOOKUP(B8,'Wilo Price List'!B:F,5,FALSE) -> 12248 | E8: PG3
B9: 2205605 | C9: Stratos GIGA2.0-D 32/1-20/1,1 | D9: =VLOOKUP(B9,'Wilo Price List'!B:F,5,FALSE) -> 11951 | E9: PG3
B10: 2205606 | C10: Stratos GIGA2.0-D 32/1-15/0,75 | D10: =VLOOKUP(B10,'Wilo Price List'!B:F,5,FALSE) -> 11940 | E10: PG3
B11: 2205607 | C11: Stratos GIGA2.0-D 32/1-13/0,55 | D11: =VLOOKUP(B11,'Wilo Price List'!B:F,5,FALSE) -> 11510 | E11: PG3
B12: 2205604 | C12: Stratos GIGA2.0-D 32/1-25/1.5 | D12: =VLOOKUP(B12,'Wilo Price List'!B:F,5,FALSE) -> 12248 | E12: PG3
B13: 2205605 | C13: Stratos GIGA2.0-D 32/1-20/1.1 | D13: =VLOOKUP(B13,'Wilo Price List'!B:F,5,FALSE) -> 11951 | E13: PG3
B14: 2205606 | C14: Stratos GIGA2.0-D 32/1-15/0.75 | D14: =VLOOKUP(B14,'Wilo Price List'!B:F,5,FALSE) -> 11940 | E14: PG3
B15: 2205607 | C15: Stratos GIGA2.0-D 32/1-13/0.55 | D15: =VLOOKUP(B15,'Wilo Price List'!B:F,5,FALSE) -> 11510 | E15: PG3
B17: 2205610 | C17: Stratos GIGA2.0-D 40/1-19/1,1 | D17: =VLOOKUP(B17,'Wilo Price List'!B:F,5,FALSE) -> 12569 | E17: PG3
B18: 2205611 | C18: Stratos GIGA2.0-D 40/1-14/0,75 | D18: =VLOOKUP(B18,'Wilo Price List'!B:F,5,FALSE) -> 12640 | E18: PG3
B19: 2205612 | C19: Stratos GIGA2.0-D 40/1-11/0,55 | D19: =VLOOKUP(B19,'Wilo Price List'!B:F,5,FALSE) -> 12211 | E19: PG3
B20: 2205609 | C20: Stratos GIGA2.0-D 40/1-23/1,5 | D20: =VLOOKUP(B20,'Wilo Price List'!B:F,5,FALSE) -> 14015 | E20: PG3
B21: 2205614 | C21: Stratos GIGA2.0-D 40/1-37/3,0 | D21: =VLOOKUP(B21,'Wilo Price List'!B:F,5,FALSE) -> 14337 | E21: PG3
B22: 2205615 | C22: Stratos GIGA2.0-D 40/1-31/2,2 | D22: =VLOOKUP(B22,'Wilo Price List'!B:F,5,FALSE) -> 14059 | E22: PG3
B23: 2205610 | C23: Stratos GIGA2.0-D 40/1-19/1.1 | D23: =VLOOKUP(B23,'Wilo Price List'!B:F,5,FALSE) -> 12569 | E23: PG3
B24: 2205611 | C24: Stratos GIGA2.0-D 40/1-14/0.75 | D24: =VLOOKUP(B24,'Wilo Price List'!B:F,5,FALSE) -> 12640 | E24: PG3
B25: 2205612 | C25: Stratos GIGA2.0-D 40/1-11/0.55 | D25: =VLOOKUP(B25,'Wilo Price List'!B:F,5,FALSE) -> 12211 | E25: PG3
B27: 2205617 | C27: Stratos GIGA2.0-D 50/1-17/1,1 | D27: =VLOOKUP(B27,'Wilo Price List'!B:F,5,FALSE) -> 13034 | E27: PG3
B28: 2205618 | C28: Stratos GIGA2.0-D 50/1-13/0,75 | D28: =VLOOKUP(B28,'Wilo Price List'!B:F,5,FALSE) -> 12813 | E28: PG3
B29: 2205619 | C29: Stratos GIGA2.0-D 50/1-10/0,55 | D29: =VLOOKUP(B29,'Wilo Price List'!B:F,5,FALSE) -> 12669 | E29: PG3
B30: 2205616 | C30: Stratos GIGA2.0-D 50/1-20/1,5 | D30: =VLOOKUP(B30,'Wilo Price List'!B:F,5,FALSE) -> 15449 | E30: PG3
B31: 2205621 | C31: Stratos GIGA2.0-D 50/1-37/3,0 | D31: =VLOOKUP(B31,'Wilo Price List'!B:F,5,FALSE) -> 16603 | E31: PG3
B32: 2205622 | C32: Stratos GIGA2.0-D 50/1-30/2,2 | D32: =VLOOKUP(B32,'Wilo Price List'!B:F,5,FALSE) -> 16200 | E32: PG3
B33: 2205617 | C33: Stratos GIGA2.0-D 50/1-17/1.1 | D33: =VLOOKUP(B33,'Wilo Price List'!B:F,5,FALSE) -> 13034 | E33: PG3
B34: 2205618 | C34: Stratos GIGA2.0-D 50/1-13/0.75 | D34: =VLOOKUP(B34,'Wilo Price List'!B:F,5,FALSE) -> 12813 | E34: PG3
B35: 2205619 | C35: Stratos GIGA2.0-D 50/1-10/0.55 | D35: =VLOOKUP(B35,'Wilo Price List'!B:F,5,FALSE) -> 12669 | E35: PG3
B37: 2205624 | C37: Stratos GIGA2.0-D 65/1-12/1,1 | D37: =VLOOKUP(B37,'Wilo Price List'!B:F,5,FALSE) -> 13301 | E37: PG3
B38: 2205625 | C38: Stratos GIGA2.0-D 65/1-9/0,75 | D38: =VLOOKUP(B38,'Wilo Price List'!B:F,5,FALSE) -> 13301 | E38: PG3
B39: 2205626 | C39: Stratos GIGA2.0-D 65/1-7/0,55 | D39: =VLOOKUP(B39,'Wilo Price List'!B:F,5,FALSE) -> 12870 | E39: PG3
B40: 2205623 | C40: Stratos GIGA2.0-D 65/1-15/1,5 | D40: =VLOOKUP(B40,'Wilo Price List'!B:F,5,FALSE) -> 14983 | E40: PG3
B41: 2205628 | C41: Stratos GIGA2.0-D 65/1-37/4,0 | D41: =VLOOKUP(B41,'Wilo Price List'!B:F,5,FALSE) -> 16600 | E41: PG3
B42: 2205629 | C42: Stratos GIGA2.0-D 65/1-31/3,0 | D42: =VLOOKUP(B42,'Wilo Price List'!B:F,5,FALSE) -> 16176 | E42: PG3
B43: 2205630 | C43: Stratos GIGA2.0-D 65/1-25/2,2 | D43: =VLOOKUP(B43,'Wilo Price List'!B:F,5,FALSE) -> 16338 | E43: PG3
B44: 2205624 | C44: Stratos GIGA2.0-D 65/1-12/1.1 | D44: =VLOOKUP(B44,'Wilo Price List'!B:F,5,FALSE) -> 13301 | E44: PG3
B45: 2205625 | C45: Stratos GIGA2.0-D 65/1-9/0.75 | D45: =VLOOKUP(B45,'Wilo Price List'!B:F,5,FALSE) -> 13301 | E45: PG3
B46: 2205626 | C46: Stratos GIGA2.0-D 65/1-7/0.55 | D46: =VLOOKUP(B46,'Wilo Price List'!B:F,5,FALSE) -> 12870 | E46: PG3
B48: 2205632 | C48: Stratos GIGA2.0-D 80/1-10/1,1 | D48: =VLOOKUP(B48,'Wilo Price List'!B:F,5,FALSE) -> 13694 | E48: PG3
B49: 2205633 | C49: Stratos GIGA2.0-D 80/1-8/0,75 | D49: =VLOOKUP(B49,'Wilo Price List'!B:F,5,FALSE) -> 13694 | E49: PG3
B50: 2205634 | C50: Stratos GIGA2.0-D 80/1-6/0,55 | D50: =VLOOKUP(B50,'Wilo Price List'!B:F,5,FALSE) -> 13550 | E50: PG3
B51: 2205631 | C51: Stratos GIGA2.0-D 80/1-13/1,5 | D51: =VLOOKUP(B51,'Wilo Price List'!B:F,5,FALSE) -> 15761 | E51: PG3
B52: 2205638 | C52: Stratos GIGA2.0-D 80/1-30/4,0 | D52: =VLOOKUP(B52,'Wilo Price List'!B:F,5,FALSE) -> 15821 | E52: PG3
B53: 2205639 | C53: Stratos GIGA2.0-D 80/1-24/3,0 | D53: =VLOOKUP(B53,'Wilo Price List'!B:F,5,FALSE) -> 15484 | E53: PG3
B54: 2205640 | C54: Stratos GIGA2.0-D 80/1-20/2,2 | D54: =VLOOKUP(B54,'Wilo Price List'!B:F,5,FALSE) -> 15484 | E54: PG3
B55: 2205637 | C55: Stratos GIGA2.0-D 80/1-35/5,5 | D55: =VLOOKUP(B55,'Wilo Price List'!B:F,5,FALSE) -> 16957 | E55: PG3
B56: 2205636 | C56: Stratos GIGA2.0-D 80/1-43/7,5 | D56: =VLOOKUP(B56,'Wilo Price List'!B:F,5,FALSE) -> 16977 | E56: PG3
B57: 2205632 | C57: Stratos GIGA2.0-D 80/1-10/1.1 | D57: =VLOOKUP(B57,'Wilo Price List'!B:F,5,FALSE) -> 13694 | E57: PG3
B58: 2205633 | C58: Stratos GIGA2.0-D 80/1-8/0.75 | D58: =VLOOKUP(B58,'Wilo Price List'!B:F,5,FALSE) -> 13694 | E58: PG3
B59: 2205634 | C59: Stratos GIGA2.0-D 80/1-6/0.55 | D59: =VLOOKUP(B59,'Wilo Price List'!B:F,5,FALSE) -> 13550 | E59: PG3
B61: 2205642 | C61: Stratos GIGA2.0-D 100/1-8/1,1 | D61: =VLOOKUP(B61,'Wilo Price List'!B:F,5,FALSE) -> 14665 | E61: PG3
B62: 2205641 | C62: Stratos GIGA2.0-D 100/1-9/1,5 | D62: =VLOOKUP(B62,'Wilo Price List'!B:F,5,FALSE) -> 15049 | E62: PG3
B63: 2205648 | C63: Stratos GIGA2.0-D 100/1-25/4,0 | D63: =VLOOKUP(B63,'Wilo Price List'!B:F,5,FALSE) -> 16340 | E63: PG3
B64: 2205649 | C64: Stratos GIGA2.0-D 100/1-20/3,0 | D64: =VLOOKUP(B64,'Wilo Price List'!B:F,5,FALSE) -> 16123 | E64: PG3
B65: 2205650 | C65: Stratos GIGA2.0-D 100/1-17/2,2 | D65: =VLOOKUP(B65,'Wilo Price List'!B:F,5,FALSE) -> 16345 | E65: PG3
B66: 2205658 | C66: Stratos GIGA2.0-D 100/1-11/4,0 | D66: =VLOOKUP(B66,'Wilo Price List'!B:F,5,FALSE) -> 23291 | E66: PG3
B67: 2205659 | C67: Stratos GIGA2.0-D 100/1-9/3,0 | D67: =VLOOKUP(B67,'Wilo Price List'!B:F,5,FALSE) -> 19503 | E67: PG3
B68: 2205660 | C68: Stratos GIGA2.0-D 100/1-8/2,2 | D68: =VLOOKUP(B68,'Wilo Price List'!B:F,5,FALSE) -> 19624 | E68: PG3
B69: 2205647 | C69: Stratos GIGA2.0-D 100/1-30/5,5 | D69: =VLOOKUP(B69,'Wilo Price List'!B:F,5,FALSE) -> 17512 | E69: PG3
B70: 2205646 | C70: Stratos GIGA2.0-D 100/1-38/7,5 | D70: =VLOOKUP(B70,'Wilo Price List'!B:F,5,FALSE) -> 17526 | E70: PG3
B71: 2205657 | C71: Stratos GIGA2.0-D 100/1-14/5,5 | D71: =VLOOKUP(B71,'Wilo Price List'!B:F,5,FALSE) -> 26446 | E71: PG3
B72: 2205656 | C72: Stratos GIGA2.0-D 100/1-18/7,5 | D72: =VLOOKUP(B72,'Wilo Price List'!B:F,5,FALSE) -> 26324 | E72: PG3
B73: 2205642 | C73: Stratos GIGA2.0-D 100/1-8/1.1 | D73: =VLOOKUP(B73,'Wilo Price List'!B:F,5,FALSE) -> 14665 | E73: PG3
B74: 2205641 | C74: Stratos GIGA2.0-D 100/1-9/1.5 | D74: =VLOOKUP(B74,'Wilo Price List'!B:F,5,FALSE) -> 15049 | E74: PG3
B76: 2205663 | C76: Stratos GIGA2.0-D 125/1-11/4,0 | D76: =VLOOKUP(B76,'Wilo Price List'!B:F,5,FALSE) -> 34293 | E76: PG3
B77: 2205664 | C77: Stratos GIGA2.0-D 125/1-9/3,0 | D77: =VLOOKUP(B77,'Wilo Price List'!B:F,5,FALSE) -> 30554 | E77: PG3
B78: 2205665 | C78: Stratos GIGA2.0-D 125/1-7/2,2 | D78: =VLOOKUP(B78,'Wilo Price List'!B:F,5,FALSE) -> 30554 | E78: PG3
B79: 2205662 | C79: Stratos GIGA2.0-D 125/1-14/5,5 | D79: =VLOOKUP(B79,'Wilo Price List'!B:F,5,FALSE) -> 34679 | E79: PG3
B80: 2205661 | C80: Stratos GIGA2.0-D 125/1-17/7,5 | D80: =VLOOKUP(B80,'Wilo Price List'!B:F,5,FALSE) -> 34557 | E80: PG3
B82: 1~
B83: 2207129 | C83: Stratos GIGA2.0-D 32/1-9/M-0,37 | D83: =VLOOKUP(B83,'Wilo Price List'!B:F,5,FALSE) -> 11019 | E83: PG3
B84: 2207128 | C84: Stratos GIGA2.0-D 32/1-13/M-0,55 | D84: =VLOOKUP(B84,'Wilo Price List'!B:F,5,FALSE) -> 11019 | E84: PG3
B85: 2207127 | C85: Stratos GIGA2.0-D 32/1-15/M-0,75 | D85: =VLOOKUP(B85,'Wilo Price List'!B:F,5,FALSE) -> 11316 | E85: PG3
B86: 2207126 | C86: Stratos GIGA2.0-D 32/1-20/M-1,1 | D86: =VLOOKUP(B86,'Wilo Price List'!B:F,5,FALSE) -> 11305 | E86: PG3
B87: 2207125 | C87: Stratos GIGA2.0-D 32/1-25/M-1,5 | D87: =VLOOKUP(B87,'Wilo Price List'!B:F,5,FALSE) -> 11305 | E87: PG3
B89: 2207134 | C89: Stratos GIGA2.0-D 40/1-8/M-0,37 | D89: =VLOOKUP(B89,'Wilo Price List'!B:F,5,FALSE) -> 11856 | E89: PG3
B90: 2207133 | C90: Stratos GIGA2.0-D 40/1-11/M-0,55 | D90: =VLOOKUP(B90,'Wilo Price List'!B:F,5,FALSE) -> 11856 | E90: PG3
B91: 2207132 | C91: Stratos GIGA2.0-D 40/1-14/M-0,75 | D91: =VLOOKUP(B91,'Wilo Price List'!B:F,5,FALSE) -> 12153 | E91: PG3
B92: 2207131 | C92: Stratos GIGA2.0-D 40/1-19/M-1,1 | D92: =VLOOKUP(B92,'Wilo Price List'!B:F,5,FALSE) -> 11923 | E92: PG3
B93: 2207130 | C93: Stratos GIGA2.0-D 40/1-23/M-1,5 | D93: =VLOOKUP(B93,'Wilo Price List'!B:F,5,FALSE) -> 11923 | E93: PG3
B95: 2207139 | C95: Stratos GIGA2.0-D 50/1-8/M-0,37 | D95: =VLOOKUP(B95,'Wilo Price List'!B:F,5,FALSE) -> 12321 | E95: PG3
B96: 2207138 | C96: Stratos GIGA2.0-D 50/1-10/M-0,55 | D96: =VLOOKUP(B96,'Wilo Price List'!B:F,5,FALSE) -> 12320 | E96: PG3
B97: 2207137 | C97: Stratos GIGA2.0-D 50/1-13/M-0,75 | D97: =VLOOKUP(B97,'Wilo Price List'!B:F,5,FALSE) -> 12320 | E97: PG3
B98: 2207136 | C98: Stratos GIGA2.0-D 50/1-17/M-1,1 | D98: =VLOOKUP(B98,'Wilo Price List'!B:F,5,FALSE) -> 12388 | E98: PG3
B99: 2207135 | C99: Stratos GIGA2.0-D 50/1-20/M-1,5 | D99: =VLOOKUP(B99,'Wilo Price List'!B:F,5,FALSE) -> 12446 | E99: PG3
B101: 2207144 | C101: Stratos GIGA2.0-D 65/1-5/M-0,37 | D101: =VLOOKUP(B101,'Wilo Price List'!B:F,5,FALSE) -> 12381 | E101: PG3
B102: 2207143 | C102: Stratos GIGA2.0-D 65/1-7/M-0,55 | D102: =VLOOKUP(B102,'Wilo Price List'!B:F,5,FALSE) -> 12381 | E102: PG3
B103: 2207142 | C103: Stratos GIGA2.0-D 65/1-9/M-0,75 | D103: =VLOOKUP(B103,'Wilo Price List'!B:F,5,FALSE) -> 12896 | E103: PG3
B104: 2207141 | C104: Stratos GIGA2.0-D 65/1-12/M-1,1 | D104: =VLOOKUP(B104,'Wilo Price List'!B:F,5,FALSE) -> 12677 | E104: PG3
B105: 2207140 | C105: Stratos GIGA2.0-D 65/1-15/M-1,5 | D105: =VLOOKUP(B105,'Wilo Price List'!B:F,5,FALSE) -> 12666 | E105: PG3
B107: 2207149 | C107: Stratos GIGA2.0-D 80/1-5/M-0,37 | D107: =VLOOKUP(B107,'Wilo Price List'!B:F,5,FALSE) -> 13046 | E107: PG3
B108: 2207148 | C108: Stratos GIGA2.0-D 80/1-6/M-0,55 | D108: =VLOOKUP(B108,'Wilo Price List'!B:F,5,FALSE) -> 13071 | E108: PG3
B109: 2207147 | C109: Stratos GIGA2.0-D 80/1-8/M-0,75 | D109: =VLOOKUP(B109,'Wilo Price List'!B:F,5,FALSE) -> 13288 | E109: PG3
B110: 2207146 | C110: Stratos GIGA2.0-D 80/1-10/M-1,1 | D110: =VLOOKUP(B110,'Wilo Price List'!B:F,5,FALSE) -> 13071 | E110: PG3
B111: 2207145 | C111: Stratos GIGA2.0-D 80/1-13/M-1,5 | D111: =VLOOKUP(B111,'Wilo Price List'!B:F,5,FALSE) -> 13561 | E111: PG3
B113: 2207151 | C113: Stratos GIGA2.0-D 100/1-8/M-1,1 | D113: =VLOOKUP(B113,'Wilo Price List'!B:F,5,FALSE) -> 14066 | E113: PG3
B114: 2207150 | C114: Stratos GIGA2.0-D 100/1-9/M-1,5 | D114: =VLOOKUP(B114,'Wilo Price List'!B:F,5,FALSE) -> 14066 | E114: PG3

Sheet ISAR
B2: ISAR Sce | I2: Home
B5: Article No. (or variant) | C5: Article description | D5: Type (Pump / Accessory / Spare Part / Addon / Service) | E5: Product range | F5: List Price | G5: Price group
B6: 29993549 | C6: ISAR MODH1-2CH1-L-202/SCe | D6: 2 Pump | E6: SCe-HVAC system | F6: =VLOOKUP(B6,'Wilo Price List'!B2:G44008,5,FALSE) -> 10716 | G6: PG06
B7: 29993550 | C7: ISAR MODH1-2CH1-L-203/SCe | D7: 2 Pump | E7: SCe-HVAC system | F7: =VLOOKUP(B7,'Wilo Price List'!B3:G44009,5,FALSE) -> 10776 | G7: PG06
B8: 29993551 | C8: ISAR MODH1-2CH1-L-204/SCe | D8: 2 Pump | E8: SCe-HVAC system | F8: =VLOOKUP(B8,'Wilo Price List'!B4:G44010,5,FALSE) -> 10928 | G8: PG06
B9: 29993552 | C9: ISAR MODH1-2CH1-L-205/SCe | D9: 2 Pump | E9: SCe-HVAC system | F9: =VLOOKUP(B9,'Wilo Price List'!B5:G44011,5,FALSE) -> 11085 | G9: PG06
B10: 29993553 | C10: ISAR MODH1-2CH1-L-206/SCe | D10: 2 Pump | E10: SCe-HVAC system | F10: =VLOOKUP(B10,'Wilo Price List'!B6:G44012,5,FALSE) -> 11257 | G10: PG06
B11: 29993554 | C11: ISAR MODH1-2CH1-L-207/SCe | D11: 2 Pump | E11: SCe-HVAC system | F11: =VLOOKUP(B11,'Wilo Price List'!B7:G44013,5,FALSE) -> 11426 | G11: PG06
B12: 29993555 | C12: ISAR MODH1-2CH1-L-402/SCe | D12: 2 Pump | E12: SCe-HVAC system | F12: =VLOOKUP(B12,'Wilo Price List'!B8:G44014,5,FALSE) -> 10790 | G12: PG06
B13: 29993556 | C13: ISAR MODH1-2CH1-L-403/SCe | D13: 2 Pump | E13: SCe-HVAC system | F13: =VLOOKUP(B13,'Wilo Price List'!B9:G44015,5,FALSE) -> 10826 | G13: PG06
B14: 29993557 | C14: ISAR MODH1-2CH1-L-404/SCe | D14: 2 Pump | E14: SCe-HVAC system | F14: =VLOOKUP(B14,'Wilo Price List'!B10:G44016,5,FALSE) -> 11004 | G14: PG06
B15: 29993558 | C15: ISAR MODH1-2CH1-L-405/SCe | D15: 2 Pump | E15: SCe-HVAC system | F15: =VLOOKUP(B15,'Wilo Price List'!B11:G44017,5,FALSE) -> 11193 | G15: PG06
B16: 29993559 | C16: ISAR MODH1-2CH1-L-406/SCe | D16: 2 Pump | E16: SCe-HVAC system | F16: =VLOOKUP(B16,'Wilo Price List'!B11:G44018,5,FALSE) -> 11290 | G16: PG06
B17: 29993560 | C17: ISAR MODH1-2CH1-L-407/SCe | D17: 2 Pump | E17: SCe-HVAC system | F17: =VLOOKUP(B17,'Wilo Price List'!B12:G44019,5,FALSE) -> 12200 | G17: PG06
B18: 29993561 | C18: ISAR MODH1-2CH1-L-602/SCe | D18: 2 Pump | E18: SCe-HVAC system | F18: =VLOOKUP(B18,'Wilo Price List'!B13:G44020,5,FALSE) -> 10938 | G18: PG06
B19: 29993562 | C19: ISAR MODH1-2CH1-L-603/SCe | D19: 2 Pump | E19: SCe-HVAC system | F19: =VLOOKUP(B19,'Wilo Price List'!B14:G44021,5,FALSE) -> 11280 | G19: PG06
B20: 29993563 | C20: ISAR MODH1-2CH1-L-604/SCe | D20: 2 Pump | E20: SCe-HVAC system | F20: =VLOOKUP(B20,'Wilo Price List'!B15:G44022,5,FALSE) -> 12035 | G20: PG06
B21: 29993564 | C21: ISAR MODH1-2CH1-L-605/SCe | D21: 2 Pump | E21: SCe-HVAC system | F21: =VLOOKUP(B21,'Wilo Price List'!B16:G44023,5,FALSE) -> 12373 | G21: PG06
B22: 29993565 | C22: ISAR MODH1-2CH1-L-1002/SCe | D22: 2 Pump | E22: SCe-HVAC system | F22: =VLOOKUP(B22,'Wilo Price List'!B17:G44024,5,FALSE) -> 12255 | G22: PG06
B23: 29993566 | C23: ISAR MODH1-2CH1-L-1003/SCe | D23: 2 Pump | E23: SCe-HVAC system | F23: =VLOOKUP(B23,'Wilo Price List'!B18:G44025,5,FALSE) -> 12602 | G23: PG06
B24: 29993567 | C24: ISAR MODH1-2CH1-L-1004/SCe | D24: 2 Pump | E24: SCe-HVAC system | F24: =VLOOKUP(B24,'Wilo Price List'!B19:G44026,5,FALSE) -> 12801 | G24: PG06
B25: 29993568 | C25: ISAR MODH1-2CH1-L-1005/SCe | D25: 2 Pump | E25: SCe-HVAC system | F25: =VLOOKUP(B25,'Wilo Price List'!B19:G44027,5,FALSE) -> 14272 | G25: PG06
B27: 29993573 | C27: ISAR MODH1-3CH1-L-202/SCe | D27: 3 Pump | E27: SCe-HVAC system | F27: =VLOOKUP(B27,'Wilo Price List'!B21:G44029,5,FALSE) -> 14068 | G27: PG06
B28: 29993574 | C28: ISAR MODH1-3CH1-L-203/SCe | D28: 3 Pump | E28: SCe-HVAC system | F28: =VLOOKUP(B28,'Wilo Price List'!B22:G44030,5,FALSE) -> 14159 | G28: PG06
B29: 29993575 | C29: ISAR MODH1-3CH1-L-204/SCe | D29: 3 Pump | E29: SCe-HVAC system | F29: =VLOOKUP(B29,'Wilo Price List'!B23:G44031,5,FALSE) -> 14387 | G29: PG06
B30: 29993576 | C30: ISAR MODH1-3CH1-L-205/SCe | D30: 3 Pump | E30: SCe-HVAC system | F30: =VLOOKUP(B30,'Wilo Price List'!B24:G44032,5,FALSE) -> 14622 | G30: PG06
B31: 29993577 | C31: ISAR MODH1-3CH1-L-206/SCe | D31: 3 Pump | E31: SCe-HVAC system | F31: =VLOOKUP(B31,'Wilo Price List'!B25:G44033,5,FALSE) -> 14880 | G31: PG06
B32: 29993578 | C32: ISAR MODH1-3CH1-L-207/SCe | D32: 3 Pump | E32: SCe-HVAC system | F32: =VLOOKUP(B32,'Wilo Price List'!B26:G44034,5,FALSE) -> 15132 | G32: PG06
B33: 29993579 | C33: ISAR MODH1-3CH1-L-402/SCe | D33: 3 Pump | E33: SCe-HVAC system | F33: =VLOOKUP(B33,'Wilo Price List'!B27:G44035,5,FALSE) -> 14112 | G33: PG06
B34: 29993580 | C34: ISAR MODH1-3CH1-L-403/SCe | D34: 3 Pump | E34: SCe-HVAC system | F34: =VLOOKUP(B34,'Wilo Price List'!B28:G44036,5,FALSE) -> 14219 | G34: PG06
B35: 29993581 | C35: ISAR MODH1-3CH1-L-404/SCe | D35: 3 Pump | E35: SCe-HVAC system | F35: =VLOOKUP(B35,'Wilo Price List'!B29:G44037,5,FALSE) -> 14433 | G35: PG06
B36: 29993582 | C36: ISAR MODH1-3CH1-L-405/SCe | D36: 3 Pump | E36: SCe-HVAC system | F36: =VLOOKUP(B36,'Wilo Price List'!B30:G44038,5,FALSE) -> 14742 | G36: PG06
B37: 29993583 | C37: ISAR MODH1-3CH1-L-406/SCe | D37: 3 Pump | E37: SCe-HVAC system | F37: =VLOOKUP(B37,'Wilo Price List'!B31:G44039,5,FALSE) -> 15147 | G37: PG06
B38: 29993584 | C38: ISAR MODH1-3CH1-L-407/SCe | D38: 3 Pump | E38: SCe-HVAC system | F38: =VLOOKUP(B38,'Wilo Price List'!B32:G44040,5,FALSE) -> 15497 | G38: PG06
B39: 29993585 | C39: ISAR MODH1-3CH1-L-602/SCe | D39: 3 Pump | E39: SCe-HVAC system | F39: =VLOOKUP(B39,'Wilo Price List'!B33:G44041,5,FALSE) -> 14149 | G39: PG06
B40: 29993586 | C40: ISAR MODH1-3CH1-L-603/SCe | D40: 3 Pump | E40: SCe-HVAC system | F40: =VLOOKUP(B40,'Wilo Price List'!B34:G44042,5,FALSE) -> 14376 | G40: PG06
B41: 29993587 | C41: ISAR MODH1-3CH1-L-604/SCe | D41: 3 Pump | E41: SCe-HVAC system | F41: =VLOOKUP(B41,'Wilo Price List'!B35:G44043,5,FALSE) -> 15006 | G41: PG06
B42: 29993588 | C42: ISAR MODH1-3CH1-L-605/SCe | D42: 3 Pump | E42: SCe-HVAC system | F42: =VLOOKUP(B42,'Wilo Price List'!B36:G44044,5,FALSE) -> 15264 | G42: PG06
B43: 29993589 | C43: ISAR MODH1-3CH1-L-1002/SCe | D43: 3 Pump | E43: SCe-HVAC system | F43: =VLOOKUP(B43,'Wilo Price List'!B37:G44045,5,FALSE) -> 15581 | G43: PG06
B44: 29993590 | C44: ISAR MODH1-3CH1-L-1003/SCe | D44: 3 Pump | E44: SCe-HVAC system | F44: =VLOOKUP(B44,'Wilo Price List'!B38:G44046,5,FALSE) -> 16101 | G44: PG06
B45: 29993591 | C45: ISAR MODH1-3CH1-L-1004/SCe | D45: 3 Pump | E45: SCe-HVAC system | F45: =VLOOKUP(B45,'Wilo Price List'!B39:G44047,5,FALSE) -> 16398 | G45: PG06
B46: 29993592 | C46: ISAR MODH1-3CH1-L-1005/SCe | D46: 3 Pump | E46: SCe-HVAC system | F46: =VLOOKUP(B46,'Wilo Price List'!B40:G44048,5,FALSE) -> 18504 | G46: PG06

Sheet Si Boost
B2: SI Boost | I2: Home
B5: Article No. (or variant) | C5: Article description | D5: Type (Pump / Accessory / Spare Part / Addon / Service) | E5: Product range | F5: List Price | G5: Price group
B6: 29990278 | C6: SIBOOST SMART 2 HELIX VE 204 | D6: 1 Pump | E6: SIBOOST-System | F6: =VLOOKUP(B6,'Wilo Price List'!B:G,5,FALSE) -> 15098 | G6: PG6
B7: 29990279 | C7: SIBOOST SMART 3 HELIX VE 204 | D7: 1 Pump | E7: SIBOOST-System | F7: =VLOOKUP(B7,'Wilo Price List'!B:G,5,FALSE) -> 20471 | G7: PG6
B8: 29990280 | C8: SIBOOST SMART 4 HELIX VE 204 | D8: 1 Pump | E8: SIBOOST-System | F8: =VLOOKUP(B8,'Wilo Price List'!B:G,5,FALSE) -> 26083 | G8: PG6
B10: 29990200 | C10: SIBOOST SMART 2 HELIX VE 208 | D10: 1 Pump | E10: SIBOOST-System | F10: =VLOOKUP(B10,'Wilo Price List'!B:G,5,FALSE) -> 16458 | G10: PG6
B11: 29990201 | C11: SIBOOST SMART 3 HELIX VE 208 | D11: 1 Pump | E11: SIBOOST-System | F11: =VLOOKUP(B11,'Wilo Price List'!B:G,5,FALSE) -> 22723 | G11: PG6
B12: 29990202 | C12: SIBOOST SMART 4 HELIX VE 208 | D12: 1 Pump | E12: SIBOOST-System | F12: =VLOOKUP(B12,'Wilo Price List'!B:G,5,FALSE) -> 28796 | G12: PG6
B14: 29991721 | C14: SIBOOST SMART 2 HELIX VE 211 | D14: 1 Pump | E14: SIBOOST-System | F14: =VLOOKUP(B14,'Wilo Price List'!B:G,5,FALSE) -> 17921 | G14: PG6
B15: 29991793 | C15: SIBOOST SMART 3 HELIX VE 211 | D15: 1 Pump | E15: SIBOOST-System | F15: =VLOOKUP(B15,'Wilo Price List'!B:G,5,FALSE) -> 24607 | G15: PG6
B16: 29991861 | C16: SIBOOST SMART 4 HELIX VE 211 | D16: 1 Pump | E16: SIBOOST-System | F16: =VLOOKUP(B16,'Wilo Price List'!B:G,5,FALSE) -> 31717 | G16: PG6
B18: 29990281 | C18: SIBOOST SMART 2 HELIX VE 403 | D18: 1 Pump | E18: SIBOOST-System | F18: =VLOOKUP(B18,'Wilo Price List'!B:G,5,FALSE) -> 15042 | G18: PG6
B19: 29990283 | C19: SIBOOST SMART 3 HELIX VE 403 | D19: 1 Pump | E19: SIBOOST-System | F19: =VLOOKUP(B19,'Wilo Price List'!B:G,5,FALSE) -> 20604 | G19: PG6
B20: 29990285 | C20: SIBOOST SMART 4 HELIX VE 403 | D20: 1 Pump | E20: SIBOOST-System | F20: =VLOOKUP(B20,'Wilo Price List'!B:G,5,FALSE) -> 26060 | G20: PG6
B22: 29990852 | C22: SIBOOST SMART 2 HELIX VE 404 | D22: 1 Pump | E22: SIBOOST-System | F22: =VLOOKUP(B22,'Wilo Price List'!B:G,5,FALSE) -> 15284 | G22: PG6
B23: 29990853 | C23: SIBOOST SMART 3 HELIX VE 404 | D23: 1 Pump | E23: SIBOOST-System | F23: =VLOOKUP(B23,'Wilo Price List'!B:G,5,FALSE) -> 18397 | G23: PG6
B24: 29990854 | C24: SIBOOST SMART 4 HELIX VE 404 | D24: 1 Pump | E24: SIBOOST-System | F24: =VLOOKUP(B24,'Wilo Price List'!B:G,5,FALSE) -> 22809 | G24: PG6
B26: 29990203 | C26: SIBOOST SMART 2 HELIX VE 405 | D26: 1 Pump | E26: SIBOOST-System | F26: =VLOOKUP(B26,'Wilo Price List'!B:G,5,FALSE) -> 16145 | G26: PG6
B27: 29990205 | C27: SIBOOST SMART 3 HELIX VE 405 | D27: 1 Pump | E27: SIBOOST-System | F27: =VLOOKUP(B27,'Wilo Price List'!B:G,5,FALSE) -> 22302 | G27: PG6
B28: 29990207 | C28: SIBOOST SMART 4 HELIX VE 405 | D28: 1 Pump | E28: SIBOOST-System | F28: =VLOOKUP(B28,'Wilo Price List'!B:G,5,FALSE) -> 28265 | G28: PG6
B30: 29990282 | C30: SIBOOST SMART 2 HELIX VE 407 | D30: 1 Pump | E30: SIBOOST-System | F30: =VLOOKUP(B30,'Wilo Price List'!B:G,5,FALSE) -> 16983 | G30: PG6
B31: 29990284 | C31: SIBOOST SMART 3 HELIX VE 407 | D31: 1 Pump | E31: SIBOOST-System | F31: =VLOOKUP(B31,'Wilo Price List'!B:G,5,FALSE) -> 23522 | G31: PG6
B32: 29990286 | C32: SIBOOST SMART 4 HELIX VE 407 | D32: 1 Pump | E32: SIBOOST-System | F32: =VLOOKUP(B32,'Wilo Price List'!B:G,5,FALSE) -> 29954 | G32: PG6
B34: 29990204 | C34: SIBOOST SMART 2 HELIX VE 410 | D34: 1 Pump | E34: SIBOOST-System | F34: =VLOOKUP(B34,'Wilo Price List'!B:G,5,FALSE) -> 18050 | G34: PG6
B35: 29990206 | C35: SIBOOST SMART 3 HELIX VE 410 | D35: 1 Pump | E35: SIBOOST-System | F35: =VLOOKUP(B35,'Wilo Price List'!B:G,5,FALSE) -> 25156 | G35: PG6
B36: 29990208 | C36: SIBOOST SMART 4 HELIX VE 410 | D36: 1 Pump | E36: SIBOOST-System | F36: =VLOOKUP(B36,'Wilo Price List'!B:G,5,FALSE) -> 32074 | G36: PG6
B38: 29990287 | C38: SIBOOST SMART 2 HELIX VE 602 | D38: 1 Pump | E38: SIBOOST-System | F38: =VLOOKUP(B38,'Wilo Price List'!B:G,5,FALSE) -> 15952 | G38: PG6
B39: 29990290 | C39: SIBOOST SMART 3 HELIX VE 602 | D39: 1 Pump | E39: SIBOOST-System | F39: =VLOOKUP(B39,'Wilo Price List'!B:G,5,FALSE) -> 21751 | G39: PG6
B40: 29990293 | C40: SIBOOST SMART 4 HELIX VE 602 | D40: 1 Pump | E40: SIBOOST-System | F40: =VLOOKUP(B40,'Wilo Price List'!B:G,5,FALSE) -> 27586 | G40: PG6
B42: 29990209 | C42: SIBOOST SMART 2 HELIX VE 603 | D42: 1 Pump | E42: SIBOOST-System | F42: =VLOOKUP(B42,'Wilo Price List'!B:G,5,FALSE) -> 16174 | G42: PG6
B43: 29990212 | C43: SIBOOST SMART 3 HELIX VE 603 | D43: 1 Pump | E43: SIBOOST-System | F43: =VLOOKUP(B43,'Wilo Price List'!B:G,5,FALSE) -> 22143 | G43: PG6
B44: 29990215 | C44: SIBOOST SMART 4 HELIX VE 603 | D44: 1 Pump | E44: SIBOOST-System | F44: =VLOOKUP(B44,'Wilo Price List'!B:G,5,FALSE) -> 28047 | G44: PG6
B46: 29990288 | C46: SIBOOST SMART 2 HELIX VE 604 | D46: 1 Pump | E46: SIBOOST-System | F46: =VLOOKUP(B46,'Wilo Price List'!B:G,5,FALSE) -> 16887 | G46: PG6
B47: 29990291 | C47: SIBOOST SMART 3 HELIX VE 604 | D47: 1 Pump | E47: SIBOOST-System | F47: =VLOOKUP(B47,'Wilo Price List'!B:G,5,FALSE) -> 23149 | G47: PG6
B48: 29990294 | C48: SIBOOST SMART 4 HELIX VE 604 | D48: 1 Pump | E48: SIBOOST-System | F48: =VLOOKUP(B48,'Wilo Price List'!B:G,5,FALSE) -> 29456 | G48: PG6
B50: 29990210 | C50: SIBOOST SMART 2 HELIX VE 606 | D50: 1 Pump | E50: SIBOOST-System | F50: =VLOOKUP(B50,'Wilo Price List'!B:G,5,FALSE) -> 17209 | G50: PG6
B51: 29990213 | C51: SIBOOST SMART 3 HELIX VE 606 | D51: 1 Pump | E51: SIBOOST-System | F51: =VLOOKUP(B51,'Wilo Price List'!B:G,5,FALSE) -> 23696 | G51: PG6
B52: 29990216 | C52: SIBOOST SMART 4 HELIX VE 606 | D52: 1 Pump | E52: SIBOOST-System | F52: =VLOOKUP(B52,'Wilo Price List'!B:G,5,FALSE) -> 30118 | G52: PG6
B54: 29990289 | C54: SIBOOST SMART 2 HELIX VE 608 | D54: 1 Pump | E54: SIBOOST-System | F54: =VLOOKUP(B54,'Wilo Price List'!B:G,5,FALSE) -> 18338 | G54: PG6
B55: 29990292 | C55: SIBOOST SMART 3 HELIX VE 608 | D55: 1 Pump | E55: SIBOOST-System | F55: =VLOOKUP(B55,'Wilo Price List'!B:G,5,FALSE) -> 25328 | G55: PG6
B56: 29990295 | C56: SIBOOST SMART 4 HELIX VE 608 | D56: 1 Pump | E56: SIBOOST-System | F56: =VLOOKUP(B56,'Wilo Price List'!B:G,5,FALSE) -> 32358 | G56: PG6
B58: 29990211 | C58: SIBOOST SMART 2 HELIX VE 611 | D58: 1 Pump | E58: SIBOOST-System | F58: =VLOOKUP(B58,'Wilo Price List'!B:G,5,FALSE) -> 19050 | G58: PG6
B59: 29990214 | C59: SIBOOST SMART 3 HELIX VE 611 | D59: 1 Pump | E59: SIBOOST-System | F59: =VLOOKUP(B59,'Wilo Price List'!B:G,5,FALSE) -> 26456 | G59: PG6
B60: 29990217 | C60: SIBOOST SMART 4 HELIX VE 611 | D60: 1 Pump | E60: SIBOOST-System | F60: =VLOOKUP(B60,'Wilo Price List'!B:G,5,FALSE) -> 33802 | G60: PG6
B62: 29990218 | C62: SIBOOST SMART 2 HELIX VE 1002 | D62: 1 Pump | E62: SIBOOST-System | F62: =VLOOKUP(B62,'Wilo Price List'!B:G,5,FALSE) -> 14973 | G62: PG6
B63: 29990221 | C63: SIBOOST SMART 3 HELIX VE 1002 | D63: 1 Pump | E63: SIBOOST-System | F63: =VLOOKUP(B63,'Wilo Price List'!B:G,5,FALSE) -> 20731 | G63: PG6
B64: 29990224 | C64: SIBOOST SMART 4 HELIX VE 1002 | D64: 1 Pump | E64: SIBOOST-System | F64: =VLOOKUP(B64,'Wilo Price List'!B:G,5,FALSE) -> 26345 | G64: PG6
B66: 29990296 | C66: SIBOOST SMART 2 HELIX VE 1003 | D66: 1 Pump | E66: SIBOOST-System | F66: =VLOOKUP(B66,'Wilo Price List'!B:G,5,FALSE) -> 17240 | G66: PG6
B67: 29990299 | C67: SIBOOST SMART 3 HELIX VE 1003 | D67: 1 Pump | E67: SIBOOST-System | F67: =VLOOKUP(B67,'Wilo Price List'!B:G,5,FALSE) -> 24253 | G67: PG6
B68: 29990432 | C68: SIBOOST SMART 4 HELIX VE 1003 | D68: 1 Pump | E68: SIBOOST-System | F68: =VLOOKUP(B68,'Wilo Price List'!B:G,5,FALSE) -> 31091 | G68: PG6
B70: 29990219 | C70: SIBOOST SMART 2 HELIX VE 1004 | D70: 1 Pump | E70: SIBOOST-System | F70: =VLOOKUP(B70,'Wilo Price List'!B:G,5,FALSE) -> 17597 | G70: PG6
B71: 29990222 | C71: SIBOOST SMART 3 HELIX VE 1004 | D71: 1 Pump | E71: SIBOOST-System | F71: =VLOOKUP(B71,'Wilo Price List'!B:G,5,FALSE) -> 24664 | G71: PG6
B72: 29990225 | C72: SIBOOST SMART 4 HELIX VE 1004 | D72: 1 Pump | E72: SIBOOST-System | F72: =VLOOKUP(B72,'Wilo Price List'!B:G,5,FALSE) -> 31587 | G72: PG6
B74: 29990297 | C74: SIBOOST SMART 2 HELIX VE 1005 | D74: 1 Pump | E74: SIBOOST-System | F74: =VLOOKUP(B74,'Wilo Price List'!B:G,5,FALSE) -> 18397 | G74: PG6
B75: 29990430 | C75: SIBOOST SMART 3 HELIX VE 1005 | D75: 1 Pump | E75: SIBOOST-System | F75: =VLOOKUP(B75,'Wilo Price List'!B:G,5,FALSE) -> 25856 | G75: PG6
B76: 29990433 | C76: SIBOOST SMART 4 HELIX VE 1005 | D76: 1 Pump | E76: SIBOOST-System | F76: =VLOOKUP(B76,'Wilo Price List'!B:G,5,FALSE) -> 33433 | G76: PG6
B78: 29990223 | C78: SIBOOST SMART 3 HELIX VE 1006 | D78: 1 Pump | E78: SIBOOST-System | F78: =VLOOKUP(B78,'Wilo Price List'!B:G,5,FALSE) -> 27372 | G78: PG6
B79: 29990220 | C79: SIBOOST SMART 2 HELIX VE 1006 | D79: 1 Pump | E79: SIBOOST-System | F79: =VLOOKUP(B79,'Wilo Price List'!B:G,5,FALSE) -> 19402 | G79: PG6
B80: 29990226 | C80: SIBOOST SMART 4 HELIX VE 1006 | D80: 1 Pump | E80: SIBOOST-System | F80: =VLOOKUP(B80,'Wilo Price List'!B:G,5,FALSE) -> 35197 | G80: PG6
B82: 29990298 | C82: SIBOOST SMART 2 HELIX VE 1009 | D82: 1 Pump | E82: SIBOOST-System | F82: =VLOOKUP(B82,'Wilo Price List'!B:G,5,FALSE) -> 27834 | G82: PG6
B83: 29990431 | C83: SIBOOST SMART 3 HELIX VE 1009 | D83: 1 Pump | E83: SIBOOST-System | F83: =VLOOKUP(B83,'Wilo Price List'!B:G,5,FALSE) -> 40148 | G83: PG6
B84: 29990434 | C84: SIBOOST SMART 4 HELIX VE 1009 | D84: 1 Pump | E84: SIBOOST-System | F84: =VLOOKUP(B84,'Wilo Price List'!B:G,5,FALSE) -> 52285 | G84: PG6
B86: 29990227 | C86: SIBOOST SMART 2 HELIX VE 1602 | D86: 1 Pump | E86: SIBOOST-System | F86: =VLOOKUP(B86,'Wilo Price List'!B:G,5,FALSE) -> 17913 | G86: PG6
B87: 29990231 | C87: SIBOOST SMART 3 HELIX VE 1602 | D87: 1 Pump | E87: SIBOOST-System | F87: =VLOOKUP(B87,'Wilo Price List'!B:G,5,FALSE) -> 25810 | G87: PG6
B88: 29990235 | C88: SIBOOST SMART 4 HELIX VE 1602 | D88: 1 Pump | E88: SIBOOST-System | F88: =VLOOKUP(B88,'Wilo Price List'!B:G,5,FALSE) -> 33015 | G88: PG6
B90: 29990228 | C90: SIBOOST SMART 2 HELIX VE 1603-4 | D90: 1 Pump | E90: SIBOOST-System | F90: =VLOOKUP(B90,'Wilo Price List'!B:G,5,FALSE) -> 19607 | G90: PG6
B91: 29990232 | C91: SIBOOST SMART 3 HELIX VE 1603-4 | D91: 1 Pump | E91: SIBOOST-System | F91: =VLOOKUP(B91,'Wilo Price List'!B:G,5,FALSE) -> 28349 | G91: PG6
B92: 29990236 | C92: SIBOOST SMART 4 HELIX VE 1603-4 | D92: 1 Pump | E92: SIBOOST-System | F92: =VLOOKUP(B92,'Wilo Price List'!B:G,5,FALSE) -> 36401 | G92: PG6
B94: 29990229 | C94: SIBOOST SMART 2 HELIX VE 1605 | D94: 1 Pump | E94: SIBOOST-System | F94: =VLOOKUP(B94,'Wilo Price List'!B:G,5,FALSE) -> 25120 | G94: PG6
B95: 29990233 | C95: SIBOOST SMART 3 HELIX VE 1605 | D95: 1 Pump | E95: SIBOOST-System | F95: =VLOOKUP(B95,'Wilo Price List'!B:G,5,FALSE) -> 36581 | G95: PG6
B96: 29990237 | C96: SIBOOST SMART 4 HELIX VE 1605 | D96: 1 Pump | E96: SIBOOST-System | F96: =VLOOKUP(B96,'Wilo Price List'!B:G,5,FALSE) -> 47467 | G96: PG6
B98: 29990230 | C98: SIBOOST SMART 2 HELIX VE 1606 | D98: 1 Pump | E98: SIBOOST-System | F98: =VLOOKUP(B98,'Wilo Price List'!B:G,5,FALSE) -> 25708 | G98: PG6
B99: 29990234 | C99: SIBOOST SMART 3 HELIX VE 1606 | D99: 1 Pump | E99: SIBOOST-System | F99: =VLOOKUP(B99,'Wilo Price List'!B:G,5,FALSE) -> 37461 | G99: PG6
B100: 29990238 | C100: SIBOOST SMART 4 HELIX VE 1606 | D100: 1 Pump | E100: SIBOOST-System | F100: =VLOOKUP(B100,'Wilo Price List'!B:G,5,FALSE) -> 48641 | G100: PG6
B102: 29990239 | C102: SIBOOST SMART 2 HELIX VE 2202 | D102: 1 Pump | E102: SIBOOST-System | F102: =VLOOKUP(B102,'Wilo Price List'!B:G,5,FALSE) -> 23577 | G102: PG6
B103: 29990243 | C103: SIBOOST SMART 3 HELIX VE 2202 | D103: 1 Pump | E103: SIBOOST-System | F103: =VLOOKUP(B103,'Wilo Price List'!B:G,5,FALSE) -> 34829 | G103: PG6
B104: 29990247 | C104: SIBOOST SMART 4 HELIX VE 2202 | D104: 1 Pump | E104: SIBOOST-System | F104: =VLOOKUP(B104,'Wilo Price List'!B:G,5,FALSE) -> 44499 | G104: PG6
B106: 29990240 | C106: SIBOOST SMART 2 HELIX VE 2203 | D106: 1 Pump | E106: SIBOOST-System | F106: =VLOOKUP(B106,'Wilo Price List'!B:G,5,FALSE) -> 29003 | G106: PG6
B107: 29990244 | C107: SIBOOST SMART 3 HELIX VE 2203 | D107: 1 Pump | E107: SIBOOST-System | F107: =VLOOKUP(B107,'Wilo Price List'!B:G,5,FALSE) -> 42976 | G107: PG6
B108: 29990248 | C108: SIBOOST SMART 4 HELIX VE 2203 | D108: 1 Pump | E108: SIBOOST-System | F108: =VLOOKUP(B108,'Wilo Price List'!B:G,5,FALSE) -> 55360 | G108: PG6
B110: 29990241 | C110: SIBOOST SMART 2 HELIX VE 2204 | D110: 1 Pump | E110: SIBOOST-System | F110: =VLOOKUP(B110,'Wilo Price List'!B:G,5,FALSE) -> 29144 | G110: PG6
B111: 29990245 | C111: SIBOOST SMART 3 HELIX VE 2204 | D111: 1 Pump | E111: SIBOOST-System | F111: =VLOOKUP(B111,'Wilo Price List'!B:G,5,FALSE) -> 43185 | G111: PG6
B112: 29990249 | C112: SIBOOST SMART 4 HELIX VE 2204 | D112: 1 Pump | E112: SIBOOST-System | F112: =VLOOKUP(B112,'Wilo Price List'!B:G,5,FALSE) -> 55637 | G112: PG6
B114: 29990242 | C114: SIBOOST SMART 2 HELIX VE 2205 | D114: 1 Pump | E114: SIBOOST-System | F114: =VLOOKUP(B114,'Wilo Price List'!B:G,5,FALSE) -> 36506 | G114: PG6
B115: 29990246 | C115: SIBOOST SMART 3 HELIX VE 2205 | D115: 1 Pump | E115: SIBOOST-System | F115: =VLOOKUP(B115,'Wilo Price List'!B:G,5,FALSE) -> 54371 | G115: PG6
B116: 29990250 | C116: SIBOOST SMART 4 HELIX VE 2205 | D116: 1 Pump | E116: SIBOOST-System | F116: =VLOOKUP(B116,'Wilo Price List'!B:G,5,FALSE) -> 70278 | G116: PG6

Sheet ISAR Boost 5
B2: Package Boosters and Tank | G2: Home
B5: Article No. (or variant) | C5: Article description | D5: List Price | E5: Price group
B7: 4250016 | C7: Wilo-Isar BOOST5-E-3-G | D7: =VLOOKUP(B7,'Wilo Price List'!B:F,5,FALSE) -> 1623 | E7: PG6
B8: 4250017 | C8: Wilo-Isar BOOST5-E-5-G | D8: =VLOOKUP(B8,'Wilo Price List'!B:F,5,FALSE) -> 2036 | E8: PG6
B9: T150
B10: 2815093 | C10: Isar BOOST5 E3 T150 | D10: =VLOOKUP(B10,'Wilo Price List'!B:F,5,FALSE) -> 3789 | E10: PG6
B11: 2815094 | C11: Isar BOOST5 E5 T150 | D11: =VLOOKUP(B11,'Wilo Price List'!B:F,5,FALSE) -> 3944 | E11: PG6
B13: 4252615 | C13: Electronic Expansion Board for Isar BOOST5 | D13: =VLOOKUP(B13,'Wilo Price List'!B:F,5,FALSE) -> 103 | E13: PG14

Sheet T Range
B2: Package Boosters and Tank | G2: Home
B5: Article No. (or variant) | C5: Article description | D5: List Price | E5: Price group
B6: T90
B7: 29993779 | C7: ISAR MODH1-202/EC-EM-T90 | D7: =VLOOKUP(B7,'Wilo Price List'!B6:G44008,5,FALSE) -> 6189 | E7: PG06
B8: 29993780 | C8: ISAR MODH1-203/EC-EM-T90 | D8: =VLOOKUP(B8,'Wilo Price List'!B7:G44009,5,FALSE) -> 6220 | E8: PG06
B9: 29993781 | C9: ISAR MODH1-204/EC-EM-T90 | D9: =VLOOKUP(B9,'Wilo Price List'!B8:G44010,5,FALSE) -> 6296 | E9: PG06
B10: 29993782 | C10: ISAR MODH1-205/EC-EM-T90 | D10: =VLOOKUP(B10,'Wilo Price List'!B9:G44011,5,FALSE) -> 6343 | E10: PG06
B11: 29993783 | C11: ISAR MODH1-206/EC-EM-T90 | D11: =VLOOKUP(B11,'Wilo Price List'!B10:G44012,5,FALSE) -> 6430 | E11: PG06
B12: 29993784 | C12: ISAR MODH1-207/EC-EM-T90 | D12: =VLOOKUP(B12,'Wilo Price List'!B11:G44013,5,FALSE) -> 6516 | E12: PG06
B13: 29993785 | C13: ISAR MODH1-402/EC-EM-T90 | D13: =VLOOKUP(B13,'Wilo Price List'!B11:G44014,5,FALSE) -> 6219 | E13: PG06
B14: 29993786 | C14: ISAR MODH1-403/EC-EM-T90 | D14: =VLOOKUP(B14,'Wilo Price List'!B12:G44015,5,FALSE) -> 6220 | E14: PG06
B15: 29993787 | C15: ISAR MODH1-404/EC-EM-T90 | D15: =VLOOKUP(B15,'Wilo Price List'!B13:G44016,5,FALSE) -> 6323 | E15: PG06
B16: 29993788 | C16: ISAR MODH1-405/EC-EM-T90 | D16: =VLOOKUP(B16,'Wilo Price List'!B14:G44017,5,FALSE) -> 6462 | E16: PG06
B17: 29993789 | C17: ISAR MODH1-406/EC-EM-T90 | D17: =VLOOKUP(B17,'Wilo Price List'!B15:G44018,5,FALSE) -> 6493 | E17: PG06
B18: 29993790 | C18: ISAR MODH1-407/EC-EM-T90 | D18: =VLOOKUP(B18,'Wilo Price List'!B16:G44019,5,FALSE) -> 6560 | E18: PG06
B19: T150
B20: 29993799 | C20: ISAR MODH1-202/EC-EM-T150 | D20: =VLOOKUP(B20,'Wilo Price List'!B25:G44029,5,FALSE) -> 4610 | E20: PG06
B21: 29993800 | C21: ISAR MODH1-203/EC-EM-T150 | D21: =VLOOKUP(B21,'Wilo Price List'!B26:G44030,5,FALSE) -> 4643 | E21: PG06
B22: 29993801 | C22: ISAR MODH1-204/EC-EM-T150 | D22: =VLOOKUP(B22,'Wilo Price List'!B27:G44031,5,FALSE) -> 4716 | E22: PG06
B23: 29993802 | C23: ISAR MODH1-205/EC-EM-T150 | D23: =VLOOKUP(B23,'Wilo Price List'!B28:G44032,5,FALSE) -> 4764 | E23: PG06
B24: 29993803 | C24: ISAR MODH1-206/EC-EM-T150 | D24: =VLOOKUP(B24,'Wilo Price List'!B29:G44033,5,FALSE) -> 4851 | E24: PG06
B25: 29993804 | C25: ISAR MODH1-207/EC-EM-T150 | D25: =VLOOKUP(B25,'Wilo Price List'!B30:G44034,5,FALSE) -> 4936 | E25: PG06
B26: 29993805 | C26: ISAR MODH1-402/EC-EM-T150 | D26: =VLOOKUP(B26,'Wilo Price List'!B31:G44035,5,FALSE) -> 4640 | E26: PG06
B27: 29993806 | C27: ISAR MODH1-403/EC-EM-T150 | D27: =VLOOKUP(B27,'Wilo Price List'!B32:G44036,5,FALSE) -> 4640 | E27: PG06
B28: 29993807 | C28: ISAR MODH1-404/EC-EM-T150 | D28: =VLOOKUP(B28,'Wilo Price List'!B33:G44037,5,FALSE) -> 4745 | E28: PG06
B29: 29993808 | C29: ISAR MODH1-405/EC-EM-T150 | D29: =VLOOKUP(B29,'Wilo Price List'!B34:G44038,5,FALSE) -> 4882 | E29: PG06
B30: 29993809 | C30: ISAR MODH1-406/EC-EM-T150 | D30: =VLOOKUP(B30,'Wilo Price List'!B35:G44039,5,FALSE) -> 4914 | E30: PG06
B31: 29993810 | C31: ISAR MODH1-407/EC-EM-T150 | D31: =VLOOKUP(B31,'Wilo Price List'!B36:G44040,5,FALSE) -> 4981 | E31: PG06
B32: 29993811 | C32: ISAR MODH1-602/EC-EM-T150 | D32: =VLOOKUP(B32,'Wilo Price List'!B37:G44041,5,FALSE) -> 4946 | E32: PG06
B33: 29993812 | C33: ISAR MODH1-603/EC-EM-T150 | D33: =VLOOKUP(B33,'Wilo Price List'!B38:G44042,5,FALSE) -> 5114 | E33: PG06
B34: 29993813 | C34: ISAR MODH1-604/EC-EM-T150 | D34: =VLOOKUP(B34,'Wilo Price List'!B39:G44043,5,FALSE) -> 5163 | E34: PG06
B35: 29993814 | C35: ISAR MODH1-605/EC-EM-T150 | D35: =VLOOKUP(B35,'Wilo Price List'!B40:G44044,5,FALSE) -> 5318 | E35: PG06
B36: 29993815 | C36: ISAR MODH1-1002/EC-EM-T150 | D36: =VLOOKUP(B36,'Wilo Price List'!B41:G44045,5,FALSE) -> 5072 | E36: PG06
B37: 29993816 | C37: ISAR MODH1-1003/EC-EM-T150 | D37: =VLOOKUP(B37,'Wilo Price List'!B42:G44046,5,FALSE) ->  | E37: PG06
B38: 29993817 | C38: ISAR MODH1-1004/EC-EM-T150 | D38: =VLOOKUP(B38,'Wilo Price List'!B43:G44047,5,FALSE) -> 5327 | E38: PG06
B39: 29993818 | C39: ISAR MODH1-1005/EC-EM-T150 | D39: =VLOOKUP(B39,'Wilo Price List'!B44:G44048,5,FALSE) -> 5527 | E39: PG06
B40: T260
B41: 29993820 | C41: ISAR MODH1-2CH1-L-202/SCe-T260 | D41: =VLOOKUP(B41,'Wilo Price List'!B46:G44050,5,FALSE) -> 13920 | E41: PG06
B42: 29993821 | C42: ISAR MODH1-2CH1-L-203/SCe-T260 | D42: =VLOOKUP(B42,'Wilo Price List'!B47:G44051,5,FALSE) -> 13976 | E42: PG06
B43: 29993822 | C43: ISAR MODH1-2CH1-L-204/SCe-T260 | D43: =VLOOKUP(B43,'Wilo Price List'!B48:G44052,5,FALSE) -> 14118 | E43: PG06
B44: 29993823 | C44: ISAR MODH1-2CH1-L-205/SCe-T260 | D44: =VLOOKUP(B44,'Wilo Price List'!B49:G44053,5,FALSE) -> 14262 | E44: PG06
B45: 29993824 | C45: ISAR MODH1-2CH1-L-206/SCe-T260 | D45: =VLOOKUP(B45,'Wilo Price List'!B50:G44054,5,FALSE) ->  | E45: PG06
B46: 29993825 | C46: ISAR MODH1-2CH1-L-207/SCe-T260 | D46: =VLOOKUP(B46,'Wilo Price List'!B51:G44055,5,FALSE) -> 14577 | E46: PG06
B47: 29993826 | C47: ISAR MODH1-2CH1-L-402/SCe-T260 | D47: =VLOOKUP(B47,'Wilo Price List'!B52:G44056,5,FALSE) -> 13918 | E47: PG06
B48: 29993827 | C48: ISAR MODH1-2CH1-L-403/SCe-T260 | D48: =VLOOKUP(B48,'Wilo Price List'!B53:G44057,5,FALSE) -> 13973 | E48: PG06
B49: 29993828 | C49: ISAR MODH1-2CH1-L-404/SCe-T260 | D49: =VLOOKUP(B49,'Wilo Price List'!B54:G44058,5,FALSE) -> 14113 | E49: PG06
B50: 29993829 | C50: ISAR MODH1-2CH1-L-405/SCe-T260 | D50: =VLOOKUP(B50,'Wilo Price List'!B55:G44059,5,FALSE) -> 14362 | E50: PG06
B51: 29993830 | C51: ISAR MODH1-2CH1-L-406/SCe-T260 | D51: =VLOOKUP(B51,'Wilo Price List'!B56:G44060,5,FALSE) -> 14417 | E51: PG06
B52: 29993831 | C52: ISAR MODH1-2CH1-L-407/SCe-T260 | D52: =VLOOKUP(B52,'Wilo Price List'!B57:G44061,5,FALSE) -> 14669 | E52: PG06
B53: 29993832 | C53: ISAR MODH1-2CH1-L-602/SCe-T260 | D53: =VLOOKUP(B53,'Wilo Price List'!B58:G44062,5,FALSE) -> 14604 | E53: PG06
B54: 29993833 | C54: ISAR MODH1-2CH1-L-603/SCe-T260 | D54: =VLOOKUP(B54,'Wilo Price List'!B59:G44063,5,FALSE) -> 14659 | E54: PG06
B55: 29993834 | C55: ISAR MODH1-2CH1-L-604/SCe-T260 | D55: =VLOOKUP(B55,'Wilo Price List'!B60:G44064,5,FALSE) -> 14826 | E55: PG06
B56: 29993835 | C56: ISAR MODH1-2CH1-L-605/SCe-T260 | D56: =VLOOKUP(B56,'Wilo Price List'!B61:G44065,5,FALSE) -> 15048 | E56: PG06
B57: 29993836 | C57: ISAR MODH1-2CH1-L-1002/SCe-T260 | D57: =VLOOKUP(B57,'Wilo Price List'!B62:G44066,5,FALSE) -> 15718 | E57: PG06
B58: 29993837 | C58: ISAR MODH1-2CH1-L-1003/SCe-T260 | D58: =VLOOKUP(B58,'Wilo Price List'!B63:G44067,5,FALSE) -> 15773 | E58: PG06
B59: 29993838 | C59: ISAR MODH1-2CH1-L-1004/SCe-T260 | D59: =VLOOKUP(B59,'Wilo Price List'!B64:G44068,5,FALSE) -> 15940 | E59: PG06
B60: 29993839 | C60: ISAR MODH1-2CH1-L-1005/SCe-T260 | D60: =VLOOKUP(B60,'Wilo Price List'!B65:G44069,5,FALSE) -> 16161 | E60: PG06

Sheet Comfort-Pressurisation
B2: Comfort Pressurisation | I2: Home
B5: Article No. (or variant) | C5: Article description | D5: Type (Pump / Accessory / Spare Part / Addon / Service) | E5: Product range | F5: List Price | G5: Price group
B6: Wall Mount
B7: 2819501 | C7: COMFORT P130-WM PRESSURISATION UNIT | D7: 1 Pump | E7: Comfort-Pressurisation System | F7: =VLOOKUP(B7,'Wilo Price List'!B:G,5,FALSE) -> 1932 | G7: PG6
B8: 2819502 | C8: COMFORT P230-WM PRESSURISATION UNIT | D8: 1 Pump | E8: Comfort-Pressurisation System | F8: =VLOOKUP(B8,'Wilo Price List'!B:G,5,FALSE) -> 2009 | G8: PG6
B9: Single Pump
B10: 2819492 | C10: COMFORT P135 PRESSURISATION UNIT | D10: 1 Pump | E10: Comfort-Pressurisation System | F10: =VLOOKUP(B10,'Wilo Price List'!B:G,5,FALSE) -> 2088 | G10: PG6
B11: 2819493 | C11: COMFORT P160 PRESSURISATION UNIT | D11: 1 Pump | E11: Comfort-Pressurisation System | F11: =VLOOKUP(B11,'Wilo Price List'!B:G,5,FALSE) -> 2327 | G11: PG6
B12: Twin Pump
B13: 2819495 | C13: COMFORT P235 PRESSURISATION UNIT | D13: 1 Pump | E13: Comfort-Pressurisation System | F13: =VLOOKUP(B13,'Wilo Price List'!B:G,5,FALSE) -> 2389 | G13: PG6
B14: 2819496 | C14: COMFORT P260 PRESSURISATION UNIT | D14: 1 Pump | E14: Comfort-Pressurisation System | F14: =VLOOKUP(B14,'Wilo Price List'!B:G,5,FALSE) -> 2869 | G14: PG6
B15: Twin System
B16: 2819498 | C16: COMFORT P135-TS PRESSURISATION UNIT | D16: 1 Pump | E16: Comfort-Pressurisation System | F16: =VLOOKUP(B16,'Wilo Price List'!B:G,5,FALSE) -> 2671 | G16: PG6
B17: 2819499 | C17: COMFORT P160-TS PRESSURISATION UNIT | D17: 1 Pump | E17: Comfort-Pressurisation System | F17: =VLOOKUP(B17,'Wilo Price List'!B:G,5,FALSE) -> 3178 | G17: PG6

Sheet Vessel
B2: Vessels | I2: Home
B5: Article No. (or variant) | C5: Article description | D5: Type (Pump / Accessory / Spare Part / Addon / Service) | E5: Product range | F5: List Price | G5: Price group
B6: Wilo Pro Heating Vessel
B7: 29990913 | C7: Wilo Pro 8L Heating Vessel | D7: Accessory | E7: Wilo Pro Pressurisation Vessel | F7: =VLOOKUP(B7,'Wilo Price List'!B:G,5,FALSE) -> 118 | G7: PG6
B8: 29990914 | C8: Wilo Pro 12L Heating Vessel | D8: Accessory | E8: Wilo Pro Pressurisation Vessel | F8: =VLOOKUP(B8,'Wilo Price List'!B:G,5,FALSE) -> 133 | G8: PG6
B9: 29990915 | C9: Wilo Pro 18L Heating Vessel | D9: Accessory | E9: Wilo Pro Pressurisation Vessel | F9: =VLOOKUP(B9,'Wilo Price List'!B:G,5,FALSE) -> 133 | G9: PG6
B10: 29990916 | C10: Wilo Pro 25L Heating Vessel | D10: Accessory | E10: Wilo Pro Pressurisation Vessel | F10: =VLOOKUP(B10,'Wilo Price List'!B:G,5,FALSE) -> 153 | G10: PG6
B11: 29990917 | C11: Wilo Pro 50L & Base Heating Vessel | D11: Accessory | E11: Wilo Pro Pressurisation Vessel | F11: =VLOOKUP(B11,'Wilo Price List'!B:G,5,FALSE) -> 245 | G11: PG6
B12: 29990918 | C12: Wilo Pro 105L Heating Vessel | D12: Accessory | E12: Wilo Pro Pressurisation Vessel | F12: =VLOOKUP(B12,'Wilo Price List'!B:G,5,FALSE) -> 388 | G12: PG6
B13: 29990919 | C13: Wilo Pro 200L Heating Vessel | D13: Accessory | E13: Wilo Pro Pressurisation Vessel | F13: =VLOOKUP(B13,'Wilo Price List'!B:G,5,FALSE) -> 684 | G13: PG6
B14: 29990920 | C14: Wilo Pro 300L Heating Vessel | D14: Accessory | E14: Wilo Pro Pressurisation Vessel | F14: =VLOOKUP(B14,'Wilo Price List'!B:G,5,FALSE) -> 969 | G14: PG6
B15: 29991001 | C15: Wilo Pro 400L Heating Vessel | D15: Accessory | E15: Wilo Pro Pressurisation Vessel | F15: =VLOOKUP(B15,'Wilo Price List'!B:G,5,FALSE) -> 1673 | G15: PG6
B16: 29990921 | C16: Wilo Pro 500L Heating Vessel | D16: Accessory | E16: Wilo Pro Pressurisation Vessel | F16: =VLOOKUP(B16,'Wilo Price List'!B:G,5,FALSE) -> 1724 | G16: PG6
B17: 29990922 | C17: Wilo Pro 600L Heating Vessel | D17: Accessory | E17: Wilo Pro Pressurisation Vessel | F17: =VLOOKUP(B17,'Wilo Price List'!B:G,5,FALSE) -> 2142 | G17: PG6
B18: 29990923 | C18: Wilo Pro 700L Heating Vessel | D18: Accessory | E18: Wilo Pro Pressurisation Vessel | F18: =VLOOKUP(B18,'Wilo Price List'!B:G,5,FALSE) -> 3366 | G18: PG6
B19: 29991002 | C19: Wilo Pro 800L Heating Vessel | D19: Accessory | E19: Wilo Pro Pressurisation Vessel | F19: =VLOOKUP(B19,'Wilo Price List'!B:G,5,FALSE) -> 3672 | G19: PG6
B20: 29990753 | C20: Wilo Pro 900L Heating Vessel | D20: Accessory | E20: Wilo Pro Pressurisation Vessel | F20: =VLOOKUP(B20,'Wilo Price List'!B:G,5,FALSE) -> 3723 | G20: PG6
B21: Wilo Ultra Pro Vessel
B22: 29991906 | C22: 12L ULTRA PRO VERTICAL VESSEL | D22: Accessory | E22: Ultra Pro_Expansion Vessel | F22: =VLOOKUP(B22,'Wilo Price List'!B:G,5,FALSE) -> 105 | G22: PG6
B23: 29991907 | C23: 18L ULTRA PRO VERTICAL VESSEL | D23: Accessory | E23: Ultra Pro_Expansion Vessel | F23: =VLOOKUP(B23,'Wilo Price List'!B:G,5,FALSE) -> 118 | G23: PG6
B24: 29991912 | C24: 24L ULTRA PRO VERTICAL VESSEL | D24: Accessory | E24: Ultra Pro_Expansion Vessel | F24: =VLOOKUP(B24,'Wilo Price List'!B:G,5,FALSE) -> 123 | G24: PG6
B25: 29991006 | C25: 60L ULTRA PRO VERTICAL VESSEL | D25: Accessory | E25: Ultra Pro_Expansion Vessel | F25: =VLOOKUP(B25,'Wilo Price List'!B:G,5,FALSE) -> 541 | G25: PG6
B26: 29991007 | C26: 100L ULTRA PRO VERTICAL VESSEL | D26: Accessory | E26: Ultra Pro_Expansion Vessel | F26: =VLOOKUP(B26,'Wilo Price List'!B:G,5,FALSE) -> 500 | G26: PG6
B27: 29991008 | C27: 200L ULTRA PRO VERTICAL VESSEL | D27: Accessory | E27: Ultra Pro_Expansion Vessel | F27: =VLOOKUP(B27,'Wilo Price List'!B:G,5,FALSE) -> 1000 | G27: PG6
B28: 29991009 | C28: 300L ULTRA PRO VERTICAL VESSEL | D28: Accessory | E28: Ultra Pro_Expansion Vessel | F28: =VLOOKUP(B28,'Wilo Price List'!B:G,5,FALSE) -> 1326 | G28: PG6
B29: 29991010 | C29: 500L ULTRA PRO VERTICAL VESSEL | D29: Accessory | E29: Ultra Pro_Expansion Vessel | F29: =VLOOKUP(B29,'Wilo Price List'!B:G,5,FALSE) -> 2040 | G29: PG6
B30: 29991011 | C30: 750L ULTRA PRO VERTICAL VESSEL | D30: Accessory | E30: Ultra Pro_Expansion Vessel | F30: =VLOOKUP(B30,'Wilo Price List'!B:G,5,FALSE) -> 2938 | G30: PG6
B31: 29991012 | C31: 1000L ULTRA PRO VERTICAL VESSEL | D31: Accessory | E31: Ultra Pro_Expansion Vessel | F31: =VLOOKUP(B31,'Wilo Price List'!B:G,5,FALSE) -> 4988 | G31: PG6
B33: 29991013 | C33: 100L ULTRA PRO VERTICAL VESSEL 16BAR | D33: Accessory | E33: Ultra Pro_Expansion Vessel | F33: =VLOOKUP(B33,'Wilo Price List'!B:G,5,FALSE) -> 1694 | G33: PG6
B34: 29991014 | C34: 200L ULTRA PRO VERTICAL VESSEL 16BAR | D34: Accessory | E34: Ultra Pro_Expansion Vessel | F34: =VLOOKUP(B34,'Wilo Price List'!B:G,5,FALSE) -> 2040 | G34: PG6
B35: 29991015 | C35: 300L ULTRA PRO VERTICAL VESSEL 16BAR | D35: Accessory | E35: Ultra Pro_Expansion Vessel | F35: =VLOOKUP(B35,'Wilo Price List'!B:G,5,FALSE) -> 2448 | G35: PG6
B37: 29991913 | C37: 24L ULTRA PRO HORIZONTAL VESSEL | D37: Accessory | E37: Ultra Pro_Expansion Vessel | F37: =VLOOKUP(B37,'Wilo Price List'!B:G,5,FALSE) -> 133 | G37: PG6
B38: 29991914 | C38: 60L ULTRA PRO HORIZONTAL VESSEL | D38: Accessory | E38: Ultra Pro_Expansion Vessel | F38: =VLOOKUP(B38,'Wilo Price List'!B:G,5,FALSE) -> 643 | G38: PG6
B39: 29991915 | C39: 80L ULTRA PRO HORIZONTAL VESSEL | D39: Accessory | E39: Ultra Pro_Expansion Vessel | F39: =VLOOKUP(B39,'Wilo Price List'!B:G,5,FALSE) -> 633 | G39: PG6
B40: 29991916 | C40: 100L ULTRA PRO HORIZONTAL VESSEL | D40: Accessory | E40: Ultra Pro_Expansion Vessel | F40: =VLOOKUP(B40,'Wilo Price List'!B:G,5,FALSE) -> 765 | G40: PG6
B41: 29991917 | C41: 200L ULTRA PRO HORIZTONAL VESSEL | D41: Accessory | E41: Ultra Pro_Expansion Vessel | F41: =VLOOKUP(B41,'Wilo Price List'!B:G,5,FALSE) -> 1275 | G41: PG6
B42: 29991005 | C42: 300L ULTRA PRO HORIZONTAL VESSEL | D42: Accessory | E42: Ultra Pro_Expansion Vessel | F42: =VLOOKUP(B42,'Wilo Price List'!B:G,5,FALSE) -> 1734 | G42: PG6

Sheet Wilo Price List
B1: Home
B3: Customer Price Book 2025
B4: Validity Status: 01.01.2025
B5: THIS PRICE LIST IS CORRECT AT TIME OF PRINT AND SUBJECT TO CHANGE | H5: Home
B6: Article No. (or variant) | C6: Article description | D6: Type (Pump / Accessory / Spare Part / Addon / Service) | E6: Product range | F6: 2025 List Price £ | G6: Price group
B7: 4230949 | C7: Yonos PICO-D 30/1-8 | F7: 1418 | G7: P1
B8: 4230948 | C8: Yonos PICO-D 30/1-6 | F8: 1210 | G8: P1
B9: 4232745 | C9: VARIOS PICO-STG 30/1-8 | F9: 875 | G9: P1
B10: 4047573 | C10: STAR-Z25/6-3 | F10: 827 | G10: P1
B11: 4232746 | C11: VARIOS PICO-STG 15/1-13 | F11: 815 | G11: P1
B12: 4224817 | C12: Yonos PICO 40/1-8 | F12: 788 | G12: P1
B13: 4232743 | C13: VARIOS PICO-STG 25/1-8 | F13: 755 | G13: P1
B14: 4215540 | C14: VARIOS PICO-STG 15/1-7 | F14: 754 | G14: P1
B15: 4232747 | C15: VARIOS PICO-STG 15/1-13-180 | F15: 753 | G15: P1
B16: 4216471 | C16: STRATOS-PICO-Z-20/1-6 | F16: 751 | G16: P1
B17: 4216473 | C17: STRATOS-PICO-Z-25/1-6 | F17: 751 | G17: P1
B18: 4232744 | C18: VARIOS PICO-STG 25/1-8-130 | F18: 724 | G18: P1
B19: 4215541 | C19: VARIOS PICO-STG 25/1-7-130 | F19: 696 | G19: P1
B20: 4216470 | C20: STRATOS-PICO-Z-20/1-4 | F20: 696 | G20: P1
B21: 4216472 | C21: STRATOS-PICO-Z-25/1-4 | F21: 696 | G21: P1
B22: 4215542 | C22: VARIOS PICO-STG 25/1-7 | F22: 691 | G22: P1
B23: 4232742 | C23: VARIOS PICO-STG 15/1-8 | F23: 688 | G23: P1
B24: 4111288 | C24: STAR-ZD25/6-3 | F24: 679 | G24: P1
B25: 4244404 | C25: STRATOS PICO 25/0,5-6 BT (ROW) | F25: 667 | G25: P1
B26: 4029062 | C26: STAR-Z25/2 EM | F26: 652 | G26: P1
B27: 4244403 | C27: STRATOS PICO 25/0,5-4 BT (ROW) | F27: 646 | G27: P1
B28: 4255438 | C28: STRATOS PICO-Z 30/0,5-8 | F28: 643 | G28: P1
B29: 4035481 | C29: SB 30 G | F29: 609 | G29: P1
B30: 4215521 | C30: YONOS PICO 30/1-8 (ROW) | F30: 597 | G30: P1
B31: 4244402 | C31: STRATOS PICO 25/0,5-6 N (ROW) | F31: 573 | G31: P1
B32: 4255435 | C32: STRATOS PICO-Z 25/0,5-8 | F32: 567 | G32: P1
B33: 4255432 | C33: STRATOS PICO-Z 20/0,5-8 | F33: 562 | G33: P1
B34: 4198220 | C34: Star-Z NOVA-SmartHome | F34: 561 | G34: P1
B35: 4035479 | C35: SB 30 | F35: 536 | G35: P1
B36: 4215514 | C36: YONOS PICO 25/1-4 130 (ROW) | F36: 533 | G36: P1
B37: 4035477 | C37: SB 5 | F37: 529 | G37: P1
B38: 4215520 | C38: YONOS PICO 30/1-6 (ROW) | F38: 527 | G38: P1
B39: 4132762 | C39: Star-Z NOVA C (ROW) | F39: 526 | G39: P1
B40: 4255434 | C40: STRATOS PICO-Z 25/0,5-6 | F40: 520 | G40: P1
B41: 4255433 | C41: STRATOS PICO-Z 25/0,5-4 | F41: 519 | G41: P1
B42: 4255431 | C42: STRATOS PICO-Z 20/0,5-6 | F42: 514 | G42: P1
B43: 4255430 | C43: STRATOS PICO-Z 20/0,5-4 | F43: 513 | G43: P1
B44: 4081203 | C44: STAR-Z20/7-3(150) | F44: 498 | G44: P1
B45: 4244401 | C45: STRATOS PICO 30/0,5-8 (ROW) | F45: 495 | G45: P1
B46: 4244397 | C46: STRATOS PICO 25/0,5-8 (ROW) | F46: 469 | G46: P1
B47: 4222650 | C47: Star-Z NOVA T (ROW) | F47: 462 | G47: P1
B48: 4215519 | C48: YONOS PICO 30/1-4 (ROW) | F48: 458 | G48: P1
B49: 4244400 | C49: STRATOS PICO 30/0,5-6 (ROW) | F49: 454 | G49: P1
B50: 4081198 | C50: STAR-Z20/5-3(150) | F50: 453 | G50: P1
B51: 4132761 | C51: Star-Z NOVA A (ROW) | F51: 453 | G51: P1
B52: 4232265 | C52: STAR-Z20/5-3(158) | F52: 453 | G52: P1
B53: 4244399 | C53: STRATOS PICO 30/0,5-4 (ROW) | F53: 449 | G53: P1
B54: 4244392 | C54: STRATOS PICO 15/0,5-8 (ROW) | F54: 443 | G54: P1
B55: 4244395 | C55: STRATOS PICO 25/0,5-6 (ROW) | F55: 438 | G55: P1
B56: 4244393 | C56: STRATOS PICO 25/0,5-4 (ROW) | F56: 435 | G56: P1
B57: 4081193 | C57: STAR-Z20/4-3(150) | F57: 424 | G57: P1
B58: 4232196 | C58: STAR-Z20/2-3(15-130) | F58: 424 | G58: P1
B59: 4244391 | C59: STRATOS PICO 15/0,5-6 (ROW) | F59: 423 | G59: P1
B60: 4244390 | C60: STRATOS PICO 15/0,5-4 (ROW) | F60: 416 | G60: P1
B61: 4232178 | C61: STAR-Z20/1-3(15-130) | F61: 399 | G61: P1
B62: 4028111 | C62: STAR-Z20/1 | F62: 398 | G62: P1
B63: 4232172 | C63: STAR-Z20/1(15-130) | F63: 385 | G63: P1
B64: 4215513 | C64: YONOS PICO 25/1-4 (ROW) | F64: 383 | G64: P1
B65: 4132760 | C65: Star-Z NOVA (ROW) | F65: 340 | G65: P1
B66: 4244398 | C66: STRATOS PICO 25/0,5-8 130 (ROW) | F66: 335 | G66: P1
B67: 4244396 | C67: STRATOS PICO 25/0,5-6 130 (ROW) | F67: 304 | G67: P1
B68: 4244394 | C68: STRATOS PICO 25/0,5-4 130 (ROW) | F68: 289 | G68: P1
B69: 4255413 | C69: YONOS PICO-Z 20/0,5-6 150 | F69: 286 | G69: P1
B70: 4255411 | C70: YONOS PICO-Z 15/0,5-4 140 | F70: 285 | G70: P1
B71: 4255412 | C71: YONOS PICO-Z 20/0,5-4 150 | F71: 285 | G71: P1
B72: 4255418 | C72: YONOS PICO-Z 25/0,5-6 180 | F72: 283 | G72: P1
B73: 4255410 | C73: YONOS PICO-Z 15/0,5-4 130 | F73: 282 | G73: P1
B74: 4255417 | C74: YONOS PICO-Z 25/0,5-4 180 | F74: 282 | G74: P1
B75: 4215515 | C75: YONOS PICO 25/1-6 (ROW) | F75: 281 | G75: P1
B76: 4255414 | C76: YONOS PICO-Z 20/0,5-8 150 | F76: 272 | G76: P1
B77: 4255416 | C77: YONOS PICO-Z 25/0,5-6 130 | F77: 272 | G77: P1
B78: 4215517 | C78: YONOS PICO 25/1-8 (ROW) | F78: 250 | G78: P1
B79: 4215518 | C79: YONOS PICO 25/1-8 130 (ROW) | F79: 231 | G79: P1
B80: 4215516 | C80: YONOS PICO 25/1-6 130 (ROW) | F80: 201 | G80: P1
B81: 4215522 | C81: YONOS PICO 25/1-5 130 (ROW) | F81: 186 | G81: P1
B82: 4239241 | C82: Wilo-Smart Connect module BT | F82: 170 | G82: P1
B83: 4215512 | C83: YONOS PICO 15/1-6 (ROW) | F83: 162 | G83: P1
B84: 4215511 | C84: Yonos PICO 15/1-4 | F84: 160 | G84: P1
B85: 2175536 | C85: TOP-Z80/10 DM PN16 RG | F85: 8656 | G85: P2
B86: 2219223 | C86: Yonos MAXO-Z 65/0,5-16 PN6/10 | F86: 7769 | G86: P2
B87: 2175533 | C87: TOP-Z80/10 DM PN10 GG | F87: 7327 | G87: P2
B88: 2175545 | C88: Yonos MAXO-Z 65/0,5-12 PN6/10 | F88: 7326 | G88: P2
B89: 2175530 | C89: TOP-Z65/10 DM PN16 RG | F89: 7299 | G89: P2
B90: 2120673 | C90: Yonos MAXO-D 80/0,5-12 PN10 | F90: 7206 | G90: P2
B91: 2175531 | C91: TOP-Z80/10 DM PN6 GG | F91: 6980 | G91: P2
B92: 2163261 | C92: Yonos MAXO-D 80/0,5-6 PN10 | F92: 6965 | G92: P2
B93: 2191268 | C93: Yonos MAXO-Z 65/0,5-12 RMOT. <23w48 | F93: 6960 | G93: P2
B94: 2175535 | C94: TOP-Z80/10 DM PN16 GG | F94: 6714 | G94: P2
B95: 29991443 | C95: TOP-S/SD80/20 DM RMOT | F95: 6498 | G95: P2
B96: 2120672 | C96: Yonos MAXO-D 80/0,5-12 PN6 | F96: 6485 | G96: P2
B97: 2120671 | C97: Yonos MAXO-D 65/0,5-16 PN6/10 | F97: 6282 | G97: P2
B98: 2163260 | C98: Yonos MAXO-D 80/0,5-6 PN6 | F98: 6271 | G98: P2
B99: 2176071 | C99: TOP-Z80/10 DM GG/RG RMOT.from 03/2017 | F99: 6235 | G99: P2
B100: 2175534 | C100: TOP-Z80/10 DM PN10 RG | F100: 6234 | G100: P2
B101: 2120669 | C101: Yonos MAXO-D 50/0,5-16 PN6/10 | F101: 6042 | G101: P2
B102: 2120670 | C102: Yonos MAXO-D 65/0,5-12 PN6/10 | F102: 5806 | G102: P2
B103: 2175527 | C103: TOP-Z65/10 DM PN6/10 GG | F103: 5760 | G103: P2
B104: 2120666 | C104: Yonos MAXO-D 40/0,5-16 PN6/10 | F104: 5729 | G104: P2
B105: 2175532 | C105: TOP-Z80/10 DM PN6 RG | F105: 5670 | G105: P2
B106: 2175529 | C106: TOP-Z65/10 DM PN16 GG | F106: 5448 | G106: P2
B107: 2175524 | C107: TOP-Z50/7 DM PN16 RG | F107: 5294 | G107: P2
B108: 2095103 | C108: STRATOS-Z 65/1-12 RMOT.CAN | F108: 5148 | G108: P2
B109: 29991569 | C109: Top-SD 80/15 DM RMOT | F109: 5137 | G109: P2
B110: 2150599 | C110: STRATOS-D 65/1-16 PN6/10 | F110: 5053 | G110: P2
B111: 2219222 | C111: Yonos MAXO-Z 50/0,5-16 PN6/10 | F111: 4893 | G111: P2
B112: 2070569 | C112: TOP-Z40/7 EM PN16 RG | F112: 4728 | G112: P2
B113: 2120668 | C113: Yonos MAXO-D 50/0,5-12 PN6/10 | F113: 4539 | G113: P2
B114: 2175528 | C114: TOP-Z65/10 DM PN6/10 RG | F114: 4460 | G114: P2
B115: 2176070 | C115: TOP-Z/ZV65/10 DM RMOT.from 03/2017 | F115: 4460 | G115: P2
B116: 2175518 | C116: TOP-Z40/7 DM PN16 RG | F116: 4388 | G116: P2
B117: 2219221 | C117: Yonos MAXO-Z 40/0,5-16 PN6/10 | F117: 4289 | G117: P2
B118: 29991397 | C118: TOP-S100/10 DM RMOT. | F118: 4195 | G118: P2
B119: 2095095 | C119: STRATOS 100/1-12 RMOT.CAN | F119: 3988 | G119: P2
B120: 2120659 | C120: Yonos MAXO 80/0,5-12 PN10 | F120: 3813 | G120: P2
B121: 2120667 | C121: Yonos MAXO-D 50/0,5-9 PN6/10 | F121: 3807 | G121: P2
B122: 2046687 | C122: TOP-Z50/7 DM GG/RG RMOT. | F122: 3801 | G122: P2
B123: 2175522 | C123: TOP-Z50/7 DM PN6/10 RG | F123: 3799 | G123: P2
B124: 29990798 | C124: TOP SD80/10 3PH RMOT | F124: 3776 | G124: P2
B125: 29991442 | C125: TOP-S/SD80/10 DM RMOT | F125: 3776 | G125: P2
B126: 2095094 | C126: STRATOS /-D 80/1-12 RMOT.CAN | F126: 3714 | G126: P2
B127: 2151886 | C127: Stratos 100/1-6 RMOT. | F127: 3679 | G127: P2
B128: 2120657 | C128: Yonos MAXO 80/0,5-6 PN10 | F128: 3669 | G128: P2
B129: 2146339 | C129: STRATOS /-D 65/1-16 RMOT. | F129: 3666 | G129: P2
B130: 29991441 | C130: TOP-S80/7 DM RMOT.(450W) | F130: 3640 | G130: P2
B131: 2175544 | C131: Yonos MAXO-Z 50/0,5-9 PN6/10 | F131: 3553 | G131: P2
B132: 2175523 | C132: TOP-Z50/7 DM PN16 GG | F132: 3533 | G132: P2
B133: 2120661 | C133: Yonos MAXO 100/0,5-12 PN10 | F133: 3504 | G133: P2
B134: 29991438 | C134: TOP-S/SD65/15 DM RMOT | F134: 3453 | G134: P2
B135: 2146253 | C135: Yonos MAXO /-D 80/0,5-12 RMOT. | F135: 3436 | G135: P2
B136: 2120658 | C136: Yonos MAXO 80/0,5-12 PN6 | F136: 3434 | G136: P2
B137: 2146338 | C137: STRATOS /-D 50/1-16 RMOT. | F137: 3429 | G137: P2
B138: 2095093 | C138: STRATOS /-D 65/1-12 RMOT.CAN | F138: 3425 | G138: P2
B139: 2163268 | C139: STRATOS /-D 65/1-12 RMOT.(SW>=6.12) | F139: 3425 | G139: P2
B140: 2175521 | C140: TOP-Z50/7 DM PN6/10 GG | F140: 3363 | G140: P2
B141: 2176069 | C141: TOP-Z50/7 DM GG/RG RMOT.from 03/2017 | F141: 3363 | G141: P2
B142: 2120665 | C142: Yonos MAXO-D 40/0,5-12 PN6/10 | F142: 3359 | G142: P2
B143: 29990737 | C143: TOP-S/SD50/15 DM RMOT | F143: 3321 | G143: P2
B144: 29991429 | C144: TOP-S/SD50/15 DM RMOT | F144: 3321 | G144: P2
B145: 2120656 | C145: Yonos MAXO 80/0,5-6 PN6 | F145: 3312 | G145: P2
B146: 2146252 | C146: Yonos MAXO /-D 80/0,5-6 RMOT. | F146: 3312 | G146: P2
B147: 2095102 | C147: STRATOS-Z 50/1-9 RMOT.CAN | F147: 3272 | G147: P2
B148: 29991399 | C148: TOP S/SD 65/13 3PH RMOT | F148: 3209 | G148: P2
B149: 29991437 | C149: TOP-S/SD65/10 DM RMOT.(450W) | F149: 3208 | G149: P2
B150: 29991421 | C150: TOP S/SD40/15 DM PN6/10 RMOT | F150: 3178 | G150: P2
B151: 2120660 | C151: Yonos MAXO 100/0,5-12 PN6 | F151: 3156 | G151: P2
B152: 2146254 | C152: Yonos MAXO 100/0,5-12 RMOT. | F152: 3156 | G152: P2
B153: 2146251 | C153: Yonos MAXO /-D 65/0,5-16 RMOT. | F153: 3142 | G153: P2
B154: 2120655 | C154: Yonos MAXO 65/0,5-16 PN6/10 | F154: 3141 | G154: P2
B155: 2095099 | C155: STRATOS-ZD 32/1-12 RMOT.CAN | F155: 3127 | G155: P2
B156: 2163269 | C156: STRATOS /-D 80/1-6 RMOT. | F156: 3117 | G156: P2
B157: 2120652 | C157: Yonos MAXO 50/0,5-16 PN6/10 | F157: 3022 | G157: P2
B158: 2146248 | C158: Yonos MAXO /-D 50/0,5-16 RMOT. | F158: 3021 | G158: P2
B159: 2071094 | C159: TOP-Z40/7 EM PN16 GG | F159: 2989 | G159: P2
B160: 2095101 | C160: STRATOS-Z 40/1-12 RMOT.CAN | F160: 2985 | G160: P2
B161: 2095091 | C161: STRATOS /-D 50/1-12 RMOT.CAN | F161: 2970 | G161: P2
B162: 2120654 | C162: Yonos MAXO 65/0,5-12 PN6/10 | F162: 2919 | G162: P2
B163: 2146250 | C163: Yonos MAXO /-D 65/0,5-12 RMOT. | F163: 2919 | G163: P2
B164: 29991440 | C164: TOP-S/SD80/7 EM RMOT | F164: 2913 | G164: P2
B165: 2115863 | C165: TOP-Z30/10 EM PN16 RG | F165: 2912 | G165: P2
B166: 2175543 | C166: Yonos MAXO-Z 40/0,5-12 PN6/10 | F166: 2904 | G166: P2
B167: 2120648 | C167: Yonos MAXO 40/0,5-16 PN6/10 | F167: 2895 | G167: P2
B168: 2146244 | C168: Yonos MAXO /-D 40/0,5-16 RMOT. | F168: 2895 | G168: P2
B169: 2095092 | C169: STRATOS 65/1-9 RMOT.CAN | F169: 2786 | G169: P2
B170: 2086131 | C170: TOP-Z25/10 EM PN16 | F170: 2745 | G170: P2
B171: 2175542 | C171: Yonos MAXO-Z 40/0,5-8 PN6/10 | F171: 2730 | G171: P2
B172: 2175517 | C172: TOP-Z40/7 DM PN16 GG | F172: 2716 | G172: P2
B173: 2175513 | C173: TOP-Z30/10 DM PN16 RG | F173: 2678 | G173: P2
B174: 2095090 | C174: STRATOS /-D 50/1-9 RMOT.CAN | F174: 2614 | G174: P2
B175: 2151884 | C175: Stratos 65/1-6 RMOT. | F175: 2593 | G175: P2
B176: 29991435 | C176: TOP-S/SD65/10 EM RMOT.(450W) | F176: 2567 | G176: P2
B177: 2175515 | C177: TOP-Z40/7 DM PN6/10 GG | F177: 2564 | G177: P2
B178: 29991420 | C178: TOP-S/SD40/15 EM RMOT | F178: 2543 | G178: P2
B179: 2176068 | C179: TOP-ZV50/6 DM RMOT.from 03/2017 | F179: 2525 | G179: P2
B180: 2175510 | C180: TOP-Z25/10 DM PN16 | F180: 2520 | G180: P2
B181: 2095100 | C181: STRATOS-Z 40/1-8 RMOT.CAN | F181: 2492 | G181: P2
B182: 2120664 | C182: Yonos MAXO-D 40/0,5-8 PN6/10 | F182: 2483 | G182: P2
B183: 2219220 | C183: Yonos MAXO-Z 32/0,5-16 PN6/10 | F183: 2402 | G183: P2
B184: 29991427 | C184: TOP-S/SD50/10 DM RMOT | F184: 2390 | G184: P2
B185: 2120663 | C185: Yonos MAXO-D 32/0,5-11 PN6/10 | F185: 2379 | G185: P2
B186: 2120653 | C186: Yonos MAXO 65/0,5-9 PN6/10 | F186: 2343 | G186: P2
B187: 2146249 | C187: Yonos MAXO 65/0,5-9 RMOT. | F187: 2341 | G187: P2
B188: 2146337 | C188: STRATOS /-D 40/1-16 RMOT. | F188: 2308 | G188: P2
B189: 2191267 | C189: Yonos MAXO-Z 50/0,5-9 RMOT. | F189: 2307 | G189: P2
B190: 2046637 | C190: TOP-Z40/7 EM PN6/10 RG | F190: 2293 | G190: P2
B191: 2046683 | C191: TOP-Z40/7 EM GG/RG RMOT. | F191: 2293 | G191: P2
B192: 2146247 | C192: Yonos MAXO/-D 50/0,5-12 RMOT. | F192: 2175 | G192: P2
B193: 2120651 | C193: Yonos MAXO 50/0,5-12 PN6/10 | F193: 2174 | G193: P2
B194: 2175516 | C194: TOP-Z40/7 DM PN6/10 RG | F194: 2161 | G194: P2
B195: 2176067 | C195: TOP-Z40/7 DM GG/RG RMOT.from 03/2017 | F195: 2160 | G195: P2
B196: 29991426 | C196: TOP S/SD50/7 DM RMOT | F196: 2157 | G196: P2
B197: 29991423 | C197: TOP S50/4 DM RMOT | F197: 2136 | G197: P2
B198: 2225915 | C198: Yonos MAXO-D 30/0,5-10 | F198: 2135 | G198: P2
B199: 2120650 | C199: Yonos MAXO 50/0,5-9 PN6/10 | F199: 2060 | G199: P2
B200: 29991432 | C200: TOP-S65/7 EM RMOT | F200: 2058 | G200: P2
B201: 2146246 | C201: Yonos MAXO /-D 50/0,5-9 RMOT. | F201: 2058 | G201: P2
... 4299 more rows
